Workbook

Sheet Sheet1 (hidden)
A1: Consultant Scope of Work (Activities-Based)
A3: Purpose & Objectives
A4: Provide expert review, planning, and support for decommissioning, rehabilitation, and related financial provisioning for:
A5: 1) Battery Energy Storage Systems (BESS) Plants, and
A6: 2) Electric Vehicles (EVs), Microgrid Containers, and Solar PV Rooftops,
A7: including environmental and costing assumptions, cost estimates per activity per site, IFRS accounting implications, review for adequacy in terms of provision completeness, closure cost cash flows (present value), useful life assumptions for asset componens of these plants, audit support, quantity surveying, and valuation for the end-of-life (where applicable), with formal reporting in September and March (disclosures required for March only).
A11: 1) Workstream A — BESS Plant
A12: A1. Environmental and IFRS Compliance Review
A13: To review the environmental, legal and IFRS requirements in terms of the BESS, Electric Vehicles, Microgrid Containers, Solar PV Rooftops and provide an opinion of the environmental and accounting implications.
A15: A2. Environmental Assumptions Review
A16: Review the adequacy of environmental and other operational assumptions made for the BESS, Electric Vehicles, Microgrid Containers, Solar PV Rooftops sites e.g., Disposal of materials etc.
A18: A2. Costing Assumptions Review
A20: Review the costing assumptions e.g., quantities, rates, benchmarks, best practices used in respect of decommissioning/rehabilitation activities for Battery Energy Storage Systems e.g. demolition, removal/dissemble, rigging and lifting, transportation, disposal, recycling, rehabilitation, contingencies and scrap value calculations etc. (not limited to this list of activities).
A22: A3. Component Coverage (BESS)
A24: This includes all BESS plant components for example (not limited to this list):
A26: Power Conversion Systems (PCS)
A27: Battery Racks (LFP-based, supplied by CATL)
A28: Energy Management Systems (EMS)
A29: Network Integration Equipment (NIE), including:
A30: Auxiliary and Inverter Transformers
A31: Ring Main Units (RMU)
A32: Indoor Switchgear
A34: A4. Provision Review — Compliance & Closure Planning
A36: A review of the provision, specifically to ascertain compliance with current environmental legislation, accounting IFRS treatments and closure planning of the BESS plants.
A38: A5. Provision Completeness Review
A40: Review the completeness of the provision with respect to the items detailed above (Ensure all decommissioning and rehabilitation activities and costs related to the BESS plants have been accurately updated and complete).
A42: A6. Closure Cost & Cash Flow Assessment
A44: An assessment and review of the closure cost assumptions and cash flows as applied in determining the present value gross liability at the BESS plant end of life is required.
A46: A7. Initial & Subsequent Cost Estimation (by Commissioning Date)
A48: Initial and subsequent cost estimations based on BESS plant commissioning dates (i.e. going back to prior financial years based on date the plant was brought into commercial operation).
A50: A8. Decommissioning Plan Development
A52: Development of BESS plant decommissioning plan that is adequately and frequently reviewed and updated.
A54: A9. Accounting Support (IFRS)
A56: Assistance, review and support of the accounting implications related to BESS plant decommissioning activities, including opinion as per IFRS requirements.
A58: A10. Useful Life Review
A60: Review and assessment of the BESS plant useful life assumption used for each site.
A62: A11. Audit Engagement Participation
A64: To engage and participate in internal and external audit engagements until audit finality is reached for BESS decommissioning deliverables and to have availability of the technical expert teams (in person when required and via MS Teams – number of meetings not limited).
A66: A12. Quantity Surveying
A68: The above scope of work includes quantity surveying at each station. This should be used to estimate quantities for demolition, rehabilitation, and scrap.

Sheet Original Scope (hidden)
A1: 1. BESS Plant:
A3: · Review the adequacy of environmental assumptions e.g., Disposal of materials etc.
A4: · Review the costing assumptions e.g., quantities, rates, benchmarks, best practices used in respect of decommissioning/rehabilitation activities for Battery Energy Storage Systems e.g. demolition, removal/ dissemble, rigging and lifting, transportation, disposal, recycling, rehabilitation, contingencies and scrap value calculations etc. (not limited to this list of activities).
A6: This includes all BESS plant components for example (not limited to this list):
A7: · Power Conversion Systems (PCS)
A8: · Battery Racks (LFP-based, supplied by CATL)
A9: · Energy Management Systems (EMS)
A10: · Network Integration Equipment (NIE), including:
A11: · Auxiliary and Inverter Transformers
A12: · Ring Main Units (RMU)
A13: · Indoor Switchgear
A14: · A review of the provision, specifically to ascertain compliance with current environmental legislation, accounting IFRS treatments and closure planning of the BESS plants.
A15: · Review the completeness of the provision with respect to the items detailed above (Ensure all decommissioning and rehabilitation activities and costs related to the BESS plants have been accurately updated and complete).
A16: · An assessment and review of the closure cost assumptions and cash flows as applied in determining the present value gross liability at the BESS plant end of life is required.
A17: · Initial and subsequent cost estimations based on BESS plant commissioning dates (i.e. going back to prior financial years based on date the plant was brought into commercial operation).
A18: · Development of BESS plant decommissioning plan that is adequately and frequently reviewed and updated.
A19: · Assistance, review and support of the accounting implications related to BESS plant decommissioning activities, including opinion as per IFRS requirements.
A20: · Review and assessment of the BESS plant useful life assumption used for each site.
A21: · To engage and participate in internal and external audit engagements until audit finality is reached for BESS decommissioning deliverables and to have availability of the technical expert teams (in person when required and via MS teams – number of meetings not limited).
A22: The above scope of work includes quantity surveying at each station. This should be used to estimate quantities for demolition, rehabilitation, and scrap.
A24: 2. Electric Vehicles, Microgrid Containers, and Solar PV Rooftops
A25: Review the adequacy of environmental assumptions e.g., disposal, recycling, and rehabilitation of materials and components across EVs, Microgrid Containers, and Solar PV Rooftops.
A26: Review the costing assumptions e.g., quantities, rates, benchmarks, best practices used in respect of decommissioning/rehabilitation activities for EVs, Microgrid Containers, and Solar PV Rooftops e.g., dismantling, removal/disassembly, rigging and lifting, transportation, disposal, recycling, rehabilitation, contingencies and scrap value calculations etc. (not limited to this list of activities).
A27: This includes all relevant components for example (not limited to this list):
A28: Electric Vehicles:
A29: Battery Packs (e.g., LFP, NMC)
A30: Electric Drive Units (EDUs)
A31: Power Electronics (Inverters, Converters)
A32: Vehicle Control Units
A33: Charging Interfaces
A34: Microgrid Containers:
A35: Container Structures
A36: Switchgear and Protection Equipment
A37: Control Systems
A38: Transformers and Power Distribution Units
A39: HVAC and Fire Suppression Systems
A40: Solar PV Rooftops:
A41: PV Modules (e.g., monocrystalline, polycrystalline)
A42: Inverters and Power Optimizers
A43: Mounting Structures
A44: Cabling and Junction Boxes
A45: Monitoring and Control Systems
A46: A review of the provision, specifically to ascertain compliance with current environmental legislation, accounting IFRS treatments and closure planning of EVs, Microgrid Containers, and Solar PV Rooftops.
A47: Review the completeness of the provision with respect to the items detailed above (Ensure all decommissioning and rehabilitation activities and costs related to EVs, Microgrid Containers, and Solar PV Rooftops have been accurately updated and complete).
A48: An assessment and review of the closure cost assumptions and cash flows as applied in determining the present value gross liability at the end of life of EVs, Microgrid Containers, and Solar PV Rooftops is required.
A49: Initial and subsequent cost estimations based on commissioning dates of EVs, Microgrid Containers, and Solar PV Rooftops (i.e., going back to prior financial years based on date the assets were brought into commercial operation).
A50: Development of decommissioning plans for EVs, Microgrid Containers, and Solar PV Rooftops that are adequately and frequently reviewed and updated.
A51: Assistance, review and support of the accounting implications related to decommissioning activities for EVs, Microgrid Containers, and Solar PV Rooftops, including opinion as per IFRS requirements.
A52: Review and assessment of the useful life assumptions used for each EV fleet, Microgrid Container site, and Solar PV Rooftop installation.
A53: To engage and participate in internal and external audit engagements until audit finality is reached for EVs, Microgrid Containers, and Solar PV Rooftops decommissioning deliverables and to have availability of the technical expert teams (in person when required and via MS Teams – number of meetings not limited).
A54: The above scope of work includes quantity surveying at each relevant site or asset group. This should be used to estimate quantities for demolition, rehabilitation, and scrap.
A55: Valuation of assets at end-of-life for EVs, Microgrid Containers, and Solar PV Rooftops, including assessment of residual value, reuse potential, and integration into closure cost models.
A57: Deliverable:
A58: · Reports and support to be provided for major reporting periods, September and March (to be received timeously before the relevant reporting timelines – Disclosures required for March period only).
A61: The following BESS plants will be assessed over the 5-year period:
A63: Year 1 (2026) | B63: Year 2 (2027) | C63: Year 3 (2028) | D63: Year 4 (2029) | E63: Year 5 (2030)
A64: Hex | B64: Hex | C64: Hex | D64: Hex | E64: Hex
A65: Pongola | B65: Pongola | C65: Pongola | D65: Pongola | E65: Pongola
A66: Elandskop | B66: Elandskop | C66: Elandskop | D66: Elandskop | E66: Elandskop
A67: N/A | B67: Skaapvlei | C67: Skaapvlei | D67: Skaapvlei | E67: Skaapvlei
A69: N/A | B69: Paleisheuwel | C69: Paleisheuwel | D69: Paleisheuwel | E69: Paleisheuwel
A70: N/A | B70: Graafwater | C70: Graafwater | D70: Graafwater | E70: Graafwater
A71: N/A | B71: N/A | C71: Melkhout | D71: Melkhout | E71: Melkhout
A72: N/A | B72: N/A | C72: Rietfontein Bess | D72: Rietfontein Bess | E72: Rietfontein Bess
A74: N/A | B74: N/A | C74: Rietfontein Solar PV | D74: Rietfontein Solar PV | E74: Rietfontein Solar PV
A75: *Subject to change and based on available information to date
A78: Prepared by: (End User of the Contract)
A79: Name and Surname: Nadia Alli
A80: Designation: Senior Advisor Financial Accounting and Compliance
A81: Signature:
A82: Date:
A84: Supported and Approved by: Contract Manager
A85: Name and Surname: Ivanke Van Der Linde
A86: Designation: Middle Manager Financial Accounting and Compliance
A87: Signature:
A88: Date:
A90: Supported by Approved: Technical Specialist Expert
A91: Name and Surname: Thomas Jacobs
A92: Designation:
A93: Signature:
A94: Date:

Sheet Detailed scope (hidden)
A1: Services Required: | B1: BESS AND OTHER ENVIRONMENTAL PROVISIONS/OBLIGATIONS CONSULTING SERVICES (END OF LIFE ACTIVITIES – DECOMMISSIONING AND REHABILITATION PROVISIONS).
A2: Division: | B2: DISTRIBUTION DIVISION
A3: Scope Detail
A5: Phase 1: Planning & Mobilization
A7: 1. Project Kick-off & Mobilization
A8: Confirm and define the project objectives, deliverables, timelines, and reporting requirements in line with the approved scope of work.
A9: Establish communication protocols for the full reporting cycle to ensure efficient coordination and information flow across all project stakeholders.
A11: 2. Regulatory & Accounting Framework Review
A12: Review applicable environmental legislation and IFRS standards for the following asset categories:
A13: 1) Battery Energy Storage System (BESS)
A14: 2) Electric Vehicle Components
A15: 3) Microgrid Containers
A16: 4) Solar PV Rooftops
A17: Confirm and advise on compliance requirements for expected end‑of‑life activities and the decommissioning provisions to be raised by Eskom.
A18: Provide advice on the related accounting, environmental and legal obligations applicable to Eskom for these activities.
A20: Phase 2: Technical & Environmental Assumptions/Costing
A22: 3. Environmental, Operational and End of Life Assumptions
A23: Provide and assess the technical, environmental, operational and end‑of‑life assumptions applied, or to be applied, for all decommissioning, disposal, recycling and rehabilitation activities for which Eskom will have an obligation. This includes reviewing assumptions and methodologies for all components of the following assets:
A24: (1) All BESS sites and components (including but not limited to):
A25: · Power Conversion Systems (PCS)
A26: · Battery Racks/ Battery Cabinet (LFP-based, supplied by CATL)
A27: · Energy Management Systems (EMS)
A28: · Network Integration Equipment (NIE), including:
A29: · Auxiliary and Inverter Transformers
A30: · Ring Main Units (RMU)
A31: · Indoor Switchgear
A32: · AC cabinet
A33: · DC combiner
A35: (2) All components of Electric Vehicles, Microgrid Containers, and Solar PV Rooftops (breakdown of components to be confirmed)
A36: Consultants must confirm and recommend best‑practice approaches for decommissioning, disposal, recycling and rehabilitation, and provide advice on the valuation methodologies, technical approaches, and assessment of decommissioning/recycling/rehabilitation techniques currently applied.
A37: Include assessment of site rehabilitation requirements at the end of useful life for all relevant assets (BESS, Electric Vehicles, Microgrid Containers, and Solar PV Rooftops), ensuring that environmental, land‑restoration, and site‑reinstatement obligations are fully identified and incorporated into end‑of‑life assumptions and methodologies.
A39: 4. Costing and Activities Estimates and Assumptions
A40: Provide and assess all costing assumptions and estimates used to determine end‑of‑life decommissioning and rehabilitation obligations, including quantities, rates, contingency allowances, discounting considerations, cash‑flow estimates and timing, rehabilitation and disposal costs (basis and benchmarks applied, other costing benchmarking, and best‑practice methodologies applicable to Battery Energy Storage Systems, Electric Vehicles, Microgrid Containers and Solar PV Rooftops. This includes providing expert advice on appropriate costing techniques and methodologies.
A41: Activities may include but not limited (BESS plant activitities included below for illustrative purposes but are not limited):
A42: Demolition
A43: Removal/disassembly
A44: Rigging and lifting
A45: Transportation
A46: Disposal
A47: Recycling
A48: Rehabilitation
A49: Contingencies
A50: Scrap value calculations
A52: 5. Component Coverage
A53: Provide and assess in terms of the completeness of component coverage in terms of activities and costing for BESS plants, Electric Vehicles, Microgrid Containers, and Solar PV Rooftops, including all associated activities and costs linked to decommissioning, rehabilitation and recycling.
A54: Provide and confirm, based on best practice, whether all applicable end‑of‑life activities and cost and activities categories have been appropriately included (proof of best practice and benchmarking to be provided).
A55: BESS example: (may not be limited)
A56: · Power Conversion Systems (PCS)
A57: · Battery Racks/ Battery Cabinet (LFP-based, supplied by CATL)
A58: · Energy Management Systems (EMS)
A59: · Network Integration Equipment (NIE), including:
A60: · Auxiliary and Inverter Transformers
A61: · Ring Main Units (RMU)
A62: · Indoor Switchgear
A63: · AC cabinet
A64: · DC combiner
A66: 6. Provision Completeness
A67: Review and advise in terms of the completeness of the provision to ensure all decommissioning, disposal, rehabilitation, and end‑of‑life activities and associated costs for BESS plants, Electric Vehicles, Microgrid Containers, and Solar PV Rooftops are adequately identified and included.
A69: 7. Initial & Subsequent Cost Estimation (by Commissioning Date)
A70: Prepare initial and subsequent cost estimations (including contingency costs) based on commissioning dates of each site or plant, including estimations applicable to prior reporting periods (e.g., FY2025) based on the date each asset was brought into commercial operation.
A72: 8. Closure Cost & Cash Flow
A73: Assess, review and advise on the assumptions used to determine closure costs, the related cash flows, timing of cash flows, discounting matters thereof, for purposes of calculating the present‑value gross liability associated with BESS sites, Electric Vehicles, Microgrid Containers, and Solar PV Rooftops.
A74: Provide and advise on the best‑practice approaches for escalating these costs up to the point of executing end‑of‑life activities
A76: 9. Decommissioning Plan Development
A77: Develop and provide support in maintaining a comprehensive decommissioning plan for BESS sites, Electric Vehicles, Microgrid Containers, and Solar PV Rooftops.
A78: Ensure the plan is reviewed and updated frequently and remains aligned with technical, environmental, and financial considerations.
A79: The consulting experts must prepare a decommissioning risk assessment for each asset category (BESS, Electric Vehicles, Microgrid Containers, and Solar PV Rooftops), identifying all relevant financial, environmental, operational, and regulatory risks associated with end‑of‑life activities, assessing the probability and impact of each risk together with applicable mitigation measures and financial implications, evaluating how these risks may influence decommissioning costs, closure liabilities, cash‑flow timing, or overall provision estimates, and providing expert recommendations on mitigation strategies to support effective, compliant, and cost‑efficient execution of decommissioning and rehabilitation activities.
A80: Assess and provide advice on the period in terms of the end of life dates.
A82: 10. Accounting Support (IFRS)
A83: Provide assistance and support relating to the accounting implications nuance matters in terms of the decommissioning and rehabilitation and end of life activities for BESS sites, Electric Vehicles, Microgrid Containers, and Solar PV Rooftops. These include but is not limited to: - Augmentation vs Replacement (IFRS Treatment): Augmentation adds new battery racks to restore capacity and does not replace or derecognize existing racks. Consultants must confirm the correct IFRS treatment, including recognition and componentisation of augmentation assets. Advise on how augmentation affects the decommissioning asset, provision, and subsequent measurement under IFRIC 1. Confirmation that Augmentation does not trigger interim disposal. - Single vs multiple Decommissioning Events: All battery racks (original + augmented) are removed only once at the end of the 20‑year life. Consultants must advise on how to model timing, cost build‑up and present‑value liability for this single event. Advise on IFRS disclosure, unwinding and recognition of changes in expected cost or timing. - Depreciation Policy for Decommissioning Asset: Depreciation of the decommissioning asset must align with the 20‑year plant lifespan. Augmentation restores capacity and does not extend functionality or require a new depreciation basis. Consultants must provide IFRS guidance and draft policy wording for audit and disclosure. - Provide advice and support on the componentisation of assets in accordance with IFRS requirements, including assessment of whether the asset classes and component groupings in the Fixed Asset Register (FAR) are appropriately aligned to IFRS standards. - Annual Battery Degradation & Impairment Screening: Consultants must support annual testing of battery condition and state‑of‑health (SOH). Where material degradation exists, quantify and advise if impairment is required under IAS36. Provide guidance on updating useful life, residual value and provision estimates based on results.
A84: Provide IFRS‑compliant disclosures for relevant provisions and decomissioning assets raised at each year‑end.
A88: 11. Useful Life Review
A89: Review, assess and advise on the useful life assumptions in terms of the decommissioning asset side of the provision applied to BESS sites, Electric Vehicles, Microgrid Containers, and Solar PV Rooftops, ensuring alignment with component‑level asset lifespans.
A90: Valuation of assets at end-of-life for EVs, Microgrid Containers, and Solar PV Rooftops, including assessment of residual value and integration into closure cost models.
A92: 12. Audit Engagement Participation
A93: Engage and participate in internal and external audit processes until audit completion for all decommissioning‑related deliverables for BESS sites, Electric Vehicles, Microgrid Containers, and Solar PV Rooftops.
A94: Ensure availability of technical experts as required (in‑person or via MS Teams; number of meetings not limited).
A96: 13. Quantity Surveying
A97: Conduct quantity surveying at each station where BESS sites, Electric Vehicles, Microgrid Containers, and Solar PV Rooftops are located.
A98: Use this to estimate quantities and confirm decommissioning and rehabilitation (end‑of‑life) activities and cost estimates for relevant activities and processed. This also includes assessing the asset condition, environmental risks, on‑site dismantling/decommissioning constraints.
A99: The consulting experts must perform an asset verification exercise for Battery Energy Storage System (BESS) battery components to assess their physical condition, performance levels, and any degradation since installation. This must include independent technical testing, capacity and state‑of‑health (SOH) measurements, comparison to manufacturer specifications, and assessment against original commissioning data. Where degradation is identified, the consultants must quantify the extent of deterioration and provide recommendations on the impairment of the affected portion of the asset in accordance with IFRS (including IAS 36 and IAS 16 componentisation requirements). The assessment must also determine the impact of degradation on remaining useful life, residual value, and future decommissioning cost estimates (i.e. impact on the decom provisions and assets)
A101: 14. Scenario and stress testing
A102: The consulting experts must perform a comprehensive scenario analysis to assess the sensitivity of decommissioning and rehabilitation cost estimates under varying conditions, including a base‑case scenario reflecting the most likely assumptions, a stressed‑cost scenario incorporating adverse cost, operational, and regulatory factors, and an accelerated‑closure scenario reflecting earlier‑than‑planned decommissioning requirements. For each scenario, experts must provide clearly articulated assumptions, updated cost models, revised cash‑flow projections, and IFRS‑aligned present‑value calculations, together with expert commentary on the financial implications and key risk drivers, to support robust valuation, audit defensibility, and management decision‑making.
A103: Possible re‑valuation may be required where errors are identified, or where audit findings, risk assessments, or changes in business or plant requirements necessitate correction or re-evaluation. Such re‑valuation must be undertaken accordingly; however, any costs arising from errors made by the consultants will not be borne by Eskom.
A105: 15. Deliverable
A106: Provide valuation reports and support for the major reporting periods (September and March of the contract period) in accordance with the above scope. Reports must include decommissioning costs, closure liabilities, cash‑flow timing, or overall provision estimates, authoritative positions, assumptions, benchmarks, and methodologies applied by the consulting experts etc., and must be submitted timeously before the relevant reporting deadlines.
A107: Note: Disclosures submissions are required for the March reporting period only for the duration of the contract
A109: The following BESS plants will be assessed over the 5-year period (subject to change based on business needs): | B109: Year 1 (2026) | C109: Year 2 (2027) | D109: Year 3 (2028) | E109: Year 4 (2029) | F109: Year 5 (2030)
B110: Hex | C110: Hex | D110: Hex | E110: Hex | F110: Hex
B111: Pongola | C111: Pongola | D111: Pongola | E111: Pongola | F111: Pongola
B112: Elandskop | C112: Elandskop | D112: Elandskop | E112: Elandskop | F112: Elandskop
B113: N/A | C113: Skaapvlei | D113: Skaapvlei | E113: Skaapvlei | F113: Skaapvlei
B115: N/A | C115: Paleisheuwel | D115: Paleisheuwel | E115: Paleisheuwel | F115: Paleisheuwel
B116: N/A | C116: Graafwater | D116: Graafwater | E116: Graafwater | F116: Graafwater
B117: N/A | C117: N/A | D117: Melkhout | E117: Melkhout | F117: Melkhout
B118: N/A | C118: N/A | D118: Rietfontein Bess | E118: Rietfontein Bess | F118: Rietfontein Bess
B120: N/A | C120: N/A | D120: Rietfontein Solar PV | E120: Rietfontein Solar PV | F120: Rietfontein Solar PV
A122: Electric Vehicles, Microgrid Containers, and Solar PV Rooftops component and projects/sites to be advised
A124: Prepared by: (End User of the Contract)
A125: Name and Surname: Nadia Alli
A126: Designation: Senior Advisor Financial Accounting and Compliance
A127: Signature:
A128: Date:
A130: Supported and Approved by: Contract Manager
A131: Name and Surname: Ivanke Van Der Linde
A132: Designation: Middle Manager Financial Accounting and Compliance
A133: Signature:
A134: Date:
A136: Supported and Approved by: Supporting E-Band Manager
A137: Name and Surname: Jayalakshmi Govender
A138: Designation: Senior Manager Central East Cluster (KZN and FS FBC)
A139: Signature:
A140: Date:
A142: Supported by Approved: Technical Specialist /Engineering Expert
A143: Name and Surname: Thomas Jacobs
A144: Designation:
A145: Signature:
A146: Date:

Sheet Summary Sheet
B1: IFRS Price Lists
B2: Summary Sheet | C2: Year 1 | D2: Year 2 | E2: Year 3 | F2: Year 4 | G2: Year 5 | H2: Total
B3: Meetings
B4: Project Kick-off & Mobilization | H4: =SUM(C4:G4) -> 0
B5: Audit Engagement Participation | H5: =SUM(C5:G5) -> 0
B6: Sub Total | C6: =SUM(C4:C5) -> 0 | D6: =SUM(D4:D5) -> 0 | E6: 0 | F6: 0 | G6: 0 | H6: 0
B7: Projects
B8: Battery Energy Storage System (BESS) | H8: =SUM(C8:G8) -> 0
B9: Electric Vehicle Components | H9: 0
B10: Microgrid Containers | H10: 0
B11: Solar PV Rooftops | H11: 0
B12: Sub Total | C12: =SUM(C8:C11) -> 0 | D12: =SUM(D8:D11) -> 0 | E12: 0 | F12: 0 | G12: 0 | H12: 0
B14: TOTAL | C14: =C6+C12 -> 0 | D14: =D6+D12 -> 0 | E14: 0 | F14: 0 | G14: 0 | H14: 0

Sheet Meetings
A1: Services Required: | C1: Review of the decommissioning costs and componentisation in terms of International Financial Reporting Standard (IFRS) for the rehabilitation of Battery Energy Storage Systems (BESS) sites including the assessment, accounting and valuation of environmental provisions for Electric Vehicles, Solar PV and Microgrid containers within the Distribution Division for a period of 5 years.
A2: Division: | C2: DISTRIBUTION DIVISION
A3: Scope Detail | B3: Number of Consultants | C3: Number of Hours | D3: Rates | E3: Price | G3: Rates | H3: Price | J3: Rates | K3: Price | M3: Rates | N3: Price | P3: Rates | Q3: Price | R3: 5 Years Total
A5: Phase 1: Planning & Mobilization | C5: Year 1 | G5: Year 2 | J5: Year 3 | M5: Year 4 | P5: Year 5
A7: 1.1 Project Kick-off & Mobilization
A8: Confirm and define the project objectives, deliverables, timelines, and reporting requirements in line with the approved scope of work. | B8: 6 | E8: =B8*C8*D8 -> 0 | G8: =D8*1.08 -> 0 | H8: =G8*C8*B8 -> 0 | J8: =G8*1.08 -> 0 | K8: =J8*C8*B8 -> 0 | M8: =J8*1.08 -> 0 | N8: =M8*C8*B8 -> 0 | P8: =M8*1.08 -> 0 | Q8: =P8*C8*B8 -> 0 | R8: =Q8+N8+K8+H8+E8 -> 0
A9: Establish communication protocols for the full reporting cycle to ensure efficient coordination and information flow across all project stakeholders. | B9: 6 | E9: =B9*C9*D9 -> 0 | G9: =D9*1.08 -> 0 | H9: =G9*C9*B9 -> 0 | J9: =G9*1.08 -> 0 | K9: =J9*C9*B9 -> 0 | M9: =J9*1.08 -> 0 | N9: =M9*C9*B9 -> 0 | P9: =M9*1.08 -> 0 | Q9: =P9*C9*B9 -> 0 | R9: 0
A12: 2.10 Audit Engagement Participation
A13: Engage and participate in internal and external audit processes until audit completion for all decommissioning‑related deliverables for BESS sites, Electric Vehicles, Microgrid Containers, and Solar PV Rooftops. | B13: 3 | E13: =B13*C13*D13 -> 0 | G13: =D13*1.08 -> 0 | H13: =G13*C13*B13 -> 0 | J13: =G13*1.08 -> 0 | K13: =J13*C13*B13 -> 0 | M13: =J13*1.08 -> 0 | N13: =M13*C13*B13 -> 0 | P13: =M13*1.08 -> 0 | Q13: =P13*C13*B13 -> 0 | R13: =Q13+N13+K13+H13+E13 -> 0
A14: Ensure availability of technical experts as required (in‑person or via MS Teams; number of meetings not limited).
E16: =SUM(E8:E15) -> 0 | H16: =SUM(H8:H15) -> 0 | K16: =SUM(K8:K15) -> 0 | N16: =SUM(N8:N15) -> 0 | Q16: =SUM(Q8:Q15) -> 0 | R16: =Q16+N16+K16+H16+E16 -> 0
A18: The following BESS plants will be assessed over the 5-year period (subject to change based on business needs): | C18: Year 1 (2026) | D18: Year 2 (2027) | E18: Year 3 (2028) | F18: Year 4 (2029) | G18: Year 5 (2030)
C19: Hex | D19: Hex | E19: Hex | F19: Hex | G19: Hex
C20: Pongola | D20: Pongola | E20: Pongola | F20: Pongola | G20: Pongola
C21: Elandskop | D21: Elandskop | E21: Elandskop | F21: Elandskop | G21: Elandskop
C22: N/A | D22: Skaapvlei | E22: Skaapvlei | F22: Skaapvlei | G22: Skaapvlei
C24: N/A | D24: Paleisheuwel | E24: Paleisheuwel | F24: Paleisheuwel | G24: Paleisheuwel
C25: N/A | D25: Graafwater | E25: Graafwater | F25: Graafwater | G25: Graafwater
C26: N/A | D26: N/A | E26: Melkhout | F26: Melkhout | G26: Melkhout
C27: N/A | D27: N/A | E27: Rietfontein Bess | F27: Rietfontein Bess | G27: Rietfontein Bess
C29: N/A | D29: N/A | E29: Rietfontein Solar PV | F29: Rietfontein Solar PV | G29: Rietfontein Solar PV
A30: Assessment for EV's ( Lithium iron batteries environmental provision) | C30: Electric Vehicles( EV's) | D30: Electric Vehicles( EV's) | E30: Electric Vehicles( EV's) | F30: Electric Vehicles( EV's) | G30: Electric Vehicles( EV's)
A31: Assessment for Microgrids environmental provision | C31: Microgrids | D31: Microgrids | E31: Microgrids | F31: Microgrids | G31: Microgrids
A32: Assessment for Solar PV Roof Tops environmental provision | C32: Solar PV Roof Tops | D32: Solar PV Roof Tops | E32: Solar PV Roof Tops | F32: Solar PV Roof Tops | G32: Solar PV Roof Tops
A34: Electric Vehicles, Microgrid Containers, and Solar PV Rooftops component and projects/sites to be advised
A36: Prepared by: (End User of the Contract)
A37: Name and Surname:
A38: Designation:
A39: Signature:
A40: Date:
A42: Supported and Approved by: ( End user of Contract )
A43: Name and Surname:
A44: Designation:
A45: Signature:
A46: Date:
A48: Supported and Approved by: ( End user of Contract )
A49: Name and Surname:
A50: Designation:
A51: Signature:
A52: Date:
A53: Supported and Approved by: Contract Manager
A54: Name and Surname:
A55: Designation:
A56: Signature:
A57: Date:
A58: Supported and Approved by: Senior Manager End User
A59: Name and Surname:
A60: Designation:
A61: Signature:
A62: Date:
A64: Supported by Approved: Technical Specialist /Engineering Expert
A65: Name and Surname:
A66: Designation:
A67: Signature:
A68: Date:

Sheet IFRS Price List 03.02.26 All
A1: Services Required: | C1: Review of the decommissioning costs and componentisation in terms of International Financial Reporting Standard (IFRS) for the rehabilitation of Battery Energy Storage Systems (BESS) sites including the assessment, accounting and valuation of environmental provisions for Electric Vehicles, Solar PV and Microgrid containers within the Distribution Division for a period of 5 years.
A2: Division: | C2: DISTRIBUTION DIVISION
A3: Scope Detail | B3: Number of Consultants | C3: Number of Hours | D3: Rates | E3: Price | G3: Rates | H3: Price | J3: Rates | K3: Price | M3: Rates | N3: Price | P3: Rates | Q3: Price | R3: 5 Years Total
A5: Phase 1: Planning & Mobilization | C5: Year 1 | G5: Year 2 | J5: Year 3 | M5: Year 4 | P5: Year 5
A7: 1.1 Project Kick-off & Mobilization
A8: Confirm and define the project objectives, deliverables, timelines, and reporting requirements in line with the approved scope of work. | B8: 6 | E8: =B8*C8*D8 -> 0 | G8: =D8*1.08 -> 0 | H8: =G8*C8*B8 -> 0 | J8: =G8*1.08 -> 0 | K8: =J8*C8*B8 -> 0 | M8: =J8*1.08 -> 0 | N8: =M8*C8*B8 -> 0 | P8: =M8*1.08 -> 0 | Q8: =P8*C8*B8 -> 0 | R8: =Q8+N8+K8+H8+E8 -> 0
A9: Establish communication protocols for the full reporting cycle to ensure efficient coordination and information flow across all project stakeholders. | B9: 6 | E9: =B9*C9*D9 -> 0 | G9: =D9*1.08 -> 0 | H9: =G9*C9*B9 -> 0 | J9: =G9*1.08 -> 0 | K9: =J9*C9*B9 -> 0 | M9: =J9*1.08 -> 0 | N9: =M9*C9*B9 -> 0 | P9: =M9*1.08 -> 0 | Q9: =P9*C9*B9 -> 0 | R9: 0
A11: 1.2 Regulatory & Accounting Framework Review
A12: Review applicable environmental legislation and IFRS standards for the following asset categories:
A13: . Battery Energy Storage System (BESS) | B13: 1 | E13: =B13*C13*D13 -> 0 | G13: =D13*1.08 -> 0 | H13: =G13*C13*B13 -> 0 | J13: 0 | K13: 0 | M13: 0 | N13: 0 | P13: 0 | Q13: 0 | R13: 0
A14: . Electric Vehicle Components | B14: 1 | E14: =B14*C14*D14 -> 0 | G14: 0 | H14: 0 | J14: 0 | K14: 0 | M14: 0 | N14: 0 | P14: 0 | Q14: 0 | R14: 0
A15: . Microgrid Containers | B15: 1 | E15: 0 | G15: 0 | H15: 0 | J15: 0 | K15: 0 | M15: 0 | N15: 0 | P15: 0 | Q15: 0 | R15: 0
A16: . Solar PV Rooftops | B16: 1 | E16: 0 | G16: 0 | H16: 0 | J16: 0 | K16: 0 | M16: 0 | N16: 0 | P16: 0 | Q16: 0 | R16: 0
A17: Confirm and advise on compliance requirements for expected end‑of‑life activities and the decommissioning provisions to be raised by Eskom.
A18: Provide advice on the related accounting, environmental and legal obligations applicable to Eskom for these activities.
A20: Phase 2: Technical & Environmental Assumptions/Costing
A22: 2.1 Environmental, Operational and End of Life Assumptions
A23: Provide and assess the technical, environmental, operational and end‑of‑life assumptions applied, or to be applied, for all decommissioning, disposal, recycling and rehabilitation activities for which Eskom will have an obligation. This includes reviewing assumptions and methodologies for all components of the following assets:
A24: . Battery Energy Storage System (BESS) | B24: 1 | E24: =B24*C24*D24 -> 0 | G24: =D24*1.08 -> 0 | H24: =G24*C24*B24 -> 0 | J24: =G24*1.08 -> 0 | K24: =J24*C24*B24 -> 0 | M24: =J24*1.08 -> 0 | N24: =M24*C24*B24 -> 0 | P24: =M24*1.08 -> 0 | Q24: =P24*C24*B24 -> 0 | R24: =Q24+N24+K24+H24+E24 -> 0
A25: . Electric Vehicle Components | B25: 1 | E25: =B25*C25*D25 -> 0 | G25: 0 | H25: 0 | J25: 0 | K25: 0 | M25: 0 | N25: 0 | P25: 0 | Q25: 0 | R25: 0
A26: . Microgrid Containers | B26: 1 | E26: 0 | G26: 0 | H26: 0 | J26: 0 | K26: 0 | M26: 0 | N26: 0 | P26: 0 | Q26: 0 | R26: 0
A27: . Solar PV Rooftops | B27: 1 | E27: 0 | G27: 0 | H27: 0 | J27: 0 | K27: 0 | M27: 0 | N27: 0 | P27: 0 | Q27: 0 | R27: 0
A28: 2.1.1. All BESS sites and components (including but not limited to):
A29: · Power Conversion Systems (PCS)
A30: · Battery Racks/ Battery Cabinet (LFP-based, supplied by CATL)
A31: · Energy Management Systems (EMS)
A32: · Network Integration Equipment (NIE), including:
A33: · Auxiliary and Inverter Transformers
A34: · Ring Main Units (RMU)
A35: · Indoor Switchgear
A36: · AC cabinet
A37: · DC combiner
A38: · Balance of Plant
A40: 2.1.2 All components of Electric Vehicles, Microgrid Containers, and Solar PV Rooftops (breakdown of components to be confirmed) | R40: 0
A41: Consultants must confirm and recommend best‑practice approaches for decommissioning, disposal, recycling and rehabilitation, and provide advice on the valuation methodologies, technical approaches, and assessment of decommissioning/recycling/rehabilitation techniques currently applied.
A42: . Battery Energy Storage System (BESS) | B42: 1 | E42: =B42*C42*D42 -> 0 | G42: =D42*1.08 -> 0 | H42: =G42*C42*B42 -> 0 | J42: =G42*1.08 -> 0 | K42: =J42*C42*B42 -> 0 | M42: =J42*1.08 -> 0 | N42: =M42*C42*B42 -> 0 | P42: =M42*1.08 -> 0 | Q42: =P42*C42*B42 -> 0 | R42: =Q42+N42+K42+H42+E42 -> 0
A43: . Electric Vehicle Components | B43: 1 | E43: =B43*C43*D43 -> 0 | G43: 0 | H43: 0 | J43: 0 | K43: 0 | M43: 0 | N43: 0 | P43: 0 | Q43: 0 | R43: 0
A44: . Microgrid Containers | B44: 1 | E44: 0 | G44: 0 | H44: 0 | J44: 0 | K44: 0 | M44: 0 | N44: 0 | P44: 0 | Q44: 0 | R44: 0
A45: . Solar PV Rooftops | B45: 1 | E45: 0 | G45: 0 | H45: 0 | J45: 0 | K45: 0 | M45: 0 | N45: 0 | P45: 0 | Q45: 0 | R45: 0
A46: Include assessment of site rehabilitation requirements at the end of useful life for all relevant assets (BESS, Electric Vehicles, Microgrid Containers, and Solar PV Rooftops), ensuring that environmental, land‑restoration, and site‑reinstatement obligations are fully identified and incorporated into end‑of‑life assumptions and methodologies. (provide relevant benchmarks and best practices).
A48: 2.2. Costing and Activities Estimates and Assumptions
A49: Provide and assess all costing assumptions and estimates used to determine end‑of‑life decommissioning and rehabilitation obligations, including quantities, rates, contingency allowances, discounting considerations, cash‑flow estimates and timing, rehabilitation and disposal costs (basis and benchmarks applied, other costing benchmarking, and best‑practice methodologies applicable to renewable energy assets .Battery Energy Storage Systems, Electric Vehicles, Microgrid Containers and Solar PV Rooftops. This includes providing expert advice on appropriate costing techniques and methodologies.
A50: . Battery Energy Storage System (BESS) | B50: 1 | E50: =B50*C50*D50 -> 0 | G50: 0 | H50: 0 | J50: 0 | K50: 0 | M50: 0 | N50: 0 | P50: 0 | Q50: 0 | R50: 0
A51: . Electric Vehicle Components | B51: 1 | E51: =B51*C51*D51 -> 0 | G51: 0 | H51: 0 | J51: 0 | K51: 0 | M51: 0 | N51: 0 | P51: 0 | Q51: 0 | R51: 0
A52: . Microgrid Containers | B52: 1 | E52: 0 | G52: 0 | H52: 0 | J52: 0 | K52: 0 | M52: 0 | N52: 0 | P52: 0 | Q52: 0 | R52: 0
A53: . Solar PV Rooftops | B53: 1 | E53: 0 | G53: 0 | H53: 0 | J53: 0 | K53: 0 | M53: 0 | N53: 0 | P53: 0 | Q53: 0 | R53: 0
A54: Activities may include but not limited (BESS plant activitities included below for illustrative purposes but are not limited):
A55: Demolition,Removals/disassembly,Rigging and lifting,transportation,Disposal,Recycling, Rehabilitation,Contingencies,Scrap value calculations
A57: 2.3. Component Coverage
A58: Provide and assess in terms of the completeness of component coverage in terms of activities and costing for BESS plants, Electric Vehicles, Microgrid Containers, and Solar PV Rooftops, including all associated activities and costs linked to decommissioning, rehabilitation and recycling.
A59: . Battery Energy Storage System (BESS) | B59: 1 | E59: =B59*C59*D59 -> 0 | G59: 0 | H59: 0 | J59: 0 | K59: 0 | M59: 0 | N59: 0 | P59: 0 | Q59: 0 | R59: 0
A60: . Electric Vehicle Components | B60: 1 | E60: =B60*C60*D60 -> 0 | G60: 0 | H60: 0 | J60: 0 | K60: 0 | M60: 0 | N60: 0 | P60: 0 | Q60: 0 | R60: 0
A61: . Microgrid Containers | B61: 1 | E61: 0 | G61: 0 | H61: 0 | J61: 0 | K61: 0 | M61: 0 | N61: 0 | P61: 0 | Q61: 0 | R61: 0
A62: . Solar PV Rooftops | B62: 1 | E62: 0 | G62: 0 | H62: 0 | J62: 0 | K62: 0 | M62: 0 | N62: 0 | P62: 0 | Q62: 0 | R62: 0
A63: Provide and confirm, based on best practice, whether all applicable end‑of‑life activities and cost and activities categories have been appropriately included (proof of best practice and benchmarking to be provided).
A64: BESS example: (may not be limited)
A65: · Power Conversion Systems (PCS)
A66: · Battery Racks/ Battery Cabinet (LFP-based, supplied by CATL)
A67: · Energy Management Systems (EMS)
A68: · Network Integration Equipment (NIE), including:
A69: · Auxiliary and Inverter Transformers
A70: · Ring Main Units (RMU)
A71: · Indoor Switchgear
A72: · AC cabinet
A73: · DC combiner
A75: 2.4. Provision Completeness
A76: Review and advise in terms of the completeness of the provision to ensure all decommissioning, disposal, rehabilitation, and end‑of‑life activities and associated costs for BESS plants, Electric Vehicles, Microgrid Containers, and Solar PV Rooftops are adequately identified and included.
A77: . Battery Energy Storage System (BESS) | B77: 1 | E77: =B77*C77*D77 -> 0 | G77: 0 | H77: 0 | J77: 0 | K77: 0 | M77: 0 | N77: 0 | P77: 0 | Q77: 0 | R77: 0
A78: . Electric Vehicle Components | B78: 1 | E78: =B78*C78*D78 -> 0 | G78: 0 | H78: 0 | J78: 0 | K78: 0 | M78: 0 | N78: 0 | P78: 0 | Q78: 0 | R78: 0
A79: . Microgrid Containers | B79: 1 | E79: 0 | G79: 0 | H79: 0 | J79: 0 | K79: 0 | M79: 0 | N79: 0 | P79: 0 | Q79: 0 | R79: 0
A80: . Solar PV Rooftops | B80: 1 | E80: 0 | G80: 0 | H80: 0 | J80: 0 | K80: 0 | M80: 0 | N80: 0 | P80: 0 | Q80: 0 | R80: 0
A82: 2.5. Initial & Subsequent Cost Estimation (by Commissioning Date)
A83: Prepare initial and subsequent cost estimations (including contingency costs) based on commissioning dates of each site or plant, including estimations applicable to prior reporting periods (e.g., FY2025) based on the date each asset was brought into commercial operation.
A84: . Battery Energy Storage System (BESS) | B84: 1 | E84: =B84*C84*D84 -> 0 | G84: =D84*1.08 -> 0 | H84: =G84*C84*B84 -> 0 | J84: =G84*1.08 -> 0 | K84: =J84*C84*B84 -> 0 | M84: =J84*1.08 -> 0 | N84: =M84*C84*B84 -> 0 | P84: =M84*1.08 -> 0 | Q84: =P84*C84*B84 -> 0 | R84: =Q84+N84+K84+H84+E84 -> 0
A85: . Electric Vehicle Components | B85: 1 | E85: =B85*C85*D85 -> 0 | G85: 0 | H85: =G85*C85*B85 -> 0 | J85: 0 | K85: =J85*C85*B85 -> 0 | M85: 0 | N85: =M85*C85*B85 -> 0 | P85: 0 | Q85: =P85*C85*B85 -> 0 | R85: 0
A86: . Microgrid Containers | B86: 1 | E86: =B86*C86*D86 -> 0 | G86: 0 | H86: 0 | J86: 0 | K86: 0 | M86: 0 | N86: 0 | P86: 0 | Q86: 0 | R86: 0
A87: . Solar PV Rooftops | B87: 1 | E87: 0 | G87: 0 | H87: 0 | J87: 0 | K87: 0 | M87: 0 | N87: 0 | P87: 0 | Q87: 0 | R87: 0
A89: 2.6. Closure Cost & Cash Flow
A90: Assess, review and advise on the assumptions used to determine closure costs, the related cash flows, timing of cash flows, discounting matters thereof, for purposes of calculating the present‑value gross liability associated with BESS sites, Electric Vehicles, Microgrid Containers, and Solar PV Rooftops.
A91: Provide and advise on the best‑practice approaches for escalating these costs up to the point of executing end‑of‑life activities
A92: . Battery Energy Storage System (BESS) | B92: 1 | E92: =B92*C92*D92 -> 0 | G92: 0 | H92: 0 | J92: 0 | K92: 0 | M92: 0 | N92: 0 | P92: 0 | Q92: 0 | R92: 0
A93: . Electric Vehicle Components | B93: 1 | E93: =B93*C93*D93 -> 0 | G93: 0 | H93: 0 | J93: 0 | K93: 0 | M93: 0 | N93: 0 | P93: 0 | Q93: 0 | R93: 0
A94: . Microgrid Containers | B94: 1 | E94: 0 | G94: 0 | H94: 0 | J94: 0 | K94: 0 | M94: 0 | N94: 0 | P94: 0 | Q94: 0 | R94: 0
A95: . Solar PV Rooftops | B95: 1 | E95: 0 | G95: 0 | H95: 0 | J95: 0 | K95: 0 | M95: 0 | N95: 0 | P95: 0 | Q95: 0 | R95: 0
A97: 2.7. Decommissioning Plan Development
A98: Develop and provide support in maintaining a comprehensive decommissioning plan for BESS sites, Electric Vehicles, Microgrid Containers, and Solar PV Rooftops.
A99: Ensure the plan is reviewed and updated frequently and remains aligned with technical, environmental, and financial considerations.
A100: The consulting experts must prepare a decommissioning risk assessment for each asset category (BESS, Electric Vehicles, Microgrid Containers, and Solar PV Rooftops), identifying all relevant financial, environmental, operational, and regulatory risks associated with end‑of‑life activities, assessing the probability and impact of each risk together with applicable mitigation measures and financial implications, evaluating how these risks may influence decommissioning costs, closure liabilities, cash‑flow timing, or overall provision estimates, and providing expert recommendations on mitigation strategies to support effective, compliant, and cost‑efficient execution of decommissioning and rehabilitation activities.
A101: Assess and provide advice on the period in terms of the end of life dates.
A102: . Battery Energy Storage System (BESS) | B102: 1 | E102: =B102*C102*D102 -> 0 | G102: 0 | H102: 0 | J102: 0 | K102: 0 | M102: 0 | N102: 0 | P102: 0 | Q102: 0 | R102: 0
A103: . Electric Vehicle Components | B103: 1 | E103: =B103*C103*D103 -> 0 | G103: 0 | H103: 0 | J103: 0 | K103: 0 | M103: 0 | N103: 0 | P103: 0 | Q103: 0 | R103: 0
A104: . Microgrid Containers | B104: 1 | E104: 0 | G104: 0 | H104: 0 | J104: 0 | K104: 0 | M104: 0 | N104: 0 | P104: 0 | Q104: 0 | R104: 0
A105: . Solar PV Rooftops | B105: 1 | E105: 0 | G105: 0 | H105: 0 | J105: 0 | K105: 0 | M105: 0 | N105: 0 | P105: 0 | Q105: 0 | R105: 0
A107: 2.8. Accounting Support (IFRS)
A108: Provide assistance and support relating to the accounting implications nuance matters in terms of the decommissioning and rehabilitation and end of life activities for BESS sites, Electric Vehicles, Microgrid Containers, and Solar PV Rooftops. These include but is not limited to: Augmentation vs Replacement: Confirm the correct IFRS treatment for augmentation, ensuring no derecognition of existing racks and advising on impacts to the decommissioning asset and provision. Single Decommissioning Event: Confirm that all racks are decommissioned once at end of plant life with no interim disposals, and advise on modelling, timing, liability build‑up, unwinding and disclosure. Depreciation Policy: Confirm depreciation of the decommissioning asset over the plant life, considering augmentation, and provide IFRS‑aligned policy guidance. Componentisation (FAR Alignment): Review asset components and confirm that the Fixed Asset Register aligns with IFRS componentisation and classification requirements. Battery Degradation & Impairment: Support annual SOH (state of health/health index) testing and advise on impairment, useful life, and residual value adjustments where degradation is identified
A109: Provide IFRS‑compliant disclosures for relevant provisions and decomissioning assets raised at each year‑end.
A110: . Battery Energy Storage System (BESS) | B110: 1 | E110: =B110*C110*D110 -> 0 | G110: 0 | H110: 0 | J110: 0 | K110: 0 | M110: 0 | N110: 0 | P110: 0 | Q110: 0 | R110: 0
A111: . Electric Vehicle Components | B111: 1 | E111: =B111*C111*D111 -> 0 | G111: 0 | H111: 0 | J111: 0 | K111: 0 | M111: 0 | N111: 0 | P111: 0 | Q111: 0 | R111: 0
A112: . Microgrid Containers | B112: 1 | E112: 0 | G112: 0 | H112: 0 | J112: 0 | K112: 0 | M112: 0 | N112: 0 | P112: 0 | Q112: 0 | R112: 0
A113: . Solar PV Rooftops | B113: 1 | E113: 0 | G113: 0 | H113: 0 | J113: 0 | K113: 0 | M113: 0 | N113: 0 | P113: 0 | Q113: 0 | R113: 0
A115: 2.9. Useful Life Review
A116: Review, assess and advise on the useful life assumptions in terms of the decommissioning asset side of the provision applied to BESS sites, Electric Vehicles, Microgrid Containers, and Solar PV Rooftops, ensuring alignment with component‑level asset lifespans.
A117: Valuation of assets at end-of-life for EVs, Microgrid Containers, and Solar PV Rooftops, including assessment of residual value and integration into closure cost models.
A118: . Battery Energy Storage System (BESS) | B118: 1 | E118: =B118*C118*D118 -> 0 | G118: 0 | H118: 0 | J118: 0 | K118: 0 | M118: 0 | N118: 0 | P118: 0 | Q118: 0 | R118: 0
A119: . Electric Vehicle Components | B119: 1 | E119: =B119*C119*D119 -> 0 | G119: 0 | H119: 0 | J119: 0 | K119: 0 | M119: 0 | N119: 0 | P119: 0 | Q119: 0 | R119: 0
A120: . Microgrid Containers | B120: 1 | E120: 0 | G120: 0 | H120: 0 | J120: 0 | K120: 0 | M120: 0 | N120: 0 | P120: 0 | Q120: 0 | R120: 0
A121: . Solar PV Rooftops | B121: 1 | E121: 0 | G121: 0 | H121: 0 | J121: 0 | K121: 0 | M121: 0 | N121: 0 | P121: 0 | Q121: 0 | R121: 0
A123: 2.10. Audit Engagement Participation
A124: Engage and participate in internal and external audit processes until audit completion for all decommissioning‑related deliverables for BESS sites, Electric Vehicles, Microgrid Containers, and Solar PV Rooftops. | B124: 3 | E124: =B124*C124*D124 -> 0 | G124: 0 | H124: 0 | J124: 0 | K124: 0 | M124: 0 | N124: 0 | P124: 0 | Q124: 0 | R124: 0
A125: Ensure availability of technical experts as required (in‑person or via MS Teams; number of meetings not limited).
A127: 2.11. Plant Health Assessment
A128: Conduct plant health assessment at each station where BESS sites, Electric Vehicles, Microgrid Containers, and Solar PV Rooftops are located.
A129: . Battery Energy Storage System (BESS) | B129: 1 | E129: =B129*C129*D129 -> 0 | G129: =D129*1.08 -> 0 | H129: =G129*C129*B129 -> 0 | J129: =G129*1.08 -> 0 | K129: =J129*C129*B129 -> 0 | M129: =J129*1.08 -> 0 | N129: =M129*C129*B129 -> 0 | P129: =M129*1.08 -> 0 | Q129: =P129*C129*B129 -> 0 | R129: =Q129+N129+K129+H129+E129 -> 0
A130: . Electric Vehicle Components | B130: 1 | E130: =B130*C130*D130 -> 0 | G130: 0 | H130: 0 | J130: 0 | K130: 0 | M130: 0 | N130: 0 | P130: 0 | Q130: 0 | R130: 0
A131: . Microgrid Containers | B131: 1 | E131: 0 | G131: 0 | H131: 0 | J131: 0 | K131: 0 | M131: 0 | N131: 0 | P131: 0 | Q131: 0 | R131: 0
A132: . Solar PV Rooftops | B132: 1 | E132: 0 | G132: 0 | H132: 0 | J132: 0 | K132: 0 | M132: 0 | N132: 0 | P132: 0 | Q132: 0 | R132: 0
A133: Use this to estimate quantities and confirm decommissioning and rehabilitation (end‑of‑life) activities and cost estimates for relevant activities and processed. This also includes assessing the asset condition, environmental risks, on‑site dismantling/decommissioning constraints.
A134: The consulting experts must verify the condition of all BESS battery components to assess their physical state, performance, and any degradation since installation. This includes independent technical testing, capacity and state‑of‑health (SOH) measurements, and comparison to manufacturer specifications and original commissioning data. If degradation is found, the consultants must quantify it and recommend any required impairment in line with IFRS (IAS 36 and IAS 16). The assessment must also show how the degradation affects remaining useful life, residual value, and future decommissioning costs.
A136: 2.12. Scenario and stress testing
A137: The consulting experts must perform a scenario analysis to assess how changes in key assumptions may affect decommissioning and rehabilitation cost estimates. For each scenario considered, the experts must provide clear assumptions, updated cost models, revised cash‑flow projections, and IFRS‑aligned present‑value calculations, together with expert commentary on financial impacts and key risk drivers to support robust valuation, audit defensibility, and management decision‑making.
A138: Possible re‑valuation may be required where errors are identified, or where audit findings, risk assessments, or changes in business or plant requirements necessitate correction or re-evaluation. Such re‑valuation must be undertaken accordingly; however, any costs arising from errors made by the consultants will not be borne by Eskom.
A139: .Battery Energy Storage System (BESS) | B139: 1 | E139: =B139*C139*D139 -> 0 | G139: 0 | H139: 0 | J139: 0 | K139: 0 | M139: 0 | N139: 0 | P139: 0 | Q139: 0 | R139: 0
A141: 2.13. Deliverable
A142: Provide valuation reports and support for the major reporting periods (September and March of the contract period) in accordance with the above scope. Reports must include decommissioning costs, closure liabilities, cash‑flow timing, or overall provision estimates, authoritative positions, assumptions, benchmarks, and methodologies applied by the consulting experts etc., and must be submitted timeously before the relevant reporting deadlines.
A143: Where necessary - written reports for accounting positions/guidance/advice, scenario's and risk assessments etc.
A144: Note: Disclosures submissions are required for the March reporting period only for the duration of the contract
A145: . Battery Energy Storage System (BESS) | B145: 1 | E145: =B145*C145*D145 -> 0 | G145: 0 | H145: 0 | J145: 0 | K145: 0 | M145: 0 | N145: 0 | P145: 0 | Q145: 0 | R145: 0
A146: . Electric Vehicle Components | B146: 1 | E146: =B146*C146*D146 -> 0 | G146: 0 | H146: 0 | J146: 0 | K146: 0 | M146: 0 | N146: 0 | P146: 0 | Q146: 0 | R146: 0
A147: . Microgrid Containers | B147: 1 | E147: 0 | G147: 0 | H147: 0 | J147: 0 | K147: 0 | M147: 0 | N147: 0 | P147: 0 | Q147: 0 | R147: 0
A148: . Solar PV Rooftops | B148: 1 | E148: 0 | G148: 0 | H148: 0 | J148: 0 | K148: 0 | M148: 0 | N148: 0 | P148: 0 | Q148: 0 | R148: 0
E149: =SUM(E8:E148) -> 0 | H149: =SUM(H8:H148) -> 0 | K149: =SUM(K8:K148) -> 0 | N149: =SUM(N8:N148) -> 0 | Q149: =SUM(Q8:Q148) -> 0 | R149: =Q149+N149+K149+H149+E149 -> 0
A151: The following BESS plants will be assessed over the 5-year period (subject to change based on business needs): | C151: Year 1 (2026) | D151: Year 2 (2027) | E151: Year 3 (2028) | F151: Year 4 (2029) | G151: Year 5 (2030)
C152: Hex | D152: Hex | E152: Hex | F152: Hex | G152: Hex
C153: Pongola | D153: Pongola | E153: Pongola | F153: Pongola | G153: Pongola
C154: Elandskop | D154: Elandskop | E154: Elandskop | F154: Elandskop | G154: Elandskop
C155: N/A | D155: Skaapvlei | E155: Skaapvlei | F155: Skaapvlei | G155: Skaapvlei
C157: N/A | D157: Paleisheuwel | E157: Paleisheuwel | F157: Paleisheuwel | G157: Paleisheuwel
C158: N/A | D158: Graafwater | E158: Graafwater | F158: Graafwater | G158: Graafwater
C159: N/A | D159: N/A | E159: Melkhout | F159: Melkhout | G159: Melkhout
C160: N/A | D160: N/A | E160: Rietfontein Bess | F160: Rietfontein Bess | G160: Rietfontein Bess
C162: N/A | D162: N/A | E162: Rietfontein Solar PV | F162: Rietfontein Solar PV | G162: Rietfontein Solar PV
A163: Assessment for EV's ( Lithium iron batteries environmental provision) | C163: Electric Vehicles( EV's) | D163: Electric Vehicles( EV's) | E163: Electric Vehicles( EV's) | F163: Electric Vehicles( EV's) | G163: Electric Vehicles( EV's)
A164: Assessment for Microgrids environmental provision | C164: Microgrids | D164: Microgrids | E164: Microgrids | F164: Microgrids | G164: Microgrids
A165: Assessment for Solar PV Roof Tops environmental provision | C165: Solar PV Roof Tops | D165: Solar PV Roof Tops | E165: Solar PV Roof Tops | F165: Solar PV Roof Tops | G165: Solar PV Roof Tops
A167: Electric Vehicles, Microgrid Containers, and Solar PV Rooftops component and projects/sites to be advised
A169: Prepared by: (End User of the Contract)
A170: Name and Surname:
A171: Designation:
A172: Signature:
A173: Date:
A175: Supported and Approved by: ( End user of Contract )
A176: Name and Surname:
A177: Designation:
A178: Signature:
A179: Date:
A181: Supported and Approved by: ( End user of Contract )
A182: Name and Surname:
A183: Designation:
A184: Signature:
A185: Date:
A186: Supported and Approved by: Contract Manager
A187: Name and Surname:
A188: Designation:
A189: Signature:
A190: Date:
A191: Supported and Approved by: Senior Manager End User
A192: Name and Surname:
A193: Designation:
A194: Signature:
A195: Date:
A197: Supported by Approved: Technical Specialist /Engineering Expert
A198: Name and Surname:
A199: Designation:
A200: Signature:
A201: Date:

Sheet BESS.
A1: Services Required: | C1: Review of the decommissioning costs and componentisation in terms of International Financial Reporting Standard (IFRS) for the rehabilitation of Battery Energy Storage Systems (BESS) sites including the assessment, accounting and valuation of environmental provisions for Electric Vehicles, Solar PV and Microgrid containers within the Distribution Division for a period of 5 years.
A2: Division: | C2: DISTRIBUTION DIVISION
A3: Scope Detail | B3: Number of Consultants | C3: Number of Hours | D3: Rates | E3: Price | G3: Rates | H3: Price | J3: Rates | K3: Price | M3: Rates | N3: Price | P3: Rates | Q3: Price | R3: 5 Years Total
A5: Phase 1: Planning & Mobilization | C5: Year 1 | G5: Year 2 | J5: Year 3 | M5: Year 4 | P5: Year 5
A7: 1.1 Project Kick-off & Mobilization
A8: Confirm and define the project objectives, deliverables, timelines, and reporting requirements in line with the approved scope of work.
A9: Establish communication protocols for the full reporting cycle to ensure efficient coordination and information flow across all project stakeholders.
A11: 1.2 Regulatory & Accounting Framework Review
A12: Review applicable environmental legislation and IFRS standards for the following asset categories:
A13: . Battery Energy Storage System (BESS) | B13: 1 | E13: =B13*C13*D13 -> 0 | G13: =D13*1.08 -> 0 | H13: =G13*C13*B13 -> 0 | J13: =G13*1.08 -> 0 | K13: =J13*C13*B13 -> 0 | M13: =J13*1.08 -> 0 | N13: =M13*C13*B13 -> 0 | P13: =M13*1.08 -> 0 | Q13: =P13*C13*B13 -> 0 | R13: =Q13+N13+K13+H13+E13 -> 0
A14: Confirm and advise on compliance requirements for expected end‑of‑life activities and the decommissioning provisions to be raised by Eskom.
A15: Provide advice on the related accounting, environmental and legal obligations applicable to Eskom for these activities.
A17: Phase 2: Technical & Environmental Assumptions/Costing
A19: 2.1 Environmental, Operational and End of Life Assumptions
A20: Provide and assess the technical, environmental, operational and end‑of‑life assumptions applied, or to be applied, for all decommissioning, disposal, recycling and rehabilitation activities for which Eskom will have an obligation. This includes reviewing assumptions and methodologies for all components of the following assets:
A21: . Battery Energy Storage System (BESS) | B21: 1 | E21: =B21*C21*D21 -> 0 | G21: =D21*1.08 -> 0 | H21: =G21*C21*B21 -> 0 | J21: =G21*1.08 -> 0 | K21: =J21*C21*B21 -> 0 | M21: =J21*1.08 -> 0 | N21: =M21*C21*B21 -> 0 | P21: =M21*1.08 -> 0 | Q21: =P21*C21*B21 -> 0 | R21: =Q21+N21+K21+H21+E21 -> 0
A22: 2.1.1 All BESS sites and components (including but not limited to):
A23: · Power Conversion Systems (PCS)
A24: · Battery Racks/ Battery Cabinet (LFP-based, supplied by CATL)
A25: · Energy Management Systems (EMS)
A26: · Network Integration Equipment (NIE), including:
A27: · Auxiliary and Inverter Transformers
A28: · Ring Main Units (RMU)
A29: · Indoor Switchgear
A30: · AC cabinet
A31: · DC combiner
A32: · Balance of Plant
A34: 2.1.2 All components of Electric Vehicles, Microgrid Containers, and Solar PV Rooftops (breakdown of components to be confirmed) | R34: 0
A35: Consultants must confirm and recommend best‑practice approaches for decommissioning, disposal, recycling and rehabilitation, and provide advice on the valuation methodologies, technical approaches, and assessment of decommissioning/recycling/rehabilitation techniques currently applied.
A36: . Battery Energy Storage System (BESS) | B36: 1 | E36: =B36*C36*D36 -> 0 | G36: =D36*1.08 -> 0 | H36: =G36*C36*B36 -> 0 | J36: =G36*1.08 -> 0 | K36: =J36*C36*B36 -> 0 | M36: =J36*1.08 -> 0 | N36: =M36*C36*B36 -> 0 | P36: =M36*1.08 -> 0 | Q36: =P36*C36*B36 -> 0 | R36: =Q36+N36+K36+H36+E36 -> 0
A37: Include assessment of site rehabilitation requirements at the end of useful life for all relevant assets (BESS, Electric Vehicles, Microgrid Containers, and Solar PV Rooftops), ensuring that environmental, land‑restoration, and site‑reinstatement obligations are fully identified and incorporated into end‑of‑life assumptions and methodologies. (provide relevant benchmarks and best practices).
A39: 2.2 Costing and Activities Estimates and Assumptions
A40: Provide and assess all costing assumptions and estimates used to determine end‑of‑life decommissioning and rehabilitation obligations, including quantities, rates, contingency allowances, discounting considerations, cash‑flow estimates and timing, rehabilitation and disposal costs (basis and benchmarks applied, other costing benchmarking, and best‑practice methodologies applicable to renewable energy assets .Battery Energy Storage Systems, Electric Vehicles, Microgrid Containers and Solar PV Rooftops. This includes providing expert advice on appropriate costing techniques and methodologies.
A41: . Battery Energy Storage System (BESS) | B41: 1 | E41: =B41*C41*D41 -> 0 | G41: 0 | H41: 0 | J41: 0 | K41: 0 | M41: 0 | N41: 0 | P41: 0 | Q41: 0 | R41: 0
A42: Activities may include but not limited (BESS plant activitities included below for illustrative purposes but are not limited):
A43: Demolition,Removals/disassembly,Rigging and lifting,transportation,Disposal,Recycling, Rehabilitation,Contingencies,Scrap value calculations
A45: 2.3 Component Coverage
A46: Provide and assess in terms of the completeness of component coverage in terms of activities and costing for BESS plants, Electric Vehicles, Microgrid Containers, and Solar PV Rooftops, including all associated activities and costs linked to decommissioning, rehabilitation and recycling.
A47: . Battery Energy Storage System (BESS) | B47: 1 | E47: =B47*C47*D47 -> 0 | G47: 0 | H47: 0 | J47: 0 | K47: 0 | M47: 0 | N47: 0 | P47: 0 | Q47: 0 | R47: 0
A48: Provide and confirm, based on best practice, whether all applicable end‑of‑life activities and cost and activities categories have been appropriately included (proof of best practice and benchmarking to be provided).
A49: BESS example: (may not be limited)
A50: · Power Conversion Systems (PCS)
A51: · Battery Racks/ Battery Cabinet (LFP-based, supplied by CATL)
A52: · Energy Management Systems (EMS)
A53: · Network Integration Equipment (NIE), including:
A54: · Auxiliary and Inverter Transformers
A55: · Ring Main Units (RMU)
A56: · Indoor Switchgear
A57: · AC cabinet
A58: · DC combiner
A60: 2.4 Provision Completeness
A61: Review and advise in terms of the completeness of the provision to ensure all decommissioning, disposal, rehabilitation, and end‑of‑life activities and associated costs for BESS plants, Electric Vehicles, Microgrid Containers, and Solar PV Rooftops are adequately identified and included.
A62: . Battery Energy Storage System (BESS) | B62: 1 | E62: =B62*C62*D62 -> 0 | G62: 0 | H62: 0 | J62: 0 | K62: 0 | M62: 0 | N62: 0 | P62: 0 | Q62: 0 | R62: 0
A64: 2.5 Initial & Subsequent Cost Estimation (by Commissioning Date)
A65: Prepare initial and subsequent cost estimations (including contingency costs) based on commissioning dates of each site or plant, including estimations applicable to prior reporting periods (e.g., FY2025) based on the date each asset was brought into commercial operation.
A66: . Battery Energy Storage System (BESS) | B66: 1 | E66: =B66*C66*D66 -> 0 | G66: =D66*1.08 -> 0 | H66: =G66*C66*B66 -> 0 | J66: =G66*1.08 -> 0 | K66: =J66*C66*B66 -> 0 | M66: =J66*1.08 -> 0 | N66: =M66*C66*B66 -> 0 | P66: =M66*1.08 -> 0 | Q66: =P66*C66*B66 -> 0 | R66: =Q66+N66+K66+H66+E66 -> 0
A68: 2.6 Closure Cost & Cash Flow
A69: Assess, review and advise on the assumptions used to determine closure costs, the related cash flows, timing of cash flows, discounting matters thereof, for purposes of calculating the present‑value gross liability associated with BESS sites, Electric Vehicles, Microgrid Containers, and Solar PV Rooftops.
A70: Provide and advise on the best‑practice approaches for escalating these costs up to the point of executing end‑of‑life activities
A71: . Battery Energy Storage System (BESS) | B71: 1 | E71: =B71*C71*D71 -> 0 | G71: 0 | H71: 0 | J71: 0 | K71: 0 | M71: 0 | N71: 0 | P71: 0 | Q71: 0 | R71: 0
A73: 2.7 Decommissioning Plan Development
A74: Develop and provide support in maintaining a comprehensive decommissioning plan for BESS sites, Electric Vehicles, Microgrid Containers, and Solar PV Rooftops.
A75: Ensure the plan is reviewed and updated frequently and remains aligned with technical, environmental, and financial considerations.
A76: The consulting experts must prepare a decommissioning risk assessment for each asset category (BESS, Electric Vehicles, Microgrid Containers, and Solar PV Rooftops), identifying all relevant financial, environmental, operational, and regulatory risks associated with end‑of‑life activities, assessing the probability and impact of each risk together with applicable mitigation measures and financial implications, evaluating how these risks may influence decommissioning costs, closure liabilities, cash‑flow timing, or overall provision estimates, and providing expert recommendations on mitigation strategies to support effective, compliant, and cost‑efficient execution of decommissioning and rehabilitation activities.
A77: Assess and provide advice on the period in terms of the end of life dates.
A78: . Battery Energy Storage System (BESS) | B78: 1 | E78: =B78*C78*D78 -> 0 | G78: 0 | H78: 0 | J78: 0 | K78: 0 | M78: 0 | N78: 0 | P78: 0 | Q78: 0 | R78: 0
A80: 2.8 Accounting Support (IFRS)
A81: Provide assistance and support relating to the accounting implications nuance matters in terms of the decommissioning and rehabilitation and end of life activities for BESS sites, Electric Vehicles, Microgrid Containers, and Solar PV Rooftops. These include but is not limited to: Augmentation vs Replacement: Confirm the correct IFRS treatment for augmentation, ensuring no derecognition of existing racks and advising on impacts to the decommissioning asset and provision. Single Decommissioning Event: Confirm that all racks are decommissioned once at end of plant life with no interim disposals, and advise on modelling, timing, liability build‑up, unwinding and disclosure. Depreciation Policy: Confirm depreciation of the decommissioning asset over the plant life, considering augmentation, and provide IFRS‑aligned policy guidance. Componentisation (FAR Alignment): Review asset components and confirm that the Fixed Asset Register aligns with IFRS componentisation and classification requirements. Battery Degradation & Impairment: Support annual SOH (state of health/health index) testing and advise on impairment, useful life, and residual value adjustments where degradation is identified
A82: Provide IFRS‑compliant disclosures for relevant provisions and decomissioning assets raised at each year‑end.
A83: . Battery Energy Storage System (BESS) | B83: 1 | E83: =B83*C83*D83 -> 0 | G83: 0 | H83: 0 | J83: 0 | K83: 0 | M83: 0 | N83: 0 | P83: 0 | Q83: 0 | R83: 0
A85: 2.9 Useful Life Review
A86: Review, assess and advise on the useful life assumptions in terms of the decommissioning asset side of the provision applied to BESS sites, Electric Vehicles, Microgrid Containers, and Solar PV Rooftops, ensuring alignment with component‑level asset lifespans.
A87: Valuation of assets at end-of-life for EVs, Microgrid Containers, and Solar PV Rooftops, including assessment of residual value and integration into closure cost models.
A88: . Battery Energy Storage System (BESS) | B88: 1 | E88: =B88*C88*D88 -> 0 | G88: 0 | H88: 0 | J88: 0 | K88: 0 | M88: 0 | N88: 0 | P88: 0 | Q88: 0 | R88: 0
A90: 2.10 Audit Engagement Participation
A91: Engage and participate in internal and external audit processes until audit completion for all decommissioning‑related deliverables for BESS sites, Electric Vehicles, Microgrid Containers, and Solar PV Rooftops.
A92: Ensure availability of technical experts as required (in‑person or via MS Teams; number of meetings not limited).
A94: 2.11 Plant Health Assessment
A95: Conduct plant health assessment at each station where BESS sites, Electric Vehicles, Microgrid Containers, and Solar PV Rooftops are located.
A96: . Battery Energy Storage System (BESS) | B96: 1 | E96: =B96*C96*D96 -> 0 | G96: =D96*1.08 -> 0 | H96: =G96*C96*B96 -> 0 | J96: =G96*1.08 -> 0 | K96: =J96*C96*B96 -> 0 | M96: =J96*1.08 -> 0 | N96: =M96*C96*B96 -> 0 | P96: =M96*1.08 -> 0 | Q96: =P96*C96*B96 -> 0 | R96: =Q96+N96+K96+H96+E96 -> 0
A97: Use this to estimate quantities and confirm decommissioning and rehabilitation (end‑of‑life) activities and cost estimates for relevant activities and processed. This also includes assessing the asset condition, environmental risks, on‑site dismantling/decommissioning constraints.
A98: The consulting experts must verify the condition of all BESS battery components to assess their physical state, performance, and any degradation since installation. This includes independent technical testing, capacity and state‑of‑health (SOH) measurements, and comparison to manufacturer specifications and original commissioning data. If degradation is found, the consultants must quantify it and recommend any required impairment in line with IFRS (IAS 36 and IAS 16). The assessment must also show how the degradation affects remaining useful life, residual value, and future decommissioning costs.
A100: 2.12 Scenario and stress testing
A101: The consulting experts must perform a scenario analysis to assess how changes in key assumptions may affect decommissioning and rehabilitation cost estimates. For each scenario considered, the experts must provide clear assumptions, updated cost models, revised cash‑flow projections, and IFRS‑aligned present‑value calculations, together with expert commentary on financial impacts and key risk drivers to support robust valuation, audit defensibility, and management decision‑making.
A102: Possible re‑valuation may be required where errors are identified, or where audit findings, risk assessments, or changes in business or plant requirements necessitate correction or re-evaluation. Such re‑valuation must be undertaken accordingly; however, any costs arising from errors made by the consultants will not be borne by Eskom.
A103: . Battery Energy Storage System (BESS) | B103: 1 | E103: =B103*C103*D103 -> 0 | G103: 0 | H103: 0 | J103: 0 | K103: 0 | M103: 0 | N103: 0 | P103: 0 | Q103: 0 | R103: 0
A105: 2.13 Deliverable
A106: Provide valuation reports and support for the major reporting periods (September and March of the contract period) in accordance with the above scope. Reports must include decommissioning costs, closure liabilities, cash‑flow timing, or overall provision estimates, authoritative positions, assumptions, benchmarks, and methodologies applied by the consulting experts etc., and must be submitted timeously before the relevant reporting deadlines.
A107: Where necessary - written reports for accounting positions/guidance/advice, scenario's and risk assessments etc.
A108: Note: Disclosures submissions are required for the March reporting period only for the duration of the contract
A109: . Battery Energy Storage System (BESS) | B109: 1 | E109: =B109*C109*D109 -> 0 | G109: 0 | H109: 0 | J109: 0 | K109: 0 | M109: 0 | N109: 0 | P109: 0 | Q109: 0 | R109: 0
E110: =SUM(E8:E109) -> 0 | H110: =SUM(H8:H109) -> 0 | K110: =SUM(K8:K109) -> 0 | N110: =SUM(N8:N109) -> 0 | Q110: =SUM(Q8:Q109) -> 0 | R110: =Q110+N110+K110+H110+E110 -> 0
A112: The following BESS plants will be assessed over the 5-year period (subject to change based on business needs): | C112: Year 1 (2026) | D112: Year 2 (2027) | E112: Year 3 (2028) | F112: Year 4 (2029) | G112: Year 5 (2030)
C113: Hex | D113: Hex | E113: Hex | F113: Hex | G113: Hex
C114: Pongola | D114: Pongola | E114: Pongola | F114: Pongola | G114: Pongola
C115: Elandskop | D115: Elandskop | E115: Elandskop | F115: Elandskop | G115: Elandskop
C116: N/A | D116: Skaapvlei | E116: Skaapvlei | F116: Skaapvlei | G116: Skaapvlei
C118: N/A | D118: Paleisheuwel | E118: Paleisheuwel | F118: Paleisheuwel | G118: Paleisheuwel
C119: N/A | D119: Graafwater | E119: Graafwater | F119: Graafwater | G119: Graafwater
C120: N/A | D120: N/A | E120: Melkhout | F120: Melkhout | G120: Melkhout
C121: N/A | D121: N/A | E121: Rietfontein Bess | F121: Rietfontein Bess | G121: Rietfontein Bess
C123: N/A | D123: N/A | E123: Rietfontein Solar PV | F123: Rietfontein Solar PV | G123: Rietfontein Solar PV
A124: Assessment for EV's ( Lithium iron batteries environmental provision) | C124: Electric Vehicles( EV's) | D124: Electric Vehicles( EV's) | E124: Electric Vehicles( EV's) | F124: Electric Vehicles( EV's) | G124: Electric Vehicles( EV's)
A125: Assessment for Microgrids environmental provision | C125: Microgrids | D125: Microgrids | E125: Microgrids | F125: Microgrids | G125: Microgrids
A126: Assessment for Solar PV Roof Tops environmental provision | C126: Solar PV Roof Tops | D126: Solar PV Roof Tops | E126: Solar PV Roof Tops | F126: Solar PV Roof Tops | G126: Solar PV Roof Tops
A128: Electric Vehicles, Microgrid Containers, and Solar PV Rooftops component and projects/sites to be advised
A130: Prepared by: (End User of the Contract)
A131: Name and Surname:
A132: Designation:
A133: Signature:
A134: Date:
A136: Supported and Approved by: ( End user of Contract )
A137: Name and Surname:
A138: Designation:
A139: Signature:
A140: Date:
A142: Supported and Approved by: ( End user of Contract )
A143: Name and Surname:
A144: Designation:
A145: Signature:
A146: Date:
A147: Supported and Approved by: Contract Manager
A148: Name and Surname:
A149: Designation:
A150: Signature:
A151: Date:
A152: Supported and Approved by: Senior Manager End User
A153: Name and Surname:
A154: Designation:
A155: Signature:
A156: Date:
A158: Supported by Approved: Technical Specialist /Engineering Expert
A159: Name and Surname:
A160: Designation:
A161: Signature:
A162: Date:

Sheet BESS (hidden)
A1: Services Required: | C1: BESS AND OTHER ENVIRONMENTAL PROVISIONS/OBLIGATIONS CONSULTING SERVICES (END OF LIFE ACTIVITIES – DECOMMISSIONING AND REHABILITATION PROVISIONS).
A2: Division: | C2: DISTRIBUTION DIVISION
A3: Scope Detail | B3: Number of Consultants | C3: Number of Hours | D3: Rates | E3: Price | G3: Rates | H3: Price | J3: Rates | K3: Price | M3: Rates | N3: Price | P3: Rates | Q3: Price | R3: 5 Years Total
A5: Phase 1: Planning & Mobilization | C5: Year 1 | G5: Year 2 | J5: Year 3 | M5: Year 4 | P5: Year 5
A7: 1. Project Kick-off & Mobilization
A8: Confirm and define the project objectives, deliverables, timelines, and reporting requirements in line with the approved scope of work. | B8: 6 | C8: 4 | D8: R1,961 | E8: =B8*C8*D8 -> R47,064 | G8: =D8*1.08 -> R2,117.88 | H8: =G8*C8*B8 -> R50,829 | J8: =G8*1.08 -> R2,287.31 | K8: =J8*C8*B8 -> R54,895.45 | M8: =J8*1.08 -> R2,470.30 | N8: =M8*C8*B8 -> R59,287.09 | P8: =M8*1.08 -> R2,667.92 | Q8: =P8*C8*B8 -> R64,030.05 | R8: =Q8+N8+K8+H8+E8 -> R276,106
A9: Establish communication protocols for the full reporting cycle to ensure efficient coordination and information flow across all project stakeholders. | B9: 6 | C9: 2 | D9: R1,961 | E9: =B9*C9*D9 -> R23,532 | G9: =D9*1.08 -> R2,117.88 | H9: =G9*C9*B9 -> R25,415 | J9: =G9*1.08 -> R2,287.31 | K9: =J9*C9*B9 -> R27,447.72 | M9: =J9*1.08 -> R2,470.30 | N9: =M9*C9*B9 -> R29,643.54 | P9: =M9*1.08 -> R2,667.92 | Q9: =P9*C9*B9 -> R32,015.03 | R9: R138,053
A11: 2. Regulatory & Accounting Framework Review
A12: Review applicable environmental legislation and IFRS standards for the following asset categories:
A13: 1) Battery Energy Storage System (BESS) | B13: 1 | C13: 3 | D13: R1,961 | E13: =B13*C13*D13 -> R5,883 | G13: =D13*1.08 -> R2,117.88 | H13: =G13*C13*B13 -> R6,354 | J13: =G13*1.08 -> R2,287.31 | K13: R6,861.93 | M13: =J13*1.08 -> R2,470.30 | N13: R7,410.89 | P13: =M13*1.08 -> R2,667.92 | Q13: R8,003.76 | R13: R34,513
A14: Confirm and advise on compliance requirements for expected end‑of‑life activities and the decommissioning provisions to be raised by Eskom.
A15: Provide advice on the related accounting, environmental and legal obligations applicable to Eskom for these activities.
A17: Phase 2: Technical & Environmental Assumptions/Costing
A19: 3. Environmental, Operational and End of Life Assumptions
A20: Provide and assess the technical, environmental, operational and end‑of‑life assumptions applied, or to be applied, for all decommissioning, disposal, recycling and rehabilitation activities for which Eskom will have an obligation. This includes reviewing assumptions and methodologies for all components of the following assets:
A21: (1) All BESS sites and components (including but not limited to): | B21: 1 | C21: 3 | D21: R1,961 | E21: =B21*C21*D21 -> R5,883
A22: · Power Conversion Systems (PCS)
A23: · Battery Racks/ Battery Cabinet (LFP-based, supplied by CATL)
A24: · Energy Management Systems (EMS)
A25: · Network Integration Equipment (NIE), including:
A26: · Auxiliary and Inverter Transformers
A27: · Ring Main Units (RMU)
A28: · Indoor Switchgear
A29: · AC cabinet
A30: · DC combiner
A31: · Balance of Plant
A33: (2) All components of Electric Vehicles, Microgrid Containers, and Solar PV Rooftops (breakdown of components to be confirmed) | B33: 1 | C33: 3 | D33: R1,961 | E33: =B33*C33*D33 -> R5,883
A34: Consultants must confirm and recommend best‑practice approaches for decommissioning, disposal, recycling and rehabilitation, and provide advice on the valuation methodologies, technical approaches, and assessment of decommissioning/recycling/rehabilitation techniques currently applied.
A35: Include assessment of site rehabilitation requirements at the end of useful life for all relevant assets (BESS, Electric Vehicles, Microgrid Containers, and Solar PV Rooftops), ensuring that environmental, land‑restoration, and site‑reinstatement obligations are fully identified and incorporated into end‑of‑life assumptions and methodologies. (provide relevant benchmarks and best practices).
A37: 4. Costing and Activities Estimates and Assumptions
A38: Provide and assess all costing assumptions and estimates used to determine end‑of‑life decommissioning and rehabilitation obligations, including quantities, rates, contingency allowances, discounting considerations, cash‑flow estimates and timing, rehabilitation and disposal costs (basis and benchmarks applied, other costing benchmarking, and best‑practice methodologies applicable to renewable energy assets .Battery Energy Storage Systems, Electric Vehicles, Microgrid Containers and Solar PV Rooftops. This includes providing expert advice on appropriate costing techniques and methodologies.
A39: 1) Battery Energy Storage System (BESS) | B39: 1 | C39: 40 | D39: R1,961 | E39: =B39*C39*D39 -> R78,440 | G39: =D39*1.08 -> R2,117.88 | H39: R84,715 | J39: =G39*1.08 -> R2,287.31 | K39: R91,492.42 | M39: =J39*1.08 -> R2,470.30 | N39: R98,811.81 | P39: =M39*1.08 -> R2,667.92 | Q39: R106,716.75 | R39: R460,176
A40: Activities may include but not limited (BESS plant activitities included below for illustrative purposes but are not limited):
A41: Demolition,Removals/disassembly,Rigging and lifting,transportation,Disposal,Recycling, Rehabilitation,Contingencies,Scrap value calculations
A43: 5. Component Coverage
A44: Provide and assess in terms of the completeness of component coverage in terms of activities and costing for BESS plants, Electric Vehicles, Microgrid Containers, and Solar PV Rooftops, including all associated activities and costs linked to decommissioning, rehabilitation and recycling.
A45: 1) Battery Energy Storage System (BESS) | B45: 1 | C45: 40 | D45: R1,961 | E45: =B45*C45*D45 -> R78,440 | G45: =D45*1.08 -> R2,117.88 | H45: R84,715 | J45: =G45*1.08 -> R2,287.31 | K45: R91,492.42 | M45: =J45*1.08 -> R2,470.30 | N45: R98,811.81 | P45: =M45*1.08 -> R2,667.92 | Q45: R106,716.75 | R45: R460,176
A46: Provide and confirm, based on best practice, whether all applicable end‑of‑life activities and cost and activities categories have been appropriately included (proof of best practice and benchmarking to be provided).
A47: BESS example: (may not be limited)
A48: · Power Conversion Systems (PCS)
A49: · Battery Racks/ Battery Cabinet (LFP-based, supplied by CATL)
A50: · Energy Management Systems (EMS)
A51: · Network Integration Equipment (NIE), including:
A52: · Auxiliary and Inverter Transformers
A53: · Ring Main Units (RMU)
A54: · Indoor Switchgear
A55: · AC cabinet
A56: · DC combiner
A58: 6. Provision Completeness
A59: Review and advise in terms of the completeness of the provision to ensure all decommissioning, disposal, rehabilitation, and end‑of‑life activities and associated costs for BESS plants, Electric Vehicles, Microgrid Containers, and Solar PV Rooftops are adequately identified and included.
A60: 1) Battery Energy Storage System (BESS) | B60: 1 | C60: 10 | D60: R1,961 | E60: =B60*C60*D60 -> R19,610 | G60: =D60*1.08 -> R2,117.88 | H60: R21,179 | J60: =G60*1.08 -> R2,287.31 | K60: R22,873.10 | M60: =J60*1.08 -> R2,470.30 | N60: R24,702.95 | P60: =M60*1.08 -> R2,667.92 | Q60: R26,679.19 | R60: R115,044
A62: 7. Initial & Subsequent Cost Estimation (by Commissioning Date)
A63: Prepare initial and subsequent cost estimations (including contingency costs) based on commissioning dates of each site or plant, including estimations applicable to prior reporting periods (e.g., FY2025) based on the date each asset was brought into commercial operation.
A64: 1) Battery Energy Storage System (BESS) | B64: 1 | C64: 10 | D64: R1,961 | E64: =B64*C64*D64 -> R19,610 | G64: =D64*1.08 -> R2,117.88 | H64: =G64*C64*B64 -> R21,179 | J64: =G64*1.08 -> R2,287.31 | K64: =J64*C64*B64 -> R22,873.10 | M64: =J64*1.08 -> R2,470.30 | N64: =M64*C64*B64 -> R24,702.95 | P64: =M64*1.08 -> R2,667.92 | Q64: =P64*C64*B64 -> R26,679.19 | R64: =Q64+N64+K64+H64+E64 -> R115,044
A66: 8. Closure Cost & Cash Flow
A67: Assess, review and advise on the assumptions used to determine closure costs, the related cash flows, timing of cash flows, discounting matters thereof, for purposes of calculating the present‑value gross liability associated with BESS sites, Electric Vehicles, Microgrid Containers, and Solar PV Rooftops.
A68: Provide and advise on the best‑practice approaches for escalating these costs up to the point of executing end‑of‑life activities
A69: 1) Battery Energy Storage System (BESS) | B69: 1 | C69: 10 | D69: R1,961 | E69: =B69*C69*D69 -> R19,610 | G69: =D69*1.08 -> R2,117.88 | H69: R21,179 | J69: =G69*1.08 -> R2,287.31 | K69: R22,873.10 | M69: =J69*1.08 -> R2,470.30 | N69: R24,702.95 | P69: =M69*1.08 -> R2,667.92 | Q69: R26,679.19 | R69: R115,044
A71: 9. Decommissioning Plan Development
A72: Develop and provide support in maintaining a comprehensive decommissioning plan for BESS sites, Electric Vehicles, Microgrid Containers, and Solar PV Rooftops.
A73: Ensure the plan is reviewed and updated frequently and remains aligned with technical, environmental, and financial considerations.
A74: The consulting experts must prepare a decommissioning risk assessment for each asset category (BESS, Electric Vehicles, Microgrid Containers, and Solar PV Rooftops), identifying all relevant financial, environmental, operational, and regulatory risks associated with end‑of‑life activities, assessing the probability and impact of each risk together with applicable mitigation measures and financial implications, evaluating how these risks may influence decommissioning costs, closure liabilities, cash‑flow timing, or overall provision estimates, and providing expert recommendations on mitigation strategies to support effective, compliant, and cost‑efficient execution of decommissioning and rehabilitation activities.
A75: Assess and provide advice on the period in terms of the end of life dates.
A76: 1) Battery Energy Storage System (BESS) | B76: 1 | C76: 20 | D76: R1,961 | E76: =B76*C76*D76 -> R39,220 | G76: =D76*1.08 -> R2,117.88 | H76: R42,358 | J76: =G76*1.08 -> R2,287.31 | K76: R45,746.21 | M76: =J76*1.08 -> R2,470.30 | N76: R49,405.90 | P76: =M76*1.08 -> R2,667.92 | Q76: R53,358.38 | R76: R230,088
A78: 10. Accounting Support (IFRS)
A79: Provide assistance and support relating to the accounting implications nuance matters in terms of the decommissioning and rehabilitation and end of life activities for BESS sites, Electric Vehicles, Microgrid Containers, and Solar PV Rooftops. These include but is not limited to: Augmentation vs Replacement: Confirm the correct IFRS treatment for augmentation, ensuring no derecognition of existing racks and advising on impacts to the decommissioning asset and provision. Single Decommissioning Event: Confirm that all racks are decommissioned once at end of plant life with no interim disposals, and advise on modelling, timing, liability build‑up, unwinding and disclosure. Depreciation Policy: Confirm depreciation of the decommissioning asset over the plant life, considering augmentation, and provide IFRS‑aligned policy guidance. Componentisation (FAR Alignment): Review asset components and confirm that the Fixed Asset Register aligns with IFRS componentisation and classification requirements. Battery Degradation & Impairment: Support annual SOH (state of health/health index) testing and advise on impairment, useful life, and residual value adjustments where degradation is identified
A80: Provide IFRS‑compliant disclosures for relevant provisions and decomissioning assets raised at each year‑end.
A81: 1) Battery Energy Storage System (BESS) | B81: 1 | C81: 20 | D81: R1,961 | E81: =B81*C81*D81 -> R39,220 | G81: =D81*1.08 -> R2,117.88 | H81: R42,358 | J81: =G81*1.08 -> R2,287.31 | K81: R45,746.21 | M81: =J81*1.08 -> R2,470.30 | N81: R49,405.90 | P81: =M81*1.08 -> R2,667.92 | Q81: R53,358.38 | R81: R230,088
A83: 11. Useful Life Review
A84: Review, assess and advise on the useful life assumptions in terms of the decommissioning asset side of the provision applied to BESS sites, Electric Vehicles, Microgrid Containers, and Solar PV Rooftops, ensuring alignment with component‑level asset lifespans.
A85: Valuation of assets at end-of-life for EVs, Microgrid Containers, and Solar PV Rooftops, including assessment of residual value and integration into closure cost models.
A86: 1) Battery Energy Storage System (BESS) | B86: 1 | C86: 20 | D86: R1,961 | E86: =B86*C86*D86 -> R39,220 | G86: =D86*1.08 -> R2,117.88 | H86: R42,358 | J86: =G86*1.08 -> R2,287.31 | K86: R45,746.21 | M86: =J86*1.08 -> R2,470.30 | N86: R49,405.90 | P86: =M86*1.08 -> R2,667.92 | Q86: R53,358.38 | R86: R230,088
A88: 12. Audit Engagement Participation
A89: Engage and participate in internal and external audit processes until audit completion for all decommissioning‑related deliverables for BESS sites, Electric Vehicles, Microgrid Containers, and Solar PV Rooftops. | B89: 3 | C89: 10 | D89: R1,961 | E89: =B89*C89*D89 -> R58,830 | G89: =D89*1.08 -> R2,117.88 | H89: R63,536 | J89: =G89*1.08 -> R2,287.31 | K89: R68,619.31 | M89: =J89*1.08 -> R2,470.30 | N89: R74,108.86 | P89: =M89*1.08 -> R2,667.92 | Q89: R80,037.57 | R89: R345,132
A90: Ensure availability of technical experts as required (in‑person or via MS Teams; number of meetings not limited).
A92: 13. Plant Health Assessment
A93: Conduct plant health assessment at each station where BESS sites, Electric Vehicles, Microgrid Containers, and Solar PV Rooftops are located.
A94: Use this to estimate quantities and confirm decommissioning and rehabilitation (end‑of‑life) activities and cost estimates for relevant activities and processed. This also includes assessing the asset condition, environmental risks, on‑site dismantling/decommissioning constraints.
A95: The consulting experts must verify the condition of all BESS battery components to assess their physical state, performance, and any degradation since installation. This includes independent technical testing, capacity and state‑of‑health (SOH) measurements, and comparison to manufacturer specifications and original commissioning data. If degradation is found, the consultants must quantify it and recommend any required impairment in line with IFRS (IAS 36 and IAS 16). The assessment must also show how the degradation affects remaining useful life, residual value, and future decommissioning costs.
A97: 14. Scenario and stress testing
A98: The consulting experts must perform a scenario analysis to assess how changes in key assumptions may affect decommissioning and rehabilitation cost estimates. For each scenario considered, the experts must provide clear assumptions, updated cost models, revised cash‑flow projections, and IFRS‑aligned present‑value calculations, together with expert commentary on financial impacts and key risk drivers to support robust valuation, audit defensibility, and management decision‑making.
A99: Possible re‑valuation may be required where errors are identified, or where audit findings, risk assessments, or changes in business or plant requirements necessitate correction or re-evaluation. Such re‑valuation must be undertaken accordingly; however, any costs arising from errors made by the consultants will not be borne by Eskom.
A100: 1) Battery Energy Storage System (BESS) | B100: 1 | C100: 20 | D100: R1,961 | E100: =B100*C100*D100 -> R39,220 | G100: =D100*1.08 -> R2,117.88 | H100: R42,358 | J100: =G100*1.08 -> R2,287.31 | K100: R45,746.21 | M100: =J100*1.08 -> R2,470.30 | N100: R49,405.90 | P100: =M100*1.08 -> R2,667.92 | Q100: R53,358.38 | R100: R230,088
A102: 15. Deliverable
A103: Provide valuation reports and support for the major reporting periods (September and March of the contract period) in accordance with the above scope. Reports must include decommissioning costs, closure liabilities, cash‑flow timing, or overall provision estimates, authoritative positions, assumptions, benchmarks, and methodologies applied by the consulting experts etc., and must be submitted timeously before the relevant reporting deadlines.
A104: Where necessary - written reports for accounting positions/guidance/advice, scenario's and risk assessments etc.
A105: Note: Disclosures submissions are required for the March reporting period only for the duration of the contract
A106: 1) Battery Energy Storage System (BESS) | B106: 1 | C106: 20 | D106: R1,961 | E106: =B106*C106*D106 -> R39,220 | G106: =D106*1.08 -> R2,117.88 | H106: R42,358 | J106: =G106*1.08 -> R2,287.31 | K106: R45,746.21 | M106: =J106*1.08 -> R2,470.30 | N106: R49,405.90 | P106: =M106*1.08 -> R2,667.92 | Q106: R53,358.38 | R106: R230,088
E107: =SUM(E8:E106) -> R558,885 | H107: =SUM(H8:H106) -> R590,889 | K107: =SUM(K8:K106) -> R638,160 | N107: =SUM(N8:N106) -> R689,212 | Q107: =SUM(Q8:Q106) -> R744,349 | R107: =Q107+N107+K107+H107+E107 -> R3,221,495
A109: The following BESS plants will be assessed over the 5-year period (subject to change based on business needs): | C109: Year 1 (2026) | D109: Year 2 (2027) | E109: Year 3 (2028) | F109: Year 4 (2029) | G109: Year 5 (2030)
C110: Hex | D110: Hex | E110: Hex | F110: Hex | G110: Hex
C111: Pongola | D111: Pongola | E111: Pongola | F111: Pongola | G111: Pongola
C112: Elandskop | D112: Elandskop | E112: Elandskop | F112: Elandskop | G112: Elandskop
C113: N/A | D113: Skaapvlei | E113: Skaapvlei | F113: Skaapvlei | G113: Skaapvlei
C115: N/A | D115: Paleisheuwel | E115: Paleisheuwel | F115: Paleisheuwel | G115: Paleisheuwel
C116: N/A | D116: Graafwater | E116: Graafwater | F116: Graafwater | G116: Graafwater
C117: N/A | D117: N/A | E117: Melkhout | F117: Melkhout | G117: Melkhout
C118: N/A | D118: N/A | E118: Rietfontein Bess | F118: Rietfontein Bess | G118: Rietfontein Bess
C120: N/A | D120: N/A | E120: Rietfontein Solar PV | F120: Rietfontein Solar PV | G120: Rietfontein Solar PV
A121: Assessment for EV's ( Lithium iron batteries environmental provision) | C121: Electric Vehicles( EV's) | D121: Electric Vehicles( EV's) | E121: Electric Vehicles( EV's) | F121: Electric Vehicles( EV's) | G121: Electric Vehicles( EV's)
A122: Assessment for Microgrids environmental provision | C122: Microgrids | D122: Microgrids | E122: Microgrids | F122: Microgrids | G122: Microgrids
A123: Assessment for Solar PV Roof Tops environmental provision | C123: Solar PV Roof Tops | D123: Solar PV Roof Tops | E123: Solar PV Roof Tops | F123: Solar PV Roof Tops | G123: Solar PV Roof Tops
A125: Electric Vehicles, Microgrid Containers, and Solar PV Rooftops component and projects/sites to be advised
A127: Prepared by: (End User of the Contract)
A128: Name and Surname: Nadia Alli
A129: Designation: Senior Advisor Financial Accounting and Compliance
A130: Signature:
A131: Date:
A133: Supported and Approved by: Contract Manager
A134: Name and Surname: Ivanke Van Der Linde
A135: Designation: Middle Manager Financial Accounting and Compliance
A136: Signature:
A137: Date:
A139: Supported and Approved by: Supporting E-Band Manager
A140: Name and Surname: Jayalakshmi Govender
A141: Designation: Senior Manager Central East Cluster (KZN and FS FBC)
A142: Signature:
A143: Date:
A145: Supported by Approved: Technical Specialist /Engineering Expert
A146: Name and Surname: Thomas Jacobs
A147: Designation:
A148: Signature:
A149: Date:

Sheet Electric Vehicles.
A1: Services Required: | C1: Review of the decommissioning costs and componentisation in terms of International Financial Reporting Standard (IFRS) for the rehabilitation of Battery Energy Storage Systems (BESS) sites including the assessment, accounting and valuation of environmental provisions for Electric Vehicles, Solar PV and Microgrid containers within the Distribution Division for a period of 5 years.
A2: Division: | C2: DISTRIBUTION DIVISION
A3: Scope Detail | B3: Number of Consultants | C3: Number of Hours | D3: Rates | E3: Price | G3: Rates | H3: Price | J3: Rates | K3: Price | M3: Rates | N3: Price | P3: Rates | Q3: Price | R3: 5 Years Total
A5: Phase 1: Planning & Mobilization | C5: Year 1 | G5: Year 2 | J5: Year 3 | M5: Year 4 | P5: Year 5
A7: 1.1 Project Kick-off & Mobilization
A8: Confirm and define the project objectives, deliverables, timelines, and reporting requirements in line with the approved scope of work.
A9: Establish communication protocols for the full reporting cycle to ensure efficient coordination and information flow across all project stakeholders.
A11: 1.2 Regulatory & Accounting Framework Review
A12: Review applicable environmental legislation and IFRS standards for the following asset categories:
A13: . Electric Vehicle Components | B13: 1 | E13: =B13*C13*D13 -> 0 | G13: =D13*1.08 -> 0 | H13: =G13*C13*B13 -> 0 | J13: =G13*1.08 -> 0 | K13: =J13*C13*B13 -> 0 | M13: =J13*1.08 -> 0 | N13: =M13*C13*B13 -> 0 | P13: =M13*1.08 -> 0 | Q13: =P13*C13*B13 -> 0 | R13: =Q13+N13+K13+H13+E13 -> 0
A14: Confirm and advise on compliance requirements for expected end‑of‑life activities and the decommissioning provisions to be raised by Eskom.
A15: Provide advice on the related accounting, environmental and legal obligations applicable to Eskom for these activities.
A17: Phase 2: Technical & Environmental Assumptions/Costing
A19: 2.1 Environmental, Operational and End of Life Assumptions
A20: Provide and assess the technical, environmental, operational and end‑of‑life assumptions applied, or to be applied, for all decommissioning, disposal, recycling and rehabilitation activities for which Eskom will have an obligation. This includes reviewing assumptions and methodologies for all components of the following assets:
A21: . Electric Vehicle Components | B21: 1 | E21: =B21*C21*D21 -> 0 | G21: =D21*1.08 -> 0 | H21: =G21*C21*B21 -> 0 | J21: =G21*1.08 -> 0 | K21: =J21*C21*B21 -> 0 | M21: =J21*1.08 -> 0 | N21: =M21*C21*B21 -> 0 | P21: =M21*1.08 -> 0 | Q21: =P21*C21*B21 -> 0 | R21: =Q21+N21+K21+H21+E21 -> 0
A22: 2.1.1 All BESS sites and components (including but not limited to):
A23: · Power Conversion Systems (PCS)
A24: · Battery Racks/ Battery Cabinet (LFP-based, supplied by CATL)
A25: · Energy Management Systems (EMS)
A26: · Network Integration Equipment (NIE), including:
A27: · Auxiliary and Inverter Transformers
A28: · Ring Main Units (RMU)
A29: · Indoor Switchgear
A30: · AC cabinet
A31: · DC combiner
A32: · Balance of Plant
A34: 2.1.2 All components of Electric Vehicles, Microgrid Containers, and Solar PV Rooftops (breakdown of components to be confirmed) | R34: 0
A35: Consultants must confirm and recommend best‑practice approaches for decommissioning, disposal, recycling and rehabilitation, and provide advice on the valuation methodologies, technical approaches, and assessment of decommissioning/recycling/rehabilitation techniques currently applied.
A36: . Electric Vehicle Components | B36: 1 | E36: =B36*C36*D36 -> 0 | G36: =D36*1.08 -> 0 | H36: =G36*C36*B36 -> 0 | J36: =G36*1.08 -> 0 | K36: =J36*C36*B36 -> 0 | M36: =J36*1.08 -> 0 | N36: =M36*C36*B36 -> 0 | P36: =M36*1.08 -> 0 | Q36: =P36*C36*B36 -> 0 | R36: =Q36+N36+K36+H36+E36 -> 0
A37: Include assessment of site rehabilitation requirements at the end of useful life for all relevant assets (BESS, Electric Vehicles, Microgrid Containers, and Solar PV Rooftops), ensuring that environmental, land‑restoration, and site‑reinstatement obligations are fully identified and incorporated into end‑of‑life assumptions and methodologies. (provide relevant benchmarks and best practices).
A39: 2.2 Costing and Activities Estimates and Assumptions
A40: Provide and assess all costing assumptions and estimates used to determine end‑of‑life decommissioning and rehabilitation obligations, including quantities, rates, contingency allowances, discounting considerations, cash‑flow estimates and timing, rehabilitation and disposal costs (basis and benchmarks applied, other costing benchmarking, and best‑practice methodologies applicable to renewable energy assets .Battery Energy Storage Systems, Electric Vehicles, Microgrid Containers and Solar PV Rooftops. This includes providing expert advice on appropriate costing techniques and methodologies.
A41: . Electric Vehicle Components | B41: 1 | E41: =B41*C41*D41 -> 0 | G41: 0 | H41: 0 | J41: 0 | K41: 0 | M41: 0 | N41: 0 | P41: 0 | Q41: 0 | R41: 0
A42: Activities may include but not limited (BESS plant activitities included below for illustrative purposes but are not limited):
A43: Demolition,Removals/disassembly,Rigging and lifting,transportation,Disposal,Recycling, Rehabilitation,Contingencies,Scrap value calculations
A45: 2.3 Component Coverage
A46: Provide and assess in terms of the completeness of component coverage in terms of activities and costing for BESS plants, Electric Vehicles, Microgrid Containers, and Solar PV Rooftops, including all associated activities and costs linked to decommissioning, rehabilitation and recycling.
A47: . Electric Vehicle Components | B47: 1 | E47: =B47*C47*D47 -> 0 | G47: 0 | H47: 0 | J47: 0 | K47: 0 | M47: 0 | N47: 0 | P47: 0 | Q47: 0 | R47: 0
A48: Provide and confirm, based on best practice, whether all applicable end‑of‑life activities and cost and activities categories have been appropriately included (proof of best practice and benchmarking to be provided).
A49: BESS example: (may not be limited)
A50: · Power Conversion Systems (PCS)
A51: · Battery Racks/ Battery Cabinet (LFP-based, supplied by CATL)
A52: · Energy Management Systems (EMS)
A53: · Network Integration Equipment (NIE), including:
A54: · Auxiliary and Inverter Transformers
A55: · Ring Main Units (RMU)
A56: · Indoor Switchgear
A57: · AC cabinet
A58: · DC combiner
A60: 2.4 Provision Completeness
A61: Review and advise in terms of the completeness of the provision to ensure all decommissioning, disposal, rehabilitation, and end‑of‑life activities and associated costs for BESS plants, Electric Vehicles, Microgrid Containers, and Solar PV Rooftops are adequately identified and included.
A62: . Electric Vehicle Components | B62: 1 | E62: =B62*C62*D62 -> 0 | G62: 0 | H62: 0 | J62: 0 | K62: 0 | M62: 0 | N62: 0 | P62: 0 | Q62: 0 | R62: 0
A64: 2.5 Initial & Subsequent Cost Estimation (by Commissioning Date)
A65: Prepare initial and subsequent cost estimations (including contingency costs) based on commissioning dates of each site or plant, including estimations applicable to prior reporting periods (e.g., FY2025) based on the date each asset was brought into commercial operation.
A66: . Electric Vehicle Components | B66: 1 | E66: =B66*C66*D66 -> 0 | G66: =D66*1.08 -> 0 | H66: =G66*C66*B66 -> 0 | J66: =G66*1.08 -> 0 | K66: =J66*C66*B66 -> 0 | M66: =J66*1.08 -> 0 | N66: =M66*C66*B66 -> 0 | P66: =M66*1.08 -> 0 | Q66: =P66*C66*B66 -> 0 | R66: =Q66+N66+K66+H66+E66 -> 0
A68: 2.6 Closure Cost & Cash Flow
A69: Assess, review and advise on the assumptions used to determine closure costs, the related cash flows, timing of cash flows, discounting matters thereof, for purposes of calculating the present‑value gross liability associated with BESS sites, Electric Vehicles, Microgrid Containers, and Solar PV Rooftops.
A70: Provide and advise on the best‑practice approaches for escalating these costs up to the point of executing end‑of‑life activities
A71: . Electric Vehicle Components | B71: 1 | E71: =B71*C71*D71 -> 0 | G71: 0 | H71: 0 | J71: 0 | K71: 0 | M71: 0 | N71: 0 | P71: 0 | Q71: 0 | R71: 0
A73: 2.7 Decommissioning Plan Development
A74: Develop and provide support in maintaining a comprehensive decommissioning plan for BESS sites, Electric Vehicles, Microgrid Containers, and Solar PV Rooftops.
A75: Ensure the plan is reviewed and updated frequently and remains aligned with technical, environmental, and financial considerations.
A76: The consulting experts must prepare a decommissioning risk assessment for each asset category (BESS, Electric Vehicles, Microgrid Containers, and Solar PV Rooftops), identifying all relevant financial, environmental, operational, and regulatory risks associated with end‑of‑life activities, assessing the probability and impact of each risk together with applicable mitigation measures and financial implications, evaluating how these risks may influence decommissioning costs, closure liabilities, cash‑flow timing, or overall provision estimates, and providing expert recommendations on mitigation strategies to support effective, compliant, and cost‑efficient execution of decommissioning and rehabilitation activities.
A77: Assess and provide advice on the period in terms of the end of life dates.
A78: . Electric Vehicle Components | B78: 1 | E78: =B78*C78*D78 -> 0 | G78: 0 | H78: 0 | J78: 0 | K78: 0 | M78: 0 | N78: 0 | P78: 0 | Q78: 0 | R78: 0
A80: 2.8 Accounting Support (IFRS)
A81: Provide assistance and support relating to the accounting implications nuance matters in terms of the decommissioning and rehabilitation and end of life activities for BESS sites, Electric Vehicles, Microgrid Containers, and Solar PV Rooftops. These include but is not limited to: Augmentation vs Replacement: Confirm the correct IFRS treatment for augmentation, ensuring no derecognition of existing racks and advising on impacts to the decommissioning asset and provision. Single Decommissioning Event: Confirm that all racks are decommissioned once at end of plant life with no interim disposals, and advise on modelling, timing, liability build‑up, unwinding and disclosure. Depreciation Policy: Confirm depreciation of the decommissioning asset over the plant life, considering augmentation, and provide IFRS‑aligned policy guidance. Componentisation (FAR Alignment): Review asset components and confirm that the Fixed Asset Register aligns with IFRS componentisation and classification requirements. Battery Degradation & Impairment: Support annual SOH (state of health/health index) testing and advise on impairment, useful life, and residual value adjustments where degradation is identified
A82: Provide IFRS‑compliant disclosures for relevant provisions and decomissioning assets raised at each year‑end.
A83: . Electric Vehicle Components | B83: 1 | E83: =B83*C83*D83 -> 0 | G83: 0 | H83: 0 | J83: 0 | K83: 0 | M83: 0 | N83: 0 | P83: 0 | Q83: 0 | R83: 0
A85: 2.9 Useful Life Review
A86: Review, assess and advise on the useful life assumptions in terms of the decommissioning asset side of the provision applied to BESS sites, Electric Vehicles, Microgrid Containers, and Solar PV Rooftops, ensuring alignment with component‑level asset lifespans.
A87: Valuation of assets at end-of-life for EVs, Microgrid Containers, and Solar PV Rooftops, including assessment of residual value and integration into closure cost models.
A88: . Electric Vehicle Components | B88: 1 | E88: =B88*C88*D88 -> 0 | G88: 0 | H88: 0 | J88: 0 | K88: 0 | M88: 0 | N88: 0 | P88: 0 | Q88: 0 | R88: 0
A90: 2.10 Audit Engagement Participation
A91: Engage and participate in internal and external audit processes until audit completion for all decommissioning‑related deliverables for BESS sites, Electric Vehicles, Microgrid Containers, and Solar PV Rooftops. | E91: =B91*C91*D91 -> 0 | G91: 0 | H91: 0 | J91: 0 | K91: 0 | M91: 0 | N91: 0 | P91: 0 | Q91: 0 | R91: 0
A92: Ensure availability of technical experts as required (in‑person or via MS Teams; number of meetings not limited).
A94: 2.11 Plant Health Assessment
A95: Conduct plant health assessment at each station where BESS sites, Electric Vehicles, Microgrid Containers, and Solar PV Rooftops are located.
A96: . Electric Vehicle Components | B96: 1 | E96: =B96*C96*D96 -> 0 | G96: =D96*1.08 -> 0 | H96: =G96*C96*B96 -> 0 | J96: =G96*1.08 -> 0 | K96: =J96*C96*B96 -> 0 | M96: =J96*1.08 -> 0 | N96: =M96*C96*B96 -> 0 | P96: =M96*1.08 -> 0 | Q96: =P96*C96*B96 -> 0 | R96: =Q96+N96+K96+H96+E96 -> 0
A97: Use this to estimate quantities and confirm decommissioning and rehabilitation (end‑of‑life) activities and cost estimates for relevant activities and processed. This also includes assessing the asset condition, environmental risks, on‑site dismantling/decommissioning constraints.
A98: The consulting experts must verify the condition of all BESS battery components to assess their physical state, performance, and any degradation since installation. This includes independent technical testing, capacity and state‑of‑health (SOH) measurements, and comparison to manufacturer specifications and original commissioning data. If degradation is found, the consultants must quantify it and recommend any required impairment in line with IFRS (IAS 36 and IAS 16). The assessment must also show how the degradation affects remaining useful life, residual value, and future decommissioning costs.
A100: 2.12 Scenario and stress testing
A101: The consulting experts must perform a scenario analysis to assess how changes in key assumptions may affect decommissioning and rehabilitation cost estimates. For each scenario considered, the experts must provide clear assumptions, updated cost models, revised cash‑flow projections, and IFRS‑aligned present‑value calculations, together with expert commentary on financial impacts and key risk drivers to support robust valuation, audit defensibility, and management decision‑making.
A102: Possible re‑valuation may be required where errors are identified, or where audit findings, risk assessments, or changes in business or plant requirements necessitate correction or re-evaluation. Such re‑valuation must be undertaken accordingly; however, any costs arising from errors made by the consultants will not be borne by Eskom.
A104: 2.13 Deliverable
A105: Provide valuation reports and support for the major reporting periods (September and March of the contract period) in accordance with the above scope. Reports must include decommissioning costs, closure liabilities, cash‑flow timing, or overall provision estimates, authoritative positions, assumptions, benchmarks, and methodologies applied by the consulting experts etc., and must be submitted timeously before the relevant reporting deadlines.
A106: Where necessary - written reports for accounting positions/guidance/advice, scenario's and risk assessments etc.
A107: Note: Disclosures submissions are required for the March reporting period only for the duration of the contract
A108: . Electric Vehicle Components | B108: 1 | E108: =B108*C108*D108 -> 0 | G108: 0 | H108: 0 | J108: 0 | K108: 0 | M108: 0 | N108: 0 | P108: 0 | Q108: 0 | R108: 0
E109: =SUM(E8:E108) -> 0 | H109: =SUM(H8:H108) -> 0 | K109: =SUM(K8:K108) -> 0 | N109: =SUM(N8:N108) -> 0 | Q109: =SUM(Q8:Q108) -> 0 | R109: =Q109+N109+K109+H109+E109 -> 0
A111: The following BESS plants will be assessed over the 5-year period (subject to change based on business needs): | C111: Year 1 (2026) | D111: Year 2 (2027) | E111: Year 3 (2028) | F111: Year 4 (2029) | G111: Year 5 (2030)
C112: Hex | D112: Hex | E112: Hex | F112: Hex | G112: Hex
C113: Pongola | D113: Pongola | E113: Pongola | F113: Pongola | G113: Pongola
C114: Elandskop | D114: Elandskop | E114: Elandskop | F114: Elandskop | G114: Elandskop
C115: N/A | D115: Skaapvlei | E115: Skaapvlei | F115: Skaapvlei | G115: Skaapvlei
C117: N/A | D117: Paleisheuwel | E117: Paleisheuwel | F117: Paleisheuwel | G117: Paleisheuwel
C118: N/A | D118: Graafwater | E118: Graafwater | F118: Graafwater | G118: Graafwater
C119: N/A | D119: N/A | E119: Melkhout | F119: Melkhout | G119: Melkhout
C120: N/A | D120: N/A | E120: Rietfontein Bess | F120: Rietfontein Bess | G120: Rietfontein Bess
C122: N/A | D122: N/A | E122: Rietfontein Solar PV | F122: Rietfontein Solar PV | G122: Rietfontein Solar PV
A123: Assessment for EV's ( Lithium iron batteries environmental provision) | C123: Electric Vehicles( EV's) | D123: Electric Vehicles( EV's) | E123: Electric Vehicles( EV's) | F123: Electric Vehicles( EV's) | G123: Electric Vehicles( EV's)
A124: Assessment for Microgrids environmental provision | C124: Microgrids | D124: Microgrids | E124: Microgrids | F124: Microgrids | G124: Microgrids
A125: Assessment for Solar PV Roof Tops environmental provision | C125: Solar PV Roof Tops | D125: Solar PV Roof Tops | E125: Solar PV Roof Tops | F125: Solar PV Roof Tops | G125: Solar PV Roof Tops
A127: Electric Vehicles, Microgrid Containers, and Solar PV Rooftops component and projects/sites to be advised
A129: Prepared by: (End User of the Contract)
A130: Name and Surname:
A131: Designation:
A132: Signature:
A133: Date:
A135: Supported and Approved by: ( End user of Contract )
A136: Name and Surname:
A137: Designation:
A138: Signature:
A139: Date:
A141: Supported and Approved by: ( End user of Contract )
A142: Name and Surname:
A143: Designation:
A144: Signature:
A145: Date:
A146: Supported and Approved by: Contract Manager
A147: Name and Surname:
A148: Designation:
A149: Signature:
A150: Date:
A151: Supported and Approved by: Senior Manager End User
A152: Name and Surname:
A153: Designation:
A154: Signature:
A155: Date:
A157: Supported by Approved: Technical Specialist /Engineering Expert
A158: Name and Surname:
A159: Designation:
A160: Signature:
A161: Date:

Sheet Electric Vehicles (hidden)
A1: Services Required: | C1: BESS AND OTHER ENVIRONMENTAL PROVISIONS/OBLIGATIONS CONSULTING SERVICES (END OF LIFE ACTIVITIES – DECOMMISSIONING AND REHABILITATION PROVISIONS).
A2: Division: | C2: DISTRIBUTION DIVISION
A3: Scope Detail | B3: Number of Consultants | C3: Number of Hours | D3: Rates | E3: Price | G3: Rates | H3: Price | J3: Rates | K3: Price | M3: Rates | N3: Price | P3: Rates | Q3: Price | R3: 5 Years Total
A5: Phase 1: Planning & Mobilization | C5: Year 1 | G5: Year 2 | J5: Year 3 | M5: Year 4 | P5: Year 5
A7: 1. Project Kick-off & Mobilization
A8: Confirm and define the project objectives, deliverables, timelines, and reporting requirements in line with the approved scope of work. | B8: 6 | C8: 4 | D8: R1,961 | E8: =B8*C8*D8 -> R47,064 | G8: =D8*1.08 -> R2,117.88 | H8: =G8*C8*B8 -> R50,829 | J8: =G8*1.08 -> R2,287.31 | K8: =J8*C8*B8 -> R54,895.45 | M8: =J8*1.08 -> R2,470.30 | N8: =M8*C8*B8 -> R59,287.09 | P8: =M8*1.08 -> R2,667.92 | Q8: =P8*C8*B8 -> R64,030.05 | R8: =Q8+N8+K8+H8+E8 -> R276,106
A9: Establish communication protocols for the full reporting cycle to ensure efficient coordination and information flow across all project stakeholders. | B9: 6 | C9: 2 | D9: R1,961 | E9: =B9*C9*D9 -> R23,532 | G9: =D9*1.08 -> R2,117.88 | H9: =G9*C9*B9 -> R25,415 | J9: =G9*1.08 -> R2,287.31 | K9: =J9*C9*B9 -> R27,447.72 | M9: =J9*1.08 -> R2,470.30 | N9: =M9*C9*B9 -> R29,643.54 | P9: =M9*1.08 -> R2,667.92 | Q9: =P9*C9*B9 -> R32,015.03 | R9: R138,053
G10: 0 | J10: 0 | M10: 0 | P10: 0
A11: 2. Regulatory & Accounting Framework Review | G11: 0 | J11: 0 | M11: 0 | P11: 0
A12: Review applicable environmental legislation and IFRS standards for the following asset categories: | G12: 0 | J12: 0 | M12: 0 | P12: 0
A13: 1) Electric Vehicle Components | B13: 1 | C13: 3 | D13: R1,961 | E13: =B13*C13*D13 -> R5,883 | G13: R2,117.88 | H13: =G13*C13*B13 -> R6,354 | J13: R2,287.31 | K13: R6,861.93 | M13: R2,470.30 | N13: R7,410.89 | P13: R2,667.92 | Q13: R8,003.76 | R13: R34,513
A14: Confirm and advise on compliance requirements for expected end‑of‑life activities and the decommissioning provisions to be raised by Eskom.
A15: Provide advice on the related accounting, environmental and legal obligations applicable to Eskom for these activities.
A17: Phase 2: Technical & Environmental Assumptions/Costing
A19: 3. Environmental, Operational and End of Life Assumptions
A20: Provide and assess the technical, environmental, operational and end‑of‑life assumptions applied, or to be applied, for all decommissioning, disposal, recycling and rehabilitation activities for which Eskom will have an obligation. This includes reviewing assumptions and methodologies for all components of the following assets:
A21: (1) All BESS sites and components (including but not limited to): | B21: 1 | C21: 3 | D21: R1,961 | E21: =B21*C21*D21 -> R5,883 | R21: R5,883
A22: · Power Conversion Systems (PCS)
A23: · Battery Racks/ Battery Cabinet (LFP-based, supplied by CATL)
A24: · Energy Management Systems (EMS)
A25: · Network Integration Equipment (NIE), including:
A26: · Auxiliary and Inverter Transformers
A27: · Ring Main Units (RMU)
A28: · Indoor Switchgear
A29: · AC cabinet
A30: · DC combiner
A31: · Balance of Plant
A33: (2) All components of Electric Vehicles, Microgrid Containers, and Solar PV Rooftops (breakdown of components to be confirmed) | B33: 1 | C33: 3 | D33: R1,961 | E33: =B33*C33*D33 -> R5,883 | R33: R5,883
A34: Consultants must confirm and recommend best‑practice approaches for decommissioning, disposal, recycling and rehabilitation, and provide advice on the valuation methodologies, technical approaches, and assessment of decommissioning/recycling/rehabilitation techniques currently applied.
A35: Include assessment of site rehabilitation requirements at the end of useful life for all relevant assets (BESS, Electric Vehicles, Microgrid Containers, and Solar PV Rooftops), ensuring that environmental, land‑restoration, and site‑reinstatement obligations are fully identified and incorporated into end‑of‑life assumptions and methodologies. (provide relevant benchmarks and best practices).
A37: 4. Costing and Activities Estimates and Assumptions
A38: Provide and assess all costing assumptions and estimates used to determine end‑of‑life decommissioning and rehabilitation obligations, including quantities, rates, contingency allowances, discounting considerations, cash‑flow estimates and timing, rehabilitation and disposal costs (basis and benchmarks applied, other costing benchmarking, and best‑practice methodologies applicable to renewable energy assets .Battery Energy Storage Systems, Electric Vehicles, Microgrid Containers and Solar PV Rooftops. This includes providing expert advice on appropriate costing techniques and methodologies.
A39: 1) Electric Vehicle Components | B39: 1 | C39: 40 | D39: R1,961 | E39: =B39*C39*D39 -> R78,440 | G39: R2,117.88 | H39: R84,715 | J39: R2,287.31 | K39: R91,492.42 | M39: R2,470.30 | N39: R98,811.81 | P39: R2,667.92 | Q39: R106,716.75 | R39: R460,176
A40: Activities may include but not limited (BESS plant activitities included below for illustrative purposes but are not limited):
A41: Demolition,Removals/disassembly,Rigging and lifting,transportation,Disposal,Recycling, Rehabilitation,Contingencies,Scrap value calculations
A43: 5. Component Coverage
A44: Provide and assess in terms of the completeness of component coverage in terms of activities and costing for BESS plants, Electric Vehicles, Microgrid Containers, and Solar PV Rooftops, including all associated activities and costs linked to decommissioning, rehabilitation and recycling.
A45: 1) Electric Vehicle Components | B45: 1 | C45: 20 | D45: R1,961 | E45: =B45*C45*D45 -> R39,220 | G45: R2,117.88 | H45: R42,358 | J45: R2,287.31 | K45: R45,746.21 | M45: R2,470.30 | N45: R49,405.90 | P45: R2,667.92 | Q45: R53,358.38 | R45: R230,088
A46: Provide and confirm, based on best practice, whether all applicable end‑of‑life activities and cost and activities categories have been appropriately included (proof of best practice and benchmarking to be provided).
A47: BESS example: (may not be limited)
A48: · Power Conversion Systems (PCS)
A49: · Battery Racks/ Battery Cabinet (LFP-based, supplied by CATL)
A50: · Energy Management Systems (EMS)
A51: · Network Integration Equipment (NIE), including:
A52: · Auxiliary and Inverter Transformers
A53: · Ring Main Units (RMU)
A54: · Indoor Switchgear
A55: · AC cabinet
A56: · DC combiner
A58: 6. Provision Completeness
A59: Review and advise in terms of the completeness of the provision to ensure all decommissioning, disposal, rehabilitation, and end‑of‑life activities and associated costs for BESS plants, Electric Vehicles, Microgrid Containers, and Solar PV Rooftops are adequately identified and included.
A60: 1) Electric Vehicle Components | B60: 1 | C60: 5 | D60: R1,961 | E60: =B60*C60*D60 -> R9,805 | G60: R2,117.88 | H60: R10,589 | J60: R2,287.31 | K60: R11,436.55 | M60: R2,470.30 | N60: R12,351.48 | P60: R2,667.92 | Q60: R13,339.59 | R60: R57,522
A62: 7. Initial & Subsequent Cost Estimation (by Commissioning Date)
A63: Prepare initial and subsequent cost estimations (including contingency costs) based on commissioning dates of each site or plant, including estimations applicable to prior reporting periods (e.g., FY2025) based on the date each asset was brought into commercial operation.
A64: 1) Electric Vehicle Components | B64: 1 | C64: 5 | D64: R1,961 | E64: =B64*C64*D64 -> R9,805 | G64: R2,117.88 | H64: =G64*C64*B64 -> R10,589 | J64: R2,287.31 | K64: =J64*C64*B64 -> R11,436.55 | M64: R2,470.30 | N64: =M64*C64*B64 -> R12,351.48 | P64: R2,667.92 | Q64: =P64*C64*B64 -> R13,339.59 | R64: =Q64+N64+K64+H64+E64 -> R57,522
A66: 8. Closure Cost & Cash Flow
A67: Assess, review and advise on the assumptions used to determine closure costs, the related cash flows, timing of cash flows, discounting matters thereof, for purposes of calculating the present‑value gross liability associated with BESS sites, Electric Vehicles, Microgrid Containers, and Solar PV Rooftops.
A68: Provide and advise on the best‑practice approaches for escalating these costs up to the point of executing end‑of‑life activities
A69: 1) Electric Vehicle Components | B69: 1 | C69: 5 | D69: R1,961 | E69: =B69*C69*D69 -> R9,805 | G69: R2,117.88 | H69: R10,589 | J69: R2,287.31 | K69: R11,436.55 | M69: R2,470.30 | N69: R12,351.48 | P69: R2,667.92 | Q69: R13,339.59 | R69: R57,522
A71: 9. Decommissioning Plan Development
A72: Develop and provide support in maintaining a comprehensive decommissioning plan for BESS sites, Electric Vehicles, Microgrid Containers, and Solar PV Rooftops.
A73: Ensure the plan is reviewed and updated frequently and remains aligned with technical, environmental, and financial considerations.
A74: The consulting experts must prepare a decommissioning risk assessment for each asset category (BESS, Electric Vehicles, Microgrid Containers, and Solar PV Rooftops), identifying all relevant financial, environmental, operational, and regulatory risks associated with end‑of‑life activities, assessing the probability and impact of each risk together with applicable mitigation measures and financial implications, evaluating how these risks may influence decommissioning costs, closure liabilities, cash‑flow timing, or overall provision estimates, and providing expert recommendations on mitigation strategies to support effective, compliant, and cost‑efficient execution of decommissioning and rehabilitation activities.
A75: Assess and provide advice on the period in terms of the end of life dates.
A76: 1) Electric Vehicle Components | B76: 1 | C76: 10 | D76: R1,961 | E76: =B76*C76*D76 -> R19,610 | G76: =D76*1.08 -> R2,117.88 | H76: R21,179 | J76: =G76*1.08 -> R2,287.31 | K76: R22,873.10 | M76: =J76*1.08 -> R2,470.30 | N76: R24,702.95 | P76: =M76*1.08 -> R2,667.92 | Q76: R26,679.19 | R76: R115,044
A78: 10. Accounting Support (IFRS)
A79: Provide assistance and support relating to the accounting implications nuance matters in terms of the decommissioning and rehabilitation and end of life activities for BESS sites, Electric Vehicles, Microgrid Containers, and Solar PV Rooftops. These include but is not limited to: Augmentation vs Replacement: Confirm the correct IFRS treatment for augmentation, ensuring no derecognition of existing racks and advising on impacts to the decommissioning asset and provision. Single Decommissioning Event: Confirm that all racks are decommissioned once at end of plant life with no interim disposals, and advise on modelling, timing, liability build‑up, unwinding and disclosure. Depreciation Policy: Confirm depreciation of the decommissioning asset over the plant life, considering augmentation, and provide IFRS‑aligned policy guidance. Componentisation (FAR Alignment): Review asset components and confirm that the Fixed Asset Register aligns with IFRS componentisation and classification requirements. Battery Degradation & Impairment: Support annual SOH (state of health/health index) testing and advise on impairment, useful life, and residual value adjustments where degradation is identified
A80: Provide IFRS‑compliant disclosures for relevant provisions and decomissioning assets raised at each year‑end.
A81: 1) Electric Vehicle Components | B81: 1 | C81: 10 | D81: R1,961 | E81: =B81*C81*D81 -> R19,610 | G81: R2,117.88 | H81: R21,179 | J81: R2,287.31 | K81: R22,873.10 | M81: R2,470.30 | N81: R24,702.95 | P81: R2,667.92 | Q81: R26,679.19 | R81: R115,044
A83: 11. Useful Life Review
A84: Review, assess and advise on the useful life assumptions in terms of the decommissioning asset side of the provision applied to BESS sites, Electric Vehicles, Microgrid Containers, and Solar PV Rooftops, ensuring alignment with component‑level asset lifespans.
A85: Valuation of assets at end-of-life for EVs, Microgrid Containers, and Solar PV Rooftops, including assessment of residual value and integration into closure cost models.
A86: 1) Electric Vehicle Components | B86: 1 | C86: 10 | D86: R1,961 | E86: =B86*C86*D86 -> R19,610 | G86: R2,117.88 | H86: R21,179 | J86: R2,287.31 | K86: R22,873.10 | M86: R2,470.30 | N86: R24,702.95 | P86: R2,667.92 | Q86: R26,679.19 | R86: R115,044
A88: 12. Audit Engagement Participation
A89: Engage and participate in internal and external audit processes until audit completion for all decommissioning‑related deliverables for BESS sites, Electric Vehicles, Microgrid Containers, and Solar PV Rooftops. | B89: 3 | C89: 10 | D89: R1,961 | E89: =B89*C89*D89 -> R58,830 | G89: R2,117.88 | H89: R63,536 | J89: R2,287.31 | K89: R68,619.31 | M89: R2,470.30 | N89: R74,108.86 | P89: R2,667.92 | Q89: R80,037.57 | R89: R345,132
A90: Ensure availability of technical experts as required (in‑person or via MS Teams; number of meetings not limited).
A92: 13. Plant Health Assessment
A93: Conduct plant health assessment at each station where BESS sites, Electric Vehicles, Microgrid Containers, and Solar PV Rooftops are located.
A94: Use this to estimate quantities and confirm decommissioning and rehabilitation (end‑of‑life) activities and cost estimates for relevant activities and processed. This also includes assessing the asset condition, environmental risks, on‑site dismantling/decommissioning constraints.
A95: The consulting experts must verify the condition of all BESS battery components to assess their physical state, performance, and any degradation since installation. This includes independent technical testing, capacity and state‑of‑health (SOH) measurements, and comparison to manufacturer specifications and original commissioning data. If degradation is found, the consultants must quantify it and recommend any required impairment in line with IFRS (IAS 36 and IAS 16). The assessment must also show how the degradation affects remaining useful life, residual value, and future decommissioning costs.
A97: 14. Scenario and stress testing
A98: The consulting experts must perform a scenario analysis to assess how changes in key assumptions may affect decommissioning and rehabilitation cost estimates. For each scenario considered, the experts must provide clear assumptions, updated cost models, revised cash‑flow projections, and IFRS‑aligned present‑value calculations, together with expert commentary on financial impacts and key risk drivers to support robust valuation, audit defensibility, and management decision‑making.
A99: Possible re‑valuation may be required where errors are identified, or where audit findings, risk assessments, or changes in business or plant requirements necessitate correction or re-evaluation. Such re‑valuation must be undertaken accordingly; however, any costs arising from errors made by the consultants will not be borne by Eskom.
A101: 15. Deliverable
A102: Provide valuation reports and support for the major reporting periods (September and March of the contract period) in accordance with the above scope. Reports must include decommissioning costs, closure liabilities, cash‑flow timing, or overall provision estimates, authoritative positions, assumptions, benchmarks, and methodologies applied by the consulting experts etc., and must be submitted timeously before the relevant reporting deadlines.
A103: Where necessary - written reports for accounting positions/guidance/advice, scenario's and risk assessments etc.
A104: Note: Disclosures submissions are required for the March reporting period only for the duration of the contract
A105: 1) Electric Vehicle Components | B105: 1 | C105: 10 | D105: R1,961 | E105: =B105*C105*D105 -> R19,610 | G105: R2,117.88 | H105: R21,179 | J105: R2,287.31 | K105: R22,873.10 | M105: R2,470.30 | N105: R24,702.95 | P105: R2,667.92 | Q105: R26,679.19 | R105: R115,044
E106: =SUM(E8:E105) -> R372,590 | H106: =SUM(H8:H105) -> R389,690 | K106: =SUM(K8:K105) -> R420,865 | N106: =SUM(N8:N105) -> R454,534 | Q106: =SUM(Q8:Q105) -> R490,897 | R106: =Q106+N106+K106+H106+E106 -> R2,128,576
A108: The following BESS plants will be assessed over the 5-year period (subject to change based on business needs): | C108: Year 1 (2026) | D108: Year 2 (2027) | E108: Year 3 (2028) | F108: Year 4 (2029) | G108: Year 5 (2030)
C109: Hex | D109: Hex | E109: Hex | F109: Hex | G109: Hex
C110: Pongola | D110: Pongola | E110: Pongola | F110: Pongola | G110: Pongola
C111: Elandskop | D111: Elandskop | E111: Elandskop | F111: Elandskop | G111: Elandskop
C112: N/A | D112: Skaapvlei | E112: Skaapvlei | F112: Skaapvlei | G112: Skaapvlei
C114: N/A | D114: Paleisheuwel | E114: Paleisheuwel | F114: Paleisheuwel | G114: Paleisheuwel
C115: N/A | D115: Graafwater | E115: Graafwater | F115: Graafwater | G115: Graafwater
C116: N/A | D116: N/A | E116: Melkhout | F116: Melkhout | G116: Melkhout
C117: N/A | D117: N/A | E117: Rietfontein Bess | F117: Rietfontein Bess | G117: Rietfontein Bess
C119: N/A | D119: N/A | E119: Rietfontein Solar PV | F119: Rietfontein Solar PV | G119: Rietfontein Solar PV
A120: Assessment for EV's ( Lithium iron batteries environmental provision) | C120: Electric Vehicles( EV's) | D120: Electric Vehicles( EV's) | E120: Electric Vehicles( EV's) | F120: Electric Vehicles( EV's) | G120: Electric Vehicles( EV's)
A121: Assessment for Microgrids environmental provision | C121: Microgrids | D121: Microgrids | E121: Microgrids | F121: Microgrids | G121: Microgrids
A122: Assessment for Solar PV Roof Tops environmental provision | C122: Solar PV Roof Tops | D122: Solar PV Roof Tops | E122: Solar PV Roof Tops | F122: Solar PV Roof Tops | G122: Solar PV Roof Tops
A124: Electric Vehicles, Microgrid Containers, and Solar PV Rooftops component and projects/sites to be advised
A126: Prepared by: (End User of the Contract)
A127: Name and Surname: Nadia Alli
A128: Designation: Senior Advisor Financial Accounting and Compliance
A129: Signature:
A130: Date:
A132: Supported and Approved by: Contract Manager
A133: Name and Surname: Ivanke Van Der Linde
A134: Designation: Middle Manager Financial Accounting and Compliance
A135: Signature:
A136: Date:
A138: Supported and Approved by: Supporting E-Band Manager
A139: Name and Surname: Jayalakshmi Govender
A140: Designation: Senior Manager Central East Cluster (KZN and FS FBC)
A141: Signature:
A142: Date:
A144: Supported by Approved: Technical Specialist /Engineering Expert
A145: Name and Surname: Thomas Jacobs
A146: Designation:
A147: Signature:
A148: Date:

Sheet Microgrids.
A1: Services Required: | C1: Review of the decommissioning costs and componentisation in terms of International Financial Reporting Standard (IFRS) for the rehabilitation of Battery Energy Storage Systems (BESS) sites including the assessment, accounting and valuation of environmental provisions for Electric Vehicles, Solar PV and Microgrid containers within the Distribution Division for a period of 5 years.
A2: Division: | C2: DISTRIBUTION DIVISION
A3: Scope Detail | B3: Number of Consultants | C3: Number of Hours | D3: Rates | E3: Price | G3: Rates | H3: Price | J3: Rates | K3: Price | M3: Rates | N3: Price | P3: Rates | Q3: Price | R3: 5 Years Total
A5: Phase 1: Planning & Mobilization | C5: Year 1 | G5: Year 2 | J5: Year 3 | M5: Year 4 | P5: Year 5
A7: 1.1 Project Kick-off & Mobilization
A8: Confirm and define the project objectives, deliverables, timelines, and reporting requirements in line with the approved scope of work.
A9: Establish communication protocols for the full reporting cycle to ensure efficient coordination and information flow across all project stakeholders.
A11: 1.2 Regulatory & Accounting Framework Review
A12: Review applicable environmental legislation and IFRS standards for the following asset categories:
A13: . Microgrid Containers | B13: 1 | E13: =B13*C13*D13 -> 0 | G13: =D13*1.08 -> 0 | H13: =G13*C13*B13 -> 0 | J13: =G13*1.08 -> 0 | K13: =J13*C13*B13 -> 0 | M13: =J13*1.08 -> 0 | N13: =M13*C13*B13 -> 0 | P13: =M13*1.08 -> 0 | Q13: =P13*C13*B13 -> 0 | R13: =Q13+N13+K13+H13+E13 -> 0
A14: Confirm and advise on compliance requirements for expected end‑of‑life activities and the decommissioning provisions to be raised by Eskom.
A15: Provide advice on the related accounting, environmental and legal obligations applicable to Eskom for these activities.
A17: Phase 2: Technical & Environmental Assumptions/Costing
A19: 2.1. Environmental, Operational and End of Life Assumptions
A20: Provide and assess the technical, environmental, operational and end‑of‑life assumptions applied, or to be applied, for all decommissioning, disposal, recycling and rehabilitation activities for which Eskom will have an obligation. This includes reviewing assumptions and methodologies for all components of the following assets:
A21: . Microgrid Containers | B21: 1 | E21: =B21*C21*D21 -> 0 | G21: =D21*1.08 -> 0 | H21: =G21*C21*B21 -> 0 | J21: =G21*1.08 -> 0 | K21: =J21*C21*B21 -> 0 | M21: =J21*1.08 -> 0 | N21: =M21*C21*B21 -> 0 | P21: =M21*1.08 -> 0 | Q21: =P21*C21*B21 -> 0 | R21: =Q21+N21+K21+H21+E21 -> 0
A22: 2.1.1 All BESS sites and components (including but not limited to):
A23: · Power Conversion Systems (PCS)
A24: · Battery Racks/ Battery Cabinet (LFP-based, supplied by CATL)
A25: · Energy Management Systems (EMS)
A26: · Network Integration Equipment (NIE), including:
A27: · Auxiliary and Inverter Transformers
A28: · Ring Main Units (RMU)
A29: · Indoor Switchgear
A30: · AC cabinet
A31: · DC combiner
A32: · Balance of Plant
A34: 2.1.2 All components of Electric Vehicles, Microgrid Containers, and Solar PV Rooftops (breakdown of components to be confirmed) | R34: 0
A35: Consultants must confirm and recommend best‑practice approaches for decommissioning, disposal, recycling and rehabilitation, and provide advice on the valuation methodologies, technical approaches, and assessment of decommissioning/recycling/rehabilitation techniques currently applied.
A36: . Microgrid Containers | B36: 1 | E36: =B36*C36*D36 -> 0 | G36: =D36*1.08 -> 0 | H36: =G36*C36*B36 -> 0 | J36: =G36*1.08 -> 0 | K36: =J36*C36*B36 -> 0 | M36: =J36*1.08 -> 0 | N36: =M36*C36*B36 -> 0 | P36: =M36*1.08 -> 0 | Q36: =P36*C36*B36 -> 0 | R36: =Q36+N36+K36+H36+E36 -> 0
A37: Include assessment of site rehabilitation requirements at the end of useful life for all relevant assets (BESS, Electric Vehicles, Microgrid Containers, and Solar PV Rooftops), ensuring that environmental, land‑restoration, and site‑reinstatement obligations are fully identified and incorporated into end‑of‑life assumptions and methodologies. (provide relevant benchmarks and best practices).
A39: 2.2 Costing and Activities Estimates and Assumptions
A40: Provide and assess all costing assumptions and estimates used to determine end‑of‑life decommissioning and rehabilitation obligations, including quantities, rates, contingency allowances, discounting considerations, cash‑flow estimates and timing, rehabilitation and disposal costs (basis and benchmarks applied, other costing benchmarking, and best‑practice methodologies applicable to renewable energy assets .Battery Energy Storage Systems, Electric Vehicles, Microgrid Containers and Solar PV Rooftops. This includes providing expert advice on appropriate costing techniques and methodologies.
A41: . Microgrid Containers | B41: 1 | E41: =B41*C41*D41 -> 0 | G41: 0 | H41: 0 | J41: 0 | K41: 0 | M41: 0 | N41: 0 | P41: 0 | Q41: 0 | R41: 0
A42: Activities may include but not limited (BESS plant activitities included below for illustrative purposes but are not limited):
A43: Demolition,Removals/disassembly,Rigging and lifting,transportation,Disposal,Recycling, Rehabilitation,Contingencies,Scrap value calculations
A45: 2.3 Component Coverage
A46: Provide and assess in terms of the completeness of component coverage in terms of activities and costing for BESS plants, Electric Vehicles, Microgrid Containers, and Solar PV Rooftops, including all associated activities and costs linked to decommissioning, rehabilitation and recycling.
A47: . Microgrid Containers | B47: 1 | E47: =B47*C47*D47 -> 0 | G47: 0 | H47: 0 | J47: 0 | K47: 0 | M47: 0 | N47: 0 | P47: 0 | Q47: 0 | R47: 0
A48: Provide and confirm, based on best practice, whether all applicable end‑of‑life activities and cost and activities categories have been appropriately included (proof of best practice and benchmarking to be provided).
A49: BESS example: (may not be limited)
A50: · Power Conversion Systems (PCS)
A51: · Battery Racks/ Battery Cabinet (LFP-based, supplied by CATL)
A52: · Energy Management Systems (EMS)
A53: · Network Integration Equipment (NIE), including:
A54: · Auxiliary and Inverter Transformers
A55: · Ring Main Units (RMU)
A56: · Indoor Switchgear
A57: · AC cabinet
A58: · DC combiner
A60: 2.4 Provision Completeness
A61: Review and advise in terms of the completeness of the provision to ensure all decommissioning, disposal, rehabilitation, and end‑of‑life activities and associated costs for BESS plants, Electric Vehicles, Microgrid Containers, and Solar PV Rooftops are adequately identified and included.
A62: . Microgrid Containers | B62: 1 | E62: =B62*C62*D62 -> 0 | G62: 0 | H62: 0 | J62: 0 | K62: 0 | M62: 0 | N62: 0 | P62: 0 | Q62: 0 | R62: 0
A64: 2.5 Initial & Subsequent Cost Estimation (by Commissioning Date)
A65: Prepare initial and subsequent cost estimations (including contingency costs) based on commissioning dates of each site or plant, including estimations applicable to prior reporting periods (e.g., FY2025) based on the date each asset was brought into commercial operation.
A66: . Microgrid Containers | B66: 1 | E66: =B66*C66*D66 -> 0 | G66: =D66*1.08 -> 0 | H66: =G66*C66*B66 -> 0 | J66: =G66*1.08 -> 0 | K66: =J66*C66*B66 -> 0 | M66: =J66*1.08 -> 0 | N66: =M66*C66*B66 -> 0 | P66: =M66*1.08 -> 0 | Q66: =P66*C66*B66 -> 0 | R66: =Q66+N66+K66+H66+E66 -> 0
A68: 2.6 Closure Cost & Cash Flow
A69: Assess, review and advise on the assumptions used to determine closure costs, the related cash flows, timing of cash flows, discounting matters thereof, for purposes of calculating the present‑value gross liability associated with BESS sites, Electric Vehicles, Microgrid Containers, and Solar PV Rooftops.
A70: Provide and advise on the best‑practice approaches for escalating these costs up to the point of executing end‑of‑life activities
A71: . Microgrid Containers | B71: 1 | E71: =B71*C71*D71 -> 0 | G71: 0 | H71: 0 | J71: 0 | K71: 0 | M71: 0 | N71: 0 | P71: 0 | Q71: 0 | R71: 0
A73: 2.7 Decommissioning Plan Development
A74: Develop and provide support in maintaining a comprehensive decommissioning plan for BESS sites, Electric Vehicles, Microgrid Containers, and Solar PV Rooftops.
A75: Ensure the plan is reviewed and updated frequently and remains aligned with technical, environmental, and financial considerations.
A76: The consulting experts must prepare a decommissioning risk assessment for each asset category (BESS, Electric Vehicles, Microgrid Containers, and Solar PV Rooftops), identifying all relevant financial, environmental, operational, and regulatory risks associated with end‑of‑life activities, assessing the probability and impact of each risk together with applicable mitigation measures and financial implications, evaluating how these risks may influence decommissioning costs, closure liabilities, cash‑flow timing, or overall provision estimates, and providing expert recommendations on mitigation strategies to support effective, compliant, and cost‑efficient execution of decommissioning and rehabilitation activities.
A77: Assess and provide advice on the period in terms of the end of life dates.
A78: .Microgrid Containers | B78: 1 | E78: =B78*C78*D78 -> 0 | G78: 0 | H78: 0 | J78: 0 | K78: 0 | M78: 0 | N78: 0 | P78: 0 | Q78: 0 | R78: 0
A80: 2.8 Accounting Support (IFRS)
A81: Provide assistance and support relating to the accounting implications nuance matters in terms of the decommissioning and rehabilitation and end of life activities for BESS sites, Electric Vehicles, Microgrid Containers, and Solar PV Rooftops. These include but is not limited to: Augmentation vs Replacement: Confirm the correct IFRS treatment for augmentation, ensuring no derecognition of existing racks and advising on impacts to the decommissioning asset and provision. Single Decommissioning Event: Confirm that all racks are decommissioned once at end of plant life with no interim disposals, and advise on modelling, timing, liability build‑up, unwinding and disclosure. Depreciation Policy: Confirm depreciation of the decommissioning asset over the plant life, considering augmentation, and provide IFRS‑aligned policy guidance. Componentisation (FAR Alignment): Review asset components and confirm that the Fixed Asset Register aligns with IFRS componentisation and classification requirements. Battery Degradation & Impairment: Support annual SOH (state of health/health index) testing and advise on impairment, useful life, and residual value adjustments where degradation is identified
A82: Provide IFRS‑compliant disclosures for relevant provisions and decomissioning assets raised at each year‑end.
A83: . Microgrid Containers | B83: 1 | E83: =B83*C83*D83 -> 0 | G83: 0 | H83: 0 | J83: 0 | K83: 0 | M83: 0 | N83: 0 | P83: 0 | Q83: 0 | R83: 0
A85: 2.9 Useful Life Review
A86: Review, assess and advise on the useful life assumptions in terms of the decommissioning asset side of the provision applied to BESS sites, Electric Vehicles, Microgrid Containers, and Solar PV Rooftops, ensuring alignment with component‑level asset lifespans.
A87: Valuation of assets at end-of-life for EVs, Microgrid Containers, and Solar PV Rooftops, including assessment of residual value and integration into closure cost models.
A88: . Microgrid Containers | B88: 1 | E88: =B88*C88*D88 -> 0 | G88: 0 | H88: 0 | J88: 0 | K88: 0 | M88: 0 | N88: 0 | P88: 0 | Q88: 0 | R88: 0
A90: 2.10 Audit Engagement Participation
A91: Engage and participate in internal and external audit processes until audit completion for all decommissioning‑related deliverables for BESS sites, Electric Vehicles, Microgrid Containers, and Solar PV Rooftops.
A92: Ensure availability of technical experts as required (in‑person or via MS Teams; number of meetings not limited).
A94: 2.11 Plant Health Assessment
A95: Conduct plant health assessment at each station where BESS sites, Electric Vehicles, Microgrid Containers, and Solar PV Rooftops are located.
A96: . Microgrid Containers | B96: 1 | E96: =B96*C96*D96 -> 0 | G96: =D96*1.08 -> 0 | H96: =G96*C96*B96 -> 0 | J96: =G96*1.08 -> 0 | K96: =J96*C96*B96 -> 0 | M96: =J96*1.08 -> 0 | N96: =M96*C96*B96 -> 0 | P96: =M96*1.08 -> 0 | Q96: =P96*C96*B96 -> 0 | R96: =Q96+N96+K96+H96+E96 -> 0
A97: Use this to estimate quantities and confirm decommissioning and rehabilitation (end‑of‑life) activities and cost estimates for relevant activities and processed. This also includes assessing the asset condition, environmental risks, on‑site dismantling/decommissioning constraints.
A98: The consulting experts must verify the condition of all BESS battery components to assess their physical state, performance, and any degradation since installation. This includes independent technical testing, capacity and state‑of‑health (SOH) measurements, and comparison to manufacturer specifications and original commissioning data. If degradation is found, the consultants must quantify it and recommend any required impairment in line with IFRS (IAS 36 and IAS 16). The assessment must also show how the degradation affects remaining useful life, residual value, and future decommissioning costs.
A100: 2.12 Scenario and stress testing
A101: The consulting experts must perform a scenario analysis to assess how changes in key assumptions may affect decommissioning and rehabilitation cost estimates. For each scenario considered, the experts must provide clear assumptions, updated cost models, revised cash‑flow projections, and IFRS‑aligned present‑value calculations, together with expert commentary on financial impacts and key risk drivers to support robust valuation, audit defensibility, and management decision‑making.
A102: Possible re‑valuation may be required where errors are identified, or where audit findings, risk assessments, or changes in business or plant requirements necessitate correction or re-evaluation. Such re‑valuation must be undertaken accordingly; however, any costs arising from errors made by the consultants will not be borne by Eskom.
A104: 2.13 Deliverable
A105: Provide valuation reports and support for the major reporting periods (September and March of the contract period) in accordance with the above scope. Reports must include decommissioning costs, closure liabilities, cash‑flow timing, or overall provision estimates, authoritative positions, assumptions, benchmarks, and methodologies applied by the consulting experts etc., and must be submitted timeously before the relevant reporting deadlines.
A106: Where necessary - written reports for accounting positions/guidance/advice, scenario's and risk assessments etc.
A107: Note: Disclosures submissions are required for the March reporting period only for the duration of the contract
A108: . Microgrid Containers | B108: 1 | E108: =B108*C108*D108 -> 0 | G108: 0 | H108: 0 | J108: 0 | K108: 0 | M108: 0 | N108: 0 | P108: 0 | Q108: 0 | R108: 0
E109: =SUM(E8:E108) -> 0 | H109: =SUM(H8:H108) -> 0 | K109: =SUM(K8:K108) -> 0 | N109: =SUM(N8:N108) -> 0 | Q109: =SUM(Q8:Q108) -> 0 | R109: =Q109+N109+K109+H109+E109 -> 0
A111: The following BESS plants will be assessed over the 5-year period (subject to change based on business needs): | C111: Year 1 (2026) | D111: Year 2 (2027) | E111: Year 3 (2028) | F111: Year 4 (2029) | G111: Year 5 (2030)
C112: Hex | D112: Hex | E112: Hex | F112: Hex | G112: Hex
C113: Pongola | D113: Pongola | E113: Pongola | F113: Pongola | G113: Pongola
C114: Elandskop | D114: Elandskop | E114: Elandskop | F114: Elandskop | G114: Elandskop
C115: N/A | D115: Skaapvlei | E115: Skaapvlei | F115: Skaapvlei | G115: Skaapvlei
C117: N/A | D117: Paleisheuwel | E117: Paleisheuwel | F117: Paleisheuwel | G117: Paleisheuwel
C118: N/A | D118: Graafwater | E118: Graafwater | F118: Graafwater | G118: Graafwater
C119: N/A | D119: N/A | E119: Melkhout | F119: Melkhout | G119: Melkhout
C120: N/A | D120: N/A | E120: Rietfontein Bess | F120: Rietfontein Bess | G120: Rietfontein Bess
C122: N/A | D122: N/A | E122: Rietfontein Solar PV | F122: Rietfontein Solar PV | G122: Rietfontein Solar PV
A123: Assessment for EV's ( Lithium iron batteries environmental provision) | C123: Electric Vehicles( EV's) | D123: Electric Vehicles( EV's) | E123: Electric Vehicles( EV's) | F123: Electric Vehicles( EV's) | G123: Electric Vehicles( EV's)
A124: Assessment for Microgrids environmental provision | C124: Microgrids | D124: Microgrids | E124: Microgrids | F124: Microgrids | G124: Microgrids
A125: Assessment for Solar PV Roof Tops environmental provision | C125: Solar PV Roof Tops | D125: Solar PV Roof Tops | E125: Solar PV Roof Tops | F125: Solar PV Roof Tops | G125: Solar PV Roof Tops
A127: Electric Vehicles, Microgrid Containers, and Solar PV Rooftops component and projects/sites to be advised
A129: Prepared by: (End User of the Contract)
A130: Name and Surname:
A131: Designation:
A132: Signature:
A133: Date:
A135: Supported and Approved by: ( End user of Contract )
A136: Name and Surname:
A137: Designation:
A138: Signature:
A139: Date:
A141: Supported and Approved by: ( End user of Contract )
A142: Name and Surname:
A143: Designation:
A144: Signature:
A145: Date:
A146: Supported and Approved by: Contract Manager
A147: Name and Surname:
A148: Designation:
A149: Signature:
A150: Date:
A151: Supported and Approved by: Senior Manager End User
A152: Name and Surname:
A153: Designation:
A154: Signature:
A155: Date:
A157: Supported by Approved: Technical Specialist /Engineering Expert
A158: Name and Surname:
A159: Designation:
A160: Signature:
A161: Date:

Sheet Microgrids (hidden)
A1: Services Required: | C1: BESS AND OTHER ENVIRONMENTAL PROVISIONS/OBLIGATIONS CONSULTING SERVICES (END OF LIFE ACTIVITIES – DECOMMISSIONING AND REHABILITATION PROVISIONS).
A2: Division: | C2: DISTRIBUTION DIVISION
A3: Scope Detail | B3: Number of Consultants | C3: Number of Hours | D3: Rates | E3: Price | G3: Rates | H3: Price | J3: Rates | K3: Price | M3: Rates | N3: Price | P3: Rates | Q3: Price | R3: 5 Years Total
A5: Phase 1: Planning & Mobilization | C5: Year 1 | G5: Year 2 | J5: Year 3 | M5: Year 4 | P5: Year 5
A7: 1. Project Kick-off & Mobilization
A8: Confirm and define the project objectives, deliverables, timelines, and reporting requirements in line with the approved scope of work. | B8: 6 | C8: 4 | D8: R1,961 | E8: =B8*C8*D8 -> R47,064 | G8: =D8*1.08 -> R2,117.88 | H8: =G8*C8*B8 -> R50,829 | J8: =G8*1.08 -> R2,287.31 | K8: =J8*C8*B8 -> R54,895.45 | M8: =J8*1.08 -> R2,470.30 | N8: =M8*C8*B8 -> R59,287.09 | P8: =M8*1.08 -> R2,667.92 | Q8: =P8*C8*B8 -> R64,030.05 | R8: =Q8+N8+K8+H8+E8 -> R276,106
A9: Establish communication protocols for the full reporting cycle to ensure efficient coordination and information flow across all project stakeholders. | B9: 6 | C9: 2 | D9: R1,961 | E9: =B9*C9*D9 -> R23,532 | G9: =D9*1.08 -> R2,117.88 | H9: =G9*C9*B9 -> R25,415 | J9: =G9*1.08 -> R2,287.31 | K9: =J9*C9*B9 -> R27,447.72 | M9: =J9*1.08 -> R2,470.30 | N9: =M9*C9*B9 -> R29,643.54 | P9: =M9*1.08 -> R2,667.92 | Q9: =P9*C9*B9 -> R32,015.03 | R9: R138,053
A11: 2. Regulatory & Accounting Framework Review
A12: Review applicable environmental legislation and IFRS standards for the following asset categories:
A13: 1) Microgrid Containers | B13: 1 | C13: 3 | D13: R1,961 | E13: =B13*C13*D13 -> R5,883 | G13: R2,117.88 | H13: =G13*C13*B13 -> R6,354 | J13: R2,287.31 | K13: R6,861.93 | M13: R2,470.30 | N13: R7,410.89 | P13: R2,667.92 | Q13: R8,003.76 | R13: R34,513
A14: Confirm and advise on compliance requirements for expected end‑of‑life activities and the decommissioning provisions to be raised by Eskom.
A15: Provide advice on the related accounting, environmental and legal obligations applicable to Eskom for these activities.
A17: Phase 2: Technical & Environmental Assumptions/Costing
A19: 3. Environmental, Operational and End of Life Assumptions
A20: Provide and assess the technical, environmental, operational and end‑of‑life assumptions applied, or to be applied, for all decommissioning, disposal, recycling and rehabilitation activities for which Eskom will have an obligation. This includes reviewing assumptions and methodologies for all components of the following assets:
A21: (1) All BESS sites and components (including but not limited to): | B21: 1 | C21: 3 | D21: R1,961 | E21: =B21*C21*D21 -> R5,883 | R21: R5,883
A22: · Power Conversion Systems (PCS)
A23: · Battery Racks/ Battery Cabinet (LFP-based, supplied by CATL)
A24: · Energy Management Systems (EMS)
A25: · Network Integration Equipment (NIE), including:
A26: · Auxiliary and Inverter Transformers
A27: · Ring Main Units (RMU)
A28: · Indoor Switchgear
A29: · AC cabinet
A30: · DC combiner
A31: · Balance of Plant
A33: (2) All components of Electric Vehicles, Microgrid Containers, and Solar PV Rooftops (breakdown of components to be confirmed) | B33: 1 | C33: 3 | D33: R1,961 | E33: =B33*C33*D33 -> R5,883 | R33: R5,883
A34: Consultants must confirm and recommend best‑practice approaches for decommissioning, disposal, recycling and rehabilitation, and provide advice on the valuation methodologies, technical approaches, and assessment of decommissioning/recycling/rehabilitation techniques currently applied.
A35: Include assessment of site rehabilitation requirements at the end of useful life for all relevant assets (BESS, Electric Vehicles, Microgrid Containers, and Solar PV Rooftops), ensuring that environmental, land‑restoration, and site‑reinstatement obligations are fully identified and incorporated into end‑of‑life assumptions and methodologies. (provide relevant benchmarks and best practices).
A37: 4. Costing and Activities Estimates and Assumptions
A38: Provide and assess all costing assumptions and estimates used to determine end‑of‑life decommissioning and rehabilitation obligations, including quantities, rates, contingency allowances, discounting considerations, cash‑flow estimates and timing, rehabilitation and disposal costs (basis and benchmarks applied, other costing benchmarking, and best‑practice methodologies applicable to renewable energy assets .Battery Energy Storage Systems, Electric Vehicles, Microgrid Containers and Solar PV Rooftops. This includes providing expert advice on appropriate costing techniques and methodologies.
A39: 1) Microgrid Containers | B39: 1 | C39: 40 | D39: R1,961 | E39: =B39*C39*D39 -> R78,440 | G39: R2,117.88 | H39: R84,715 | J39: R2,287.31 | K39: R91,492.42 | M39: R2,470.30 | N39: R98,811.81 | P39: R2,667.92 | Q39: R106,716.75 | R39: R460,176
A40: Activities may include but not limited (BESS plant activitities included below for illustrative purposes but are not limited):
A41: Demolition,Removals/disassembly,Rigging and lifting,transportation,Disposal,Recycling, Rehabilitation,Contingencies,Scrap value calculations
A43: 5. Component Coverage
A44: Provide and assess in terms of the completeness of component coverage in terms of activities and costing for BESS plants, Electric Vehicles, Microgrid Containers, and Solar PV Rooftops, including all associated activities and costs linked to decommissioning, rehabilitation and recycling.
A45: 1) Microgrid Containers | B45: 1 | C45: 20 | D45: R1,961 | E45: =B45*C45*D45 -> R39,220 | G45: R2,117.88 | H45: R42,358 | J45: R2,287.31 | K45: R45,746.21 | M45: R2,470.30 | N45: R49,405.90 | P45: R2,667.92 | Q45: R53,358.38 | R45: R230,088
A46: Provide and confirm, based on best practice, whether all applicable end‑of‑life activities and cost and activities categories have been appropriately included (proof of best practice and benchmarking to be provided).
A47: BESS example: (may not be limited)
A48: · Power Conversion Systems (PCS)
A49: · Battery Racks/ Battery Cabinet (LFP-based, supplied by CATL)
A50: · Energy Management Systems (EMS)
A51: · Network Integration Equipment (NIE), including:
A52: · Auxiliary and Inverter Transformers
A53: · Ring Main Units (RMU)
A54: · Indoor Switchgear
A55: · AC cabinet
A56: · DC combiner
A58: 6. Provision Completeness
A59: Review and advise in terms of the completeness of the provision to ensure all decommissioning, disposal, rehabilitation, and end‑of‑life activities and associated costs for BESS plants, Electric Vehicles, Microgrid Containers, and Solar PV Rooftops are adequately identified and included.
A60: 1) Microgrid Containers | B60: 1 | C60: 5 | D60: R1,961 | E60: =B60*C60*D60 -> R9,805 | G60: R2,117.88 | H60: R10,589 | J60: R2,287.31 | K60: R11,436.55 | M60: R2,470.30 | N60: R12,351.48 | P60: R2,667.92 | Q60: R13,339.59 | R60: R57,522
A62: 7. Initial & Subsequent Cost Estimation (by Commissioning Date)
A63: Prepare initial and subsequent cost estimations (including contingency costs) based on commissioning dates of each site or plant, including estimations applicable to prior reporting periods (e.g., FY2025) based on the date each asset was brought into commercial operation.
A64: 1) Microgrid Containers | B64: 1 | C64: 5 | D64: R1,961 | E64: =B64*C64*D64 -> R9,805 | G64: R2,117.88 | H64: =G64*C64*B64 -> R10,589 | J64: R2,287.31 | K64: =J64*C64*B64 -> R11,436.55 | M64: R2,470.30 | N64: =M64*C64*B64 -> R12,351.48 | P64: R2,667.92 | Q64: =P64*C64*B64 -> R13,339.59 | R64: =Q64+N64+K64+H64+E64 -> R57,522
A66: 8. Closure Cost & Cash Flow
A67: Assess, review and advise on the assumptions used to determine closure costs, the related cash flows, timing of cash flows, discounting matters thereof, for purposes of calculating the present‑value gross liability associated with BESS sites, Electric Vehicles, Microgrid Containers, and Solar PV Rooftops.
A68: Provide and advise on the best‑practice approaches for escalating these costs up to the point of executing end‑of‑life activities
A69: 1) Microgrid Containers | B69: 1 | C69: 5 | D69: R1,961 | E69: =B69*C69*D69 -> R9,805 | G69: R2,117.88 | H69: R10,589 | J69: R2,287.31 | K69: R11,436.55 | M69: R2,470.30 | N69: R12,351.48 | P69: R2,667.92 | Q69: R13,339.59 | R69: R57,522
A71: 9. Decommissioning Plan Development
A72: Develop and provide support in maintaining a comprehensive decommissioning plan for BESS sites, Electric Vehicles, Microgrid Containers, and Solar PV Rooftops.
A73: Ensure the plan is reviewed and updated frequently and remains aligned with technical, environmental, and financial considerations.
A74: The consulting experts must prepare a decommissioning risk assessment for each asset category (BESS, Electric Vehicles, Microgrid Containers, and Solar PV Rooftops), identifying all relevant financial, environmental, operational, and regulatory risks associated with end‑of‑life activities, assessing the probability and impact of each risk together with applicable mitigation measures and financial implications, evaluating how these risks may influence decommissioning costs, closure liabilities, cash‑flow timing, or overall provision estimates, and providing expert recommendations on mitigation strategies to support effective, compliant, and cost‑efficient execution of decommissioning and rehabilitation activities.
A75: Assess and provide advice on the period in terms of the end of life dates.
A76: 1) Microgrid Containers | B76: 1 | C76: 10 | D76: R1,961 | E76: =B76*C76*D76 -> R19,610 | G76: =D76*1.08 -> R2,117.88 | H76: R21,179 | J76: =G76*1.08 -> R2,287.31 | K76: R22,873.10 | M76: =J76*1.08 -> R2,470.30 | N76: R24,702.95 | P76: =M76*1.08 -> R2,667.92 | Q76: R26,679.19 | R76: R115,044
A78: 10. Accounting Support (IFRS)
A79: Provide assistance and support relating to the accounting implications nuance matters in terms of the decommissioning and rehabilitation and end of life activities for BESS sites, Electric Vehicles, Microgrid Containers, and Solar PV Rooftops. These include but is not limited to: Augmentation vs Replacement: Confirm the correct IFRS treatment for augmentation, ensuring no derecognition of existing racks and advising on impacts to the decommissioning asset and provision. Single Decommissioning Event: Confirm that all racks are decommissioned once at end of plant life with no interim disposals, and advise on modelling, timing, liability build‑up, unwinding and disclosure. Depreciation Policy: Confirm depreciation of the decommissioning asset over the plant life, considering augmentation, and provide IFRS‑aligned policy guidance. Componentisation (FAR Alignment): Review asset components and confirm that the Fixed Asset Register aligns with IFRS componentisation and classification requirements. Battery Degradation & Impairment: Support annual SOH (state of health/health index) testing and advise on impairment, useful life, and residual value adjustments where degradation is identified
A80: Provide IFRS‑compliant disclosures for relevant provisions and decomissioning assets raised at each year‑end.
A81: 1) Microgrid Containers | B81: 1 | C81: 10 | D81: R1,961 | E81: =B81*C81*D81 -> R19,610 | G81: R2,117.88 | H81: R21,179 | J81: R2,287.31 | K81: R22,873.10 | M81: R2,470.30 | N81: R24,702.95 | P81: R2,667.92 | Q81: R26,679.19 | R81: R115,044
A83: 11. Useful Life Review
A84: Review, assess and advise on the useful life assumptions in terms of the decommissioning asset side of the provision applied to BESS sites, Electric Vehicles, Microgrid Containers, and Solar PV Rooftops, ensuring alignment with component‑level asset lifespans.
A85: Valuation of assets at end-of-life for EVs, Microgrid Containers, and Solar PV Rooftops, including assessment of residual value and integration into closure cost models.
A86: 1) Microgrid Containers | B86: 1 | C86: 10 | D86: R1,961 | E86: =B86*C86*D86 -> R19,610 | G86: R2,117.88 | H86: R21,179 | J86: R2,287.31 | K86: R22,873.10 | M86: R2,470.30 | N86: R24,702.95 | P86: R2,667.92 | Q86: R26,679.19 | R86: R115,044
A88: 12. Audit Engagement Participation
A89: Engage and participate in internal and external audit processes until audit completion for all decommissioning‑related deliverables for BESS sites, Electric Vehicles, Microgrid Containers, and Solar PV Rooftops. | B89: 3 | C89: 10 | D89: R1,961 | E89: =B89*C89*D89 -> R58,830 | G89: R2,117.88 | H89: R63,536 | J89: R2,287.31 | K89: R68,619.31 | M89: R2,470.30 | N89: R74,108.86 | P89: R2,667.92 | Q89: R80,037.57 | R89: R345,132
A90: Ensure availability of technical experts as required (in‑person or via MS Teams; number of meetings not limited).
A92: 13. Plant Health Assessment
A93: Conduct plant health assessment at each station where BESS sites, Electric Vehicles, Microgrid Containers, and Solar PV Rooftops are located.
A94: Use this to estimate quantities and confirm decommissioning and rehabilitation (end‑of‑life) activities and cost estimates for relevant activities and processed. This also includes assessing the asset condition, environmental risks, on‑site dismantling/decommissioning constraints.
A95: The consulting experts must verify the condition of all BESS battery components to assess their physical state, performance, and any degradation since installation. This includes independent technical testing, capacity and state‑of‑health (SOH) measurements, and comparison to manufacturer specifications and original commissioning data. If degradation is found, the consultants must quantify it and recommend any required impairment in line with IFRS (IAS 36 and IAS 16). The assessment must also show how the degradation affects remaining useful life, residual value, and future decommissioning costs.
A97: 14. Scenario and stress testing
A98: The consulting experts must perform a scenario analysis to assess how changes in key assumptions may affect decommissioning and rehabilitation cost estimates. For each scenario considered, the experts must provide clear assumptions, updated cost models, revised cash‑flow projections, and IFRS‑aligned present‑value calculations, together with expert commentary on financial impacts and key risk drivers to support robust valuation, audit defensibility, and management decision‑making.
A99: Possible re‑valuation may be required where errors are identified, or where audit findings, risk assessments, or changes in business or plant requirements necessitate correction or re-evaluation. Such re‑valuation must be undertaken accordingly; however, any costs arising from errors made by the consultants will not be borne by Eskom.
A101: 15. Deliverable
A102: Provide valuation reports and support for the major reporting periods (September and March of the contract period) in accordance with the above scope. Reports must include decommissioning costs, closure liabilities, cash‑flow timing, or overall provision estimates, authoritative positions, assumptions, benchmarks, and methodologies applied by the consulting experts etc., and must be submitted timeously before the relevant reporting deadlines.
A103: Where necessary - written reports for accounting positions/guidance/advice, scenario's and risk assessments etc.
A104: Note: Disclosures submissions are required for the March reporting period only for the duration of the contract
A105: 1) Microgrid Containers | B105: 1 | C105: 10 | D105: R1,961 | E105: =B105*C105*D105 -> R19,610 | G105: R2,117.88 | H105: R21,179 | J105: R2,287.31 | K105: R22,873.10 | M105: R2,470.30 | N105: R24,702.95 | P105: R2,667.92 | Q105: R26,679.19 | R105: R115,044
E106: =SUM(E8:E105) -> R372,590 | H106: =SUM(H8:H105) -> R389,690 | K106: =SUM(K8:K105) -> R420,865 | N106: =SUM(N8:N105) -> R454,534 | Q106: =SUM(Q8:Q105) -> R490,897 | R106: =Q106+N106+K106+H106+E106 -> R2,128,576
A108: The following BESS plants will be assessed over the 5-year period (subject to change based on business needs): | C108: Year 1 (2026) | D108: Year 2 (2027) | E108: Year 3 (2028) | F108: Year 4 (2029) | G108: Year 5 (2030)
C109: Hex | D109: Hex | E109: Hex | F109: Hex | G109: Hex
C110: Pongola | D110: Pongola | E110: Pongola | F110: Pongola | G110: Pongola
C111: Elandskop | D111: Elandskop | E111: Elandskop | F111: Elandskop | G111: Elandskop
C112: N/A | D112: Skaapvlei | E112: Skaapvlei | F112: Skaapvlei | G112: Skaapvlei
C114: N/A | D114: Paleisheuwel | E114: Paleisheuwel | F114: Paleisheuwel | G114: Paleisheuwel
C115: N/A | D115: Graafwater | E115: Graafwater | F115: Graafwater | G115: Graafwater
C116: N/A | D116: N/A | E116: Melkhout | F116: Melkhout | G116: Melkhout
C117: N/A | D117: N/A | E117: Rietfontein Bess | F117: Rietfontein Bess | G117: Rietfontein Bess
C119: N/A | D119: N/A | E119: Rietfontein Solar PV | F119: Rietfontein Solar PV | G119: Rietfontein Solar PV
A120: Assessment for EV's ( Lithium iron batteries environmental provision) | C120: Electric Vehicles( EV's) | D120: Electric Vehicles( EV's) | E120: Electric Vehicles( EV's) | F120: Electric Vehicles( EV's) | G120: Electric Vehicles( EV's)
A121: Assessment for Microgrids environmental provision | C121: Microgrids | D121: Microgrids | E121: Microgrids | F121: Microgrids | G121: Microgrids
A122: Assessment for Solar PV Roof Tops environmental provision | C122: Solar PV Roof Tops | D122: Solar PV Roof Tops | E122: Solar PV Roof Tops | F122: Solar PV Roof Tops | G122: Solar PV Roof Tops
A124: Electric Vehicles, Microgrid Containers, and Solar PV Rooftops component and projects/sites to be advised
A126: Prepared by: (End User of the Contract)
A127: Name and Surname: Nadia Alli
A128: Designation: Senior Advisor Financial Accounting and Compliance
A129: Signature:
A130: Date:
A132: Supported and Approved by: Contract Manager
A133: Name and Surname: Ivanke Van Der Linde
A134: Designation: Middle Manager Financial Accounting and Compliance
A135: Signature:
A136: Date:
A138: Supported and Approved by: Supporting E-Band Manager
A139: Name and Surname: Jayalakshmi Govender
A140: Designation: Senior Manager Central East Cluster (KZN and FS FBC)
A141: Signature:
A142: Date:
A144: Supported by Approved: Technical Specialist /Engineering Expert
A145: Name and Surname: Thomas Jacobs
A146: Designation:
A147: Signature:
A148: Date:

Sheet SolarPV (hidden)
A1: Services Required: | C1: BESS AND OTHER ENVIRONMENTAL PROVISIONS/OBLIGATIONS CONSULTING SERVICES (END OF LIFE ACTIVITIES – DECOMMISSIONING AND REHABILITATION PROVISIONS).
A2: Division: | C2: DISTRIBUTION DIVISION
A3: Scope Detail | B3: Number of Consultants | C3: Number of Hours | D3: Rates | E3: Price | G3: Rates | H3: Price | J3: Rates | K3: Price | M3: Rates | N3: Price | P3: Rates | Q3: Price | R3: 5 Years Total
A5: Phase 1: Planning & Mobilization | C5: Year 1 | G5: Year 2 | J5: Year 3 | M5: Year 4 | P5: Year 5
A7: 1. Project Kick-off & Mobilization
A8: Confirm and define the project objectives, deliverables, timelines, and reporting requirements in line with the approved scope of work. | B8: 6 | C8: 4 | D8: R1,961 | E8: =B8*C8*D8 -> R47,064 | G8: =D8*1.08 -> R2,117.88 | H8: =G8*C8*B8 -> R50,829 | J8: =G8*1.08 -> R2,287.31 | K8: =J8*C8*B8 -> R54,895.45 | M8: =J8*1.08 -> R2,470.30 | N8: =M8*C8*B8 -> R59,287.09 | P8: =M8*1.08 -> R2,667.92 | Q8: =P8*C8*B8 -> R64,030.05 | R8: =Q8+N8+K8+H8+E8 -> R276,106
A9: Establish communication protocols for the full reporting cycle to ensure efficient coordination and information flow across all project stakeholders. | B9: 6 | C9: 2 | D9: R1,961 | E9: =B9*C9*D9 -> R23,532 | G9: =D9*1.08 -> R2,117.88 | H9: =G9*C9*B9 -> R25,415 | J9: =G9*1.08 -> R2,287.31 | K9: =J9*C9*B9 -> R27,447.72 | M9: =J9*1.08 -> R2,470.30 | N9: =M9*C9*B9 -> R29,643.54 | P9: =M9*1.08 -> R2,667.92 | Q9: =P9*C9*B9 -> R32,015.03 | R9: R138,053
A11: 2. Regulatory & Accounting Framework Review
A12: Review applicable environmental legislation and IFRS standards for the following asset categories:
A13: 1) Solar PV Rooftops | B13: 1 | C13: 3 | D13: R1,961 | E13: =B13*C13*D13 -> R5,883 | G13: R2,117.88 | H13: =G13*C13*B13 -> R6,354 | J13: R2,287.31 | K13: R6,861.93 | M13: R2,470.30 | N13: R7,410.89 | P13: R2,667.92 | Q13: R8,003.76 | R13: R34,513
A14: Confirm and advise on compliance requirements for expected end‑of‑life activities and the decommissioning provisions to be raised by Eskom.
A15: Provide advice on the related accounting, environmental and legal obligations applicable to Eskom for these activities.
A17: Phase 2: Technical & Environmental Assumptions/Costing
A19: 3. Environmental, Operational and End of Life Assumptions
A20: Provide and assess the technical, environmental, operational and end‑of‑life assumptions applied, or to be applied, for all decommissioning, disposal, recycling and rehabilitation activities for which Eskom will have an obligation. This includes reviewing assumptions and methodologies for all components of the following assets:
A21: (1) All BESS sites and components (including but not limited to): | B21: 1 | C21: 3 | D21: R1,961 | E21: =B21*C21*D21 -> R5,883 | R21: R5,883
A22: · Power Conversion Systems (PCS)
A23: · Battery Racks/ Battery Cabinet (LFP-based, supplied by CATL)
A24: · Energy Management Systems (EMS)
A25: · Network Integration Equipment (NIE), including:
A26: · Auxiliary and Inverter Transformers
A27: · Ring Main Units (RMU)
A28: · Indoor Switchgear
A29: · AC cabinet
A30: · DC combiner
A31: · Balance of Plant
A33: (2) All components of Electric Vehicles, Microgrid Containers, and Solar PV Rooftops (breakdown of components to be confirmed) | B33: 1 | C33: 3 | D33: R1,961 | E33: =B33*C33*D33 -> R5,883 | R33: R5,883
A34: Consultants must confirm and recommend best‑practice approaches for decommissioning, disposal, recycling and rehabilitation, and provide advice on the valuation methodologies, technical approaches, and assessment of decommissioning/recycling/rehabilitation techniques currently applied.
A35: Include assessment of site rehabilitation requirements at the end of useful life for all relevant assets (BESS, Electric Vehicles, Microgrid Containers, and Solar PV Rooftops), ensuring that environmental, land‑restoration, and site‑reinstatement obligations are fully identified and incorporated into end‑of‑life assumptions and methodologies. (provide relevant benchmarks and best practices).
A37: 4. Costing and Activities Estimates and Assumptions
A38: Provide and assess all costing assumptions and estimates used to determine end‑of‑life decommissioning and rehabilitation obligations, including quantities, rates, contingency allowances, discounting considerations, cash‑flow estimates and timing, rehabilitation and disposal costs (basis and benchmarks applied, other costing benchmarking, and best‑practice methodologies applicable to renewable energy assets .Battery Energy Storage Systems, Electric Vehicles, Microgrid Containers and Solar PV Rooftops. This includes providing expert advice on appropriate costing techniques and methodologies.
A39: 1) Solar PV Rooftops | B39: 1 | C39: 40 | D39: R1,961 | E39: =B39*C39*D39 -> R78,440 | G39: R2,117.88 | H39: R84,715 | J39: R2,287.31 | K39: R91,492.42 | M39: R2,470.30 | N39: R98,811.81 | P39: R2,667.92 | Q39: R106,716.75 | R39: R460,176
A40: Activities may include but not limited (BESS plant activitities included below for illustrative purposes but are not limited):
A41: Demolition,Removals/disassembly,Rigging and lifting,transportation,Disposal,Recycling, Rehabilitation,Contingencies,Scrap value calculations
A43: 5. Component Coverage
A44: Provide and assess in terms of the completeness of component coverage in terms of activities and costing for BESS plants, Electric Vehicles, Microgrid Containers, and Solar PV Rooftops, including all associated activities and costs linked to decommissioning, rehabilitation and recycling.
A45: 1) Solar PV Rooftops | B45: 1 | C45: 20 | D45: R1,961 | E45: =B45*C45*D45 -> R39,220 | G45: R2,117.88 | H45: R42,358 | J45: R2,287.31 | K45: R45,746.21 | M45: R2,470.30 | N45: R49,405.90 | P45: R2,667.92 | Q45: R53,358.38 | R45: R230,088
A46: Provide and confirm, based on best practice, whether all applicable end‑of‑life activities and cost and activities categories have been appropriately included (proof of best practice and benchmarking to be provided).
A47: BESS example: (may not be limited)
A48: · Power Conversion Systems (PCS)
A49: · Battery Racks/ Battery Cabinet (LFP-based, supplied by CATL)
A50: · Energy Management Systems (EMS)
A51: · Network Integration Equipment (NIE), including:
A52: · Auxiliary and Inverter Transformers
A53: · Ring Main Units (RMU)
A54: · Indoor Switchgear
A55: · AC cabinet
A56: · DC combiner
A58: 6. Provision Completeness
A59: Review and advise in terms of the completeness of the provision to ensure all decommissioning, disposal, rehabilitation, and end‑of‑life activities and associated costs for BESS plants, Electric Vehicles, Microgrid Containers, and Solar PV Rooftops are adequately identified and included.
A60: 1) Solar PV Rooftops | B60: 1 | C60: 5 | D60: R1,961 | E60: =B60*C60*D60 -> R9,805 | G60: R2,117.88 | H60: R10,589 | J60: R2,287.31 | K60: R11,436.55 | M60: R2,470.30 | N60: R12,351.48 | P60: R2,667.92 | Q60: R13,339.59 | R60: R57,522
A62: 7. Initial & Subsequent Cost Estimation (by Commissioning Date)
A63: Prepare initial and subsequent cost estimations (including contingency costs) based on commissioning dates of each site or plant, including estimations applicable to prior reporting periods (e.g., FY2025) based on the date each asset was brought into commercial operation.
A64: 1) Solar PV Rooftops | B64: 1 | C64: 5 | D64: R1,961 | E64: =B64*C64*D64 -> R9,805 | G64: R2,117.88 | H64: =G64*C64*B64 -> R10,589 | J64: R2,287.31 | K64: =J64*C64*B64 -> R11,436.55 | M64: R2,470.30 | N64: =M64*C64*B64 -> R12,351.48 | P64: R2,667.92 | Q64: =P64*C64*B64 -> R13,339.59 | R64: R57,522
A66: 8. Closure Cost & Cash Flow
A67: Assess, review and advise on the assumptions used to determine closure costs, the related cash flows, timing of cash flows, discounting matters thereof, for purposes of calculating the present‑value gross liability associated with BESS sites, Electric Vehicles, Microgrid Containers, and Solar PV Rooftops.
A68: Provide and advise on the best‑practice approaches for escalating these costs up to the point of executing end‑of‑life activities
A69: 1) Solar PV Rooftops | B69: 1 | C69: 5 | D69: R1,961 | E69: =B69*C69*D69 -> R9,805 | G69: R2,117.88 | H69: R10,589 | J69: R2,287.31 | K69: R11,436.55 | M69: R2,470.30 | N69: R12,351.48 | P69: R2,667.92 | Q69: R13,339.59 | R69: =Q69+N69+K69+H69+E69 -> R57,522
A71: 9. Decommissioning Plan Development
A72: Develop and provide support in maintaining a comprehensive decommissioning plan for BESS sites, Electric Vehicles, Microgrid Containers, and Solar PV Rooftops.
A73: Ensure the plan is reviewed and updated frequently and remains aligned with technical, environmental, and financial considerations.
A74: The consulting experts must prepare a decommissioning risk assessment for each asset category (BESS, Electric Vehicles, Microgrid Containers, and Solar PV Rooftops), identifying all relevant financial, environmental, operational, and regulatory risks associated with end‑of‑life activities, assessing the probability and impact of each risk together with applicable mitigation measures and financial implications, evaluating how these risks may influence decommissioning costs, closure liabilities, cash‑flow timing, or overall provision estimates, and providing expert recommendations on mitigation strategies to support effective, compliant, and cost‑efficient execution of decommissioning and rehabilitation activities.
A75: Assess and provide advice on the period in terms of the end of life dates.
A76: 1) Solar PV Rooftops | B76: 1 | C76: 10 | D76: R1,961 | E76: =B76*C76*D76 -> R19,610 | G76: =D76*1.08 -> R2,117.88 | H76: R21,179 | J76: =G76*1.08 -> R2,287.31 | K76: R22,873.10 | M76: =J76*1.08 -> R2,470.30 | N76: R24,702.95 | P76: =M76*1.08 -> R2,667.92 | Q76: R26,679.19 | R76: R115,044
A78: 10. Accounting Support (IFRS)
A79: Provide assistance and support relating to the accounting implications nuance matters in terms of the decommissioning and rehabilitation and end of life activities for BESS sites, Electric Vehicles, Microgrid Containers, and Solar PV Rooftops. These include but is not limited to: Augmentation vs Replacement: Confirm the correct IFRS treatment for augmentation, ensuring no derecognition of existing racks and advising on impacts to the decommissioning asset and provision. Single Decommissioning Event: Confirm that all racks are decommissioned once at end of plant life with no interim disposals, and advise on modelling, timing, liability build‑up, unwinding and disclosure. Depreciation Policy: Confirm depreciation of the decommissioning asset over the plant life, considering augmentation, and provide IFRS‑aligned policy guidance. Componentisation (FAR Alignment): Review asset components and confirm that the Fixed Asset Register aligns with IFRS componentisation and classification requirements. Battery Degradation & Impairment: Support annual SOH (state of health/health index) testing and advise on impairment, useful life, and residual value adjustments where degradation is identified
A80: Provide IFRS‑compliant disclosures for relevant provisions and decomissioning assets raised at each year‑end.
A81: 1) Solar PV Rooftops | B81: 1 | C81: 10 | D81: R1,961 | E81: =B81*C81*D81 -> R19,610 | G81: R2,117.88 | H81: R21,179 | J81: R2,287.31 | K81: R22,873.10 | M81: R2,470.30 | N81: R24,702.95 | P81: R2,667.92 | Q81: R26,679.19 | R81: R115,044
A83: 11. Useful Life Review
A84: Review, assess and advise on the useful life assumptions in terms of the decommissioning asset side of the provision applied to BESS sites, Electric Vehicles, Microgrid Containers, and Solar PV Rooftops, ensuring alignment with component‑level asset lifespans.
A85: Valuation of assets at end-of-life for EVs, Microgrid Containers, and Solar PV Rooftops, including assessment of residual value and integration into closure cost models.
A86: 1) Solar PV Rooftops | B86: 1 | C86: 10 | D86: R1,961 | E86: =B86*C86*D86 -> R19,610 | G86: R2,117.88 | H86: R21,179 | J86: R2,287.31 | K86: R22,873.10 | M86: R2,470.30 | N86: R24,702.95 | P86: R2,667.92 | Q86: R26,679.19 | R86: R115,044
A88: 12. Audit Engagement Participation
A89: Engage and participate in internal and external audit processes until audit completion for all decommissioning‑related deliverables for BESS sites, Electric Vehicles, Microgrid Containers, and Solar PV Rooftops. | B89: 3 | C89: 10 | D89: R1,961 | E89: =B89*C89*D89 -> R58,830 | G89: R2,117.88 | H89: R63,536 | J89: R2,287.31 | K89: R68,619.31 | M89: R2,470.30 | N89: R74,108.86 | P89: R2,667.92 | Q89: R80,037.57 | R89: R345,132
A90: Ensure availability of technical experts as required (in‑person or via MS Teams; number of meetings not limited).
A92: 13. Plant Health Assessment
A93: Conduct plant health assessment at each station where BESS sites, Electric Vehicles, Microgrid Containers, and Solar PV Rooftops are located.
A94: Use this to estimate quantities and confirm decommissioning and rehabilitation (end‑of‑life) activities and cost estimates for relevant activities and processed. This also includes assessing the asset condition, environmental risks, on‑site dismantling/decommissioning constraints.
A95: The consulting experts must verify the condition of all BESS battery components to assess their physical state, performance, and any degradation since installation. This includes independent technical testing, capacity and state‑of‑health (SOH) measurements, and comparison to manufacturer specifications and original commissioning data. If degradation is found, the consultants must quantify it and recommend any required impairment in line with IFRS (IAS 36 and IAS 16). The assessment must also show how the degradation affects remaining useful life, residual value, and future decommissioning costs.
A97: 14. Scenario and stress testing
A98: The consulting experts must perform a scenario analysis to assess how changes in key assumptions may affect decommissioning and rehabilitation cost estimates. For each scenario considered, the experts must provide clear assumptions, updated cost models, revised cash‑flow projections, and IFRS‑aligned present‑value calculations, together with expert commentary on financial impacts and key risk drivers to support robust valuation, audit defensibility, and management decision‑making.
A99: Possible re‑valuation may be required where errors are identified, or where audit findings, risk assessments, or changes in business or plant requirements necessitate correction or re-evaluation. Such re‑valuation must be undertaken accordingly; however, any costs arising from errors made by the consultants will not be borne by Eskom.
A101: 15. Deliverable
A102: Provide valuation reports and support for the major reporting periods (September and March of the contract period) in accordance with the above scope. Reports must include decommissioning costs, closure liabilities, cash‑flow timing, or overall provision estimates, authoritative positions, assumptions, benchmarks, and methodologies applied by the consulting experts etc., and must be submitted timeously before the relevant reporting deadlines.
A103: Where necessary - written reports for accounting positions/guidance/advice, scenario's and risk assessments etc.
A104: Note: Disclosures submissions are required for the March reporting period only for the duration of the contract
A105: 1) Solar PV Rooftops | B105: 1 | C105: 10 | D105: R1,961 | E105: =B105*C105*D105 -> R19,610 | G105: R2,117.88 | H105: R21,179 | J105: R2,287.31 | K105: R22,873.10 | M105: R2,470.30 | N105: R24,702.95 | P105: R2,667.92 | Q105: R26,679.19 | R105: R115,044
E106: =SUM(E8:E105) -> R372,590 | H106: =SUM(H8:H105) -> R389,690 | K106: =SUM(K8:K105) -> R420,865 | N106: =SUM(N8:N105) -> R454,534 | Q106: =SUM(Q8:Q105) -> R490,897 | R106: =Q106+N106+K106+H106+E106 -> R2,128,576
A108: The following BESS plants will be assessed over the 5-year period (subject to change based on business needs): | C108: Year 1 (2026) | D108: Year 2 (2027) | E108: Year 3 (2028) | F108: Year 4 (2029) | G108: Year 5 (2030)
C109: Hex | D109: Hex | E109: Hex | F109: Hex | G109: Hex
C110: Pongola | D110: Pongola | E110: Pongola | F110: Pongola | G110: Pongola
C111: Elandskop | D111: Elandskop | E111: Elandskop | F111: Elandskop | G111: Elandskop
C112: N/A | D112: Skaapvlei | E112: Skaapvlei | F112: Skaapvlei | G112: Skaapvlei
C114: N/A | D114: Paleisheuwel | E114: Paleisheuwel | F114: Paleisheuwel | G114: Paleisheuwel
C115: N/A | D115: Graafwater | E115: Graafwater | F115: Graafwater | G115: Graafwater
C116: N/A | D116: N/A | E116: Melkhout | F116: Melkhout | G116: Melkhout
C117: N/A | D117: N/A | E117: Rietfontein Bess | F117: Rietfontein Bess | G117: Rietfontein Bess
C119: N/A | D119: N/A | E119: Rietfontein Solar PV | F119: Rietfontein Solar PV | G119: Rietfontein Solar PV
A120: Assessment for EV's ( Lithium iron batteries environmental provision) | C120: Electric Vehicles( EV's) | D120: Electric Vehicles( EV's) | E120: Electric Vehicles( EV's) | F120: Electric Vehicles( EV's) | G120: Electric Vehicles( EV's)
A121: Assessment for Microgrids environmental provision | C121: Microgrids | D121: Microgrids | E121: Microgrids | F121: Microgrids | G121: Microgrids
A122: Assessment for Solar PV Roof Tops environmental provision | C122: Solar PV Roof Tops | D122: Solar PV Roof Tops | E122: Solar PV Roof Tops | F122: Solar PV Roof Tops | G122: Solar PV Roof Tops
A124: Electric Vehicles, Microgrid Containers, and Solar PV Rooftops component and projects/sites to be advised
A126: Prepared by: (End User of the Contract)
A127: Name and Surname: Nadia Alli
A128: Designation: Senior Advisor Financial Accounting and Compliance
A129: Signature:
A130: Date:
A132: Supported and Approved by: Contract Manager
A133: Name and Surname: Ivanke Van Der Linde
A134: Designation: Middle Manager Financial Accounting and Compliance
A135: Signature:
A136: Date:
A138: Supported and Approved by: Supporting E-Band Manager
A139: Name and Surname: Jayalakshmi Govender
A140: Designation: Senior Manager Central East Cluster (KZN and FS FBC)
A141: Signature:
A142: Date:
A144: Supported by Approved: Technical Specialist /Engineering Expert
A145: Name and Surname: Thomas Jacobs
A146: Designation:
A147: Signature:
A148: Date:

Sheet SolarPV.
A1: Services Required: | C1: Review of the decommissioning costs and componentisation in terms of International Financial Reporting Standard (IFRS) for the rehabilitation of Battery Energy Storage Systems (BESS) sites including the assessment, accounting and valuation of environmental provisions for Electric Vehicles, Solar PV and Microgrid containers within the Distribution Division for a period of 5 years.
A2: Division: | C2: DISTRIBUTION DIVISION
A3: Scope Detail | B3: Number of Consultants | C3: Number of Hours | D3: Rates | E3: Price | G3: Rates | H3: Price | J3: Rates | K3: Price | M3: Rates | N3: Price | P3: Rates | Q3: Price | R3: 5 Years Total
A5: Phase 1: Planning & Mobilization | C5: Year 1 | G5: Year 2 | J5: Year 3 | M5: Year 4 | P5: Year 5
A7: 1.1 Project Kick-off & Mobilization
A8: Confirm and define the project objectives, deliverables, timelines, and reporting requirements in line with the approved scope of work.
A9: Establish communication protocols for the full reporting cycle to ensure efficient coordination and information flow across all project stakeholders.
A11: 1.2 Regulatory & Accounting Framework Review
A12: Review applicable environmental legislation and IFRS standards for the following asset categories:
A13: . Solar PV Rooftops | B13: 1 | E13: =B13*C13*D13 -> 0 | G13: =D13*1.08 -> 0 | H13: =G13*C13*B13 -> 0 | J13: =G13*1.08 -> 0 | K13: =J13*C13*B13 -> 0 | M13: =J13*1.08 -> 0 | N13: =M13*C13*B13 -> 0 | P13: =M13*1.08 -> 0 | Q13: =P13*C13*B13 -> 0 | R13: =Q13+N13+K13+H13+E13 -> 0
A14: Confirm and advise on compliance requirements for expected end‑of‑life activities and the decommissioning provisions to be raised by Eskom.
A15: Provide advice on the related accounting, environmental and legal obligations applicable to Eskom for these activities.
A17: Phase 2: Technical & Environmental Assumptions/Costing
A19: 2.1 Environmental, Operational and End of Life Assumptions
A20: Provide and assess the technical, environmental, operational and end‑of‑life assumptions applied, or to be applied, for all decommissioning, disposal, recycling and rehabilitation activities for which Eskom will have an obligation. This includes reviewing assumptions and methodologies for all components of the following assets:
A21: . Solar PV Rooftops | B21: 1 | E21: =B21*C21*D21 -> 0 | G21: =D21*1.08 -> 0 | H21: =G21*C21*B21 -> 0 | J21: =G21*1.08 -> 0 | K21: =J21*C21*B21 -> 0 | M21: =J21*1.08 -> 0 | N21: =M21*C21*B21 -> 0 | P21: =M21*1.08 -> 0 | Q21: =P21*C21*B21 -> 0 | R21: =Q21+N21+K21+H21+E21 -> 0
A22: 2.1.1 All BESS sites and components (including but not limited to):
A23: · Power Conversion Systems (PCS)
A24: · Battery Racks/ Battery Cabinet (LFP-based, supplied by CATL)
A25: · Energy Management Systems (EMS)
A26: · Network Integration Equipment (NIE), including:
A27: · Auxiliary and Inverter Transformers
A28: · Ring Main Units (RMU)
A29: · Indoor Switchgear
A30: · AC cabinet
A31: · DC combiner
A32: · Balance of Plant
A34: 2.1.2 All components of Electric Vehicles, Microgrid Containers, and Solar PV Rooftops (breakdown of components to be confirmed) | R34: 0
A35: Consultants must confirm and recommend best‑practice approaches for decommissioning, disposal, recycling and rehabilitation, and provide advice on the valuation methodologies, technical approaches, and assessment of decommissioning/recycling/rehabilitation techniques currently applied.
A36: . Solar PV Rooftops | B36: 1 | E36: =B36*C36*D36 -> 0 | G36: =D36*1.08 -> 0 | H36: =G36*C36*B36 -> 0 | J36: =G36*1.08 -> 0 | K36: =J36*C36*B36 -> 0 | M36: =J36*1.08 -> 0 | N36: =M36*C36*B36 -> 0 | P36: =M36*1.08 -> 0 | Q36: =P36*C36*B36 -> 0 | R36: =Q36+N36+K36+H36+E36 -> 0
A37: Include assessment of site rehabilitation requirements at the end of useful life for all relevant assets (BESS, Electric Vehicles, Microgrid Containers, and Solar PV Rooftops), ensuring that environmental, land‑restoration, and site‑reinstatement obligations are fully identified and incorporated into end‑of‑life assumptions and methodologies. (provide relevant benchmarks and best practices).
A39: 2.2 Costing and Activities Estimates and Assumptions
A40: Provide and assess all costing assumptions and estimates used to determine end‑of‑life decommissioning and rehabilitation obligations, including quantities, rates, contingency allowances, discounting considerations, cash‑flow estimates and timing, rehabilitation and disposal costs (basis and benchmarks applied, other costing benchmarking, and best‑practice methodologies applicable to renewable energy assets .Battery Energy Storage Systems, Electric Vehicles, Microgrid Containers and Solar PV Rooftops. This includes providing expert advice on appropriate costing techniques and methodologies.
A41: . Solar PV Rooftops | B41: 1 | E41: =B41*C41*D41 -> 0 | G41: 0 | H41: 0 | J41: 0 | K41: 0 | M41: 0 | N41: 0 | P41: 0 | Q41: 0 | R41: 0
A42: Activities may include but not limited (BESS plant activitities included below for illustrative purposes but are not limited):
A43: Demolition,Removals/disassembly,Rigging and lifting,transportation,Disposal,Recycling, Rehabilitation,Contingencies,Scrap value calculations
A45: 2.3 Component Coverage
A46: Provide and assess in terms of the completeness of component coverage in terms of activities and costing for BESS plants, Electric Vehicles, Microgrid Containers, and Solar PV Rooftops, including all associated activities and costs linked to decommissioning, rehabilitation and recycling.
A47: . Solar PV Rooftops | B47: 1 | E47: =B47*C47*D47 -> 0 | G47: 0 | H47: 0 | J47: 0 | K47: 0 | M47: 0 | N47: 0 | P47: 0 | Q47: 0 | R47: 0
A48: Provide and confirm, based on best practice, whether all applicable end‑of‑life activities and cost and activities categories have been appropriately included (proof of best practice and benchmarking to be provided).
A49: BESS example: (may not be limited)
A50: · Power Conversion Systems (PCS)
A51: · Battery Racks/ Battery Cabinet (LFP-based, supplied by CATL)
A52: · Energy Management Systems (EMS)
A53: · Network Integration Equipment (NIE), including:
A54: · Auxiliary and Inverter Transformers
A55: · Ring Main Units (RMU)
A56: · Indoor Switchgear
A57: · AC cabinet
A58: · DC combiner
A60: 2.4 Provision Completeness
A61: Review and advise in terms of the completeness of the provision to ensure all decommissioning, disposal, rehabilitation, and end‑of‑life activities and associated costs for BESS plants, Electric Vehicles, Microgrid Containers, and Solar PV Rooftops are adequately identified and included.
A62: . Solar PV Rooftops | B62: 1 | E62: =B62*C62*D62 -> 0 | G62: 0 | H62: 0 | J62: 0 | K62: 0 | M62: 0 | N62: 0 | P62: 0 | Q62: 0 | R62: 0
A64: 2.5 Initial & Subsequent Cost Estimation (by Commissioning Date)
A65: Prepare initial and subsequent cost estimations (including contingency costs) based on commissioning dates of each site or plant, including estimations applicable to prior reporting periods (e.g., FY2025) based on the date each asset was brought into commercial operation.
A66: . Solar PV Rooftops | B66: 1 | E66: =B66*C66*D66 -> 0 | G66: =D66*1.08 -> 0 | H66: =G66*C66*B66 -> 0 | J66: =G66*1.08 -> 0 | K66: =J66*C66*B66 -> 0 | M66: =J66*1.08 -> 0 | N66: =M66*C66*B66 -> 0 | P66: =M66*1.08 -> 0 | Q66: =P66*C66*B66 -> 0 | R66: =Q66+N66+K66+H66+E66 -> 0
A68: 2.6 Closure Cost & Cash Flow
A69: Assess, review and advise on the assumptions used to determine closure costs, the related cash flows, timing of cash flows, discounting matters thereof, for purposes of calculating the present‑value gross liability associated with BESS sites, Electric Vehicles, Microgrid Containers, and Solar PV Rooftops.
A70: Provide and advise on the best‑practice approaches for escalating these costs up to the point of executing end‑of‑life activities
A71: . Solar PV Rooftops | B71: 1 | E71: =B71*C71*D71 -> 0 | G71: 0 | H71: 0 | J71: 0 | K71: 0 | M71: 0 | N71: 0 | P71: 0 | Q71: 0 | R71: 0
A73: 2.7 Decommissioning Plan Development
A74: Develop and provide support in maintaining a comprehensive decommissioning plan for BESS sites, Electric Vehicles, Microgrid Containers, and Solar PV Rooftops.
A75: Ensure the plan is reviewed and updated frequently and remains aligned with technical, environmental, and financial considerations.
A76: The consulting experts must prepare a decommissioning risk assessment for each asset category (BESS, Electric Vehicles, Microgrid Containers, and Solar PV Rooftops), identifying all relevant financial, environmental, operational, and regulatory risks associated with end‑of‑life activities, assessing the probability and impact of each risk together with applicable mitigation measures and financial implications, evaluating how these risks may influence decommissioning costs, closure liabilities, cash‑flow timing, or overall provision estimates, and providing expert recommendations on mitigation strategies to support effective, compliant, and cost‑efficient execution of decommissioning and rehabilitation activities.
A77: Assess and provide advice on the period in terms of the end of life dates.
A78: . Solar PV Rooftops | B78: 1 | E78: =B78*C78*D78 -> 0 | G78: 0 | H78: 0 | J78: 0 | K78: 0 | M78: 0 | N78: 0 | P78: 0 | Q78: 0 | R78: 0
A80: 2.8 Accounting Support (IFRS)
A81: Provide assistance and support relating to the accounting implications nuance matters in terms of the decommissioning and rehabilitation and end of life activities for BESS sites, Electric Vehicles, Microgrid Containers, and Solar PV Rooftops. These include but is not limited to: Augmentation vs Replacement: Confirm the correct IFRS treatment for augmentation, ensuring no derecognition of existing racks and advising on impacts to the decommissioning asset and provision. Single Decommissioning Event: Confirm that all racks are decommissioned once at end of plant life with no interim disposals, and advise on modelling, timing, liability build‑up, unwinding and disclosure. Depreciation Policy: Confirm depreciation of the decommissioning asset over the plant life, considering augmentation, and provide IFRS‑aligned policy guidance. Componentisation (FAR Alignment): Review asset components and confirm that the Fixed Asset Register aligns with IFRS componentisation and classification requirements. Battery Degradation & Impairment: Support annual SOH (state of health/health index) testing and advise on impairment, useful life, and residual value adjustments where degradation is identified
A82: Provide IFRS‑compliant disclosures for relevant provisions and decomissioning assets raised at each year‑end.
A83: . Solar PV Rooftops | B83: 1 | E83: =B83*C83*D83 -> 0 | G83: 0 | H83: 0 | J83: 0 | K83: 0 | M83: 0 | N83: 0 | P83: 0 | Q83: 0 | R83: 0
A85: 2.9 Useful Life Review
A86: Review, assess and advise on the useful life assumptions in terms of the decommissioning asset side of the provision applied to BESS sites, Electric Vehicles, Microgrid Containers, and Solar PV Rooftops, ensuring alignment with component‑level asset lifespans.
A87: Valuation of assets at end-of-life for EVs, Microgrid Containers, and Solar PV Rooftops, including assessment of residual value and integration into closure cost models.
A88: .Solar PV Rooftops | B88: 1 | E88: =B88*C88*D88 -> 0 | G88: 0 | H88: 0 | J88: 0 | K88: 0 | M88: 0 | N88: 0 | P88: 0 | Q88: 0 | R88: 0
A90: 2.10 Audit Engagement Participation
A91: Engage and participate in internal and external audit processes until audit completion for all decommissioning‑related deliverables for BESS sites, Electric Vehicles, Microgrid Containers, and Solar PV Rooftops.
A92: Ensure availability of technical experts as required (in‑person or via MS Teams; number of meetings not limited).
A94: 2.11 Plant Health Assessment
A95: Conduct plant health assessment at each station where BESS sites, Electric Vehicles, Microgrid Containers, and Solar PV Rooftops are located.
A96: . Solar PV Rooftops | B96: 1 | E96: =B96*C96*D96 -> 0 | G96: =D96*1.08 -> 0 | H96: =G96*C96*B96 -> 0 | J96: =G96*1.08 -> 0 | K96: =J96*C96*B96 -> 0 | M96: =J96*1.08 -> 0 | N96: =M96*C96*B96 -> 0 | P96: =M96*1.08 -> 0 | Q96: =P96*C96*B96 -> 0 | R96: =Q96+N96+K96+H96+E96 -> 0
A97: Use this to estimate quantities and confirm decommissioning and rehabilitation (end‑of‑life) activities and cost estimates for relevant activities and processed. This also includes assessing the asset condition, environmental risks, on‑site dismantling/decommissioning constraints.
A98: The consulting experts must verify the condition of all BESS battery components to assess their physical state, performance, and any degradation since installation. This includes independent technical testing, capacity and state‑of‑health (SOH) measurements, and comparison to manufacturer specifications and original commissioning data. If degradation is found, the consultants must quantify it and recommend any required impairment in line with IFRS (IAS 36 and IAS 16). The assessment must also show how the degradation affects remaining useful life, residual value, and future decommissioning costs.
A100: 2.12 Scenario and stress testing
A101: The consulting experts must perform a scenario analysis to assess how changes in key assumptions may affect decommissioning and rehabilitation cost estimates. For each scenario considered, the experts must provide clear assumptions, updated cost models, revised cash‑flow projections, and IFRS‑aligned present‑value calculations, together with expert commentary on financial impacts and key risk drivers to support robust valuation, audit defensibility, and management decision‑making.
A102: Possible re‑valuation may be required where errors are identified, or where audit findings, risk assessments, or changes in business or plant requirements necessitate correction or re-evaluation. Such re‑valuation must be undertaken accordingly; however, any costs arising from errors made by the consultants will not be borne by Eskom.
A104: 2.13 Deliverable
A105: Provide valuation reports and support for the major reporting periods (September and March of the contract period) in accordance with the above scope. Reports must include decommissioning costs, closure liabilities, cash‑flow timing, or overall provision estimates, authoritative positions, assumptions, benchmarks, and methodologies applied by the consulting experts etc., and must be submitted timeously before the relevant reporting deadlines.
A106: Where necessary - written reports for accounting positions/guidance/advice, scenario's and risk assessments etc.
A107: Note: Disclosures submissions are required for the March reporting period only for the duration of the contract
A108: . Solar PV Rooftops | B108: 1 | E108: =B108*C108*D108 -> 0 | G108: 0 | H108: 0 | J108: 0 | K108: 0 | M108: 0 | N108: 0 | P108: 0 | Q108: 0 | R108: 0
E109: =SUM(E8:E108) -> 0 | H109: =SUM(H8:H108) -> 0 | K109: =SUM(K8:K108) -> 0 | N109: =SUM(N8:N108) -> 0 | Q109: =SUM(Q8:Q108) -> 0 | R109: =Q109+N109+K109+H109+E109 -> 0
A111: The following BESS plants will be assessed over the 5-year period (subject to change based on business needs): | C111: Year 1 (2026) | D111: Year 2 (2027) | E111: Year 3 (2028) | F111: Year 4 (2029) | G111: Year 5 (2030)
C112: Hex | D112: Hex | E112: Hex | F112: Hex | G112: Hex
C113: Pongola | D113: Pongola | E113: Pongola | F113: Pongola | G113: Pongola
C114: Elandskop | D114: Elandskop | E114: Elandskop | F114: Elandskop | G114: Elandskop
C115: N/A | D115: Skaapvlei | E115: Skaapvlei | F115: Skaapvlei | G115: Skaapvlei
C117: N/A | D117: Paleisheuwel | E117: Paleisheuwel | F117: Paleisheuwel | G117: Paleisheuwel
C118: N/A | D118: Graafwater | E118: Graafwater | F118: Graafwater | G118: Graafwater
C119: N/A | D119: N/A | E119: Melkhout | F119: Melkhout | G119: Melkhout
C120: N/A | D120: N/A | E120: Rietfontein Bess | F120: Rietfontein Bess | G120: Rietfontein Bess
C122: N/A | D122: N/A | E122: Rietfontein Solar PV | F122: Rietfontein Solar PV | G122: Rietfontein Solar PV
A123: Assessment for EV's ( Lithium iron batteries environmental provision) | C123: Electric Vehicles( EV's) | D123: Electric Vehicles( EV's) | E123: Electric Vehicles( EV's) | F123: Electric Vehicles( EV's) | G123: Electric Vehicles( EV's)
A124: Assessment for Microgrids environmental provision | C124: Microgrids | D124: Microgrids | E124: Microgrids | F124: Microgrids | G124: Microgrids
A125: Assessment for Solar PV Roof Tops environmental provision | C125: Solar PV Roof Tops | D125: Solar PV Roof Tops | E125: Solar PV Roof Tops | F125: Solar PV Roof Tops | G125: Solar PV Roof Tops
A127: Electric Vehicles, Microgrid Containers, and Solar PV Rooftops component and projects/sites to be advised
A129: Prepared by: (End User of the Contract)
A130: Name and Surname:
A131: Designation:
A132: Signature:
A133: Date:
A135: Supported and Approved by: ( End user of Contract )
A136: Name and Surname:
A137: Designation:
A138: Signature:
A139: Date:
A141: Supported and Approved by: ( End user of Contract )
A142: Name and Surname:
A143: Designation:
A144: Signature:
A145: Date:
A146: Supported and Approved by: Contract Manager
A147: Name and Surname:
A148: Designation:
A149: Signature:
A150: Date:
A151: Supported and Approved by: Senior Manager End User
A152: Name and Surname:
A153: Designation:
A154: Signature:
A155: Date:
A157: Supported by Approved: Technical Specialist /Engineering Expert
A158: Name and Surname:
A159: Designation:
A160: Signature:
A161: Date:
